 Batch Number,Vendor Name,Invoice Number, Line,Line Amount,Account Description,Issue Date ,Total Amount Paid,Department,Proclass
260919K,NORTHERN DIVER (INTERNATIONAL),203814,1,7.5,OPERATIONAL EQUIP-PURCHASE,03/10/2019,427.5,Technical and Service Support,Fire & Rescue
260919K,NORTHERN DIVER (INTERNATIONAL),203814,2,40,OPERATIONAL EQUIP-PURCHASE,03/10/2019,,Technical and Service Support,Fire & Rescue
260919K,NORTHERN DIVER (INTERNATIONAL),203814,3,145,OPERATIONAL EQUIP-PURCHASE,03/10/2019,,Technical and Service Support,Fire & Rescue
260919K,NORTHERN DIVER (INTERNATIONAL),203814,4,60,OPERATIONAL EQUIP-PURCHASE,03/10/2019,,Technical and Service Support,Fire & Rescue
260919K,NORTHERN DIVER (INTERNATIONAL),203814,5,55,OPERATIONAL EQUIP-PURCHASE,03/10/2019,,Technical and Service Support,Fire & Rescue
260919K,NORTHERN DIVER (INTERNATIONAL),203814,6,120,OPERATIONAL EQUIP-PURCHASE,03/10/2019,,Technical and Service Support,Fire & Rescue
142833,EDF ENERGY,6451992,1,559.39,ELECTRICITY,03/10/2019,"39,563.93",Technical and Service Support,Utilities
142833,EDF ENERGY,6451992,2,262.87,ELECTRICITY,03/10/2019,,Technical and Service Support,Utilities
142833,EDF ENERGY,6451992,3,904.38,ELECTRICITY,03/10/2019,,Technical and Service Support,Utilities
142833,EDF ENERGY,6451992,4,424.7,ELECTRICITY,03/10/2019,,Technical and Service Support,Utilities
142833,EDF ENERGY,6451992,5,343.12,ELECTRICITY,03/10/2019,,Technical and Service Support,Utilities
142833,EDF ENERGY,6451992,6,490.31,ELECTRICITY,03/10/2019,,Technical and Service Support,Utilities
142833,EDF ENERGY,6451992,7,355.93,ELECTRICITY,03/10/2019,,Technical and Service Support,Utilities
142833,EDF ENERGY,6451992,8,315.76,ELECTRICITY,03/10/2019,,Technical and Service Support,Utilities
142833,EDF ENERGY,6451992,9,656.45,ELECTRICITY,03/10/2019,,Technical and Service Support,Utilities
142833,EDF ENERGY,6451992,10,46.51,ELECTRICITY,03/10/2019,,Technical and Service Support,Utilities
142833,EDF ENERGY,6451992,11,45.91,ELECTRICITY,03/10/2019,,Technical and Service Support,Utilities
142833,EDF ENERGY,6451992,12,50.71,ELECTRICITY,03/10/2019,,Technical and Service Support,Utilities
142833,EDF ENERGY,6451992,13,59.57,ELECTRICITY,03/10/2019,,Technical and Service Support,Utilities
142833,EDF ENERGY,6451992,14,37.06,ELECTRICITY,03/10/2019,,Technical and Service Support,Utilities
142833,EDF ENERGY,6451992,15,35.06,ELECTRICITY,03/10/2019,,Technical and Service Support,Utilities
142833,EDF ENERGY,6451992,16,19.51,ELECTRICITY,03/10/2019,,Technical and Service Support,Utilities
142833,EDF ENERGY,6451992,17,"1,262.97",ELECTRICITY,03/10/2019,,Technical and Service Support,Utilities
142833,EDF ENERGY,6451992,18,"1,231.12",ELECTRICITY,03/10/2019,,Technical and Service Support,Utilities
142833,EDF ENERGY,6451992,19,444.77,ELECTRICITY,03/10/2019,,Technical and Service Support,Utilities
142833,EDF ENERGY,6451992,20,546.15,ELECTRICITY,03/10/2019,,Technical and Service Support,Utilities
142833,EDF ENERGY,6451992,21,944.41,ELECTRICITY,03/10/2019,,Technical and Service Support,Utilities
142833,EDF ENERGY,6451992,22,375.55,ELECTRICITY,03/10/2019,,Technical and Service Support,Utilities
142833,EDF ENERGY,6451992,23,10.58,ELECTRICITY,03/10/2019,,Technical and Service Support,Utilities
142833,EDF ENERGY,6451992,24,7.89,ELECTRICITY,03/10/2019,,Technical and Service Support,Utilities
142833,EDF ENERGY,6451992,25,299.79,ELECTRICITY,03/10/2019,,Technical and Service Support,Utilities
142833,EDF ENERGY,6451992,26,311.29,ELECTRICITY,03/10/2019,,Technical and Service Support,Utilities
142833,EDF ENERGY,6451992,27,911.46,ELECTRICITY,03/10/2019,,Technical and Service Support,Utilities
142833,EDF ENERGY,6451992,28,54.42,ELECTRICITY,03/10/2019,,Technical and Service Support,Utilities
142833,EDF ENERGY,6451992,29,20.71,ELECTRICITY,03/10/2019,,Technical and Service Support,Utilities
142833,EDF ENERGY,6451992,30,381.4,ELECTRICITY,03/10/2019,,Technical and Service Support,Utilities
142833,EDF ENERGY,6451992,31,8.24,ELECTRICITY,03/10/2019,,Technical and Service Support,Utilities
142833,EDF ENERGY,6451992,32,314.29,ELECTRICITY,03/10/2019,,Technical and Service Support,Utilities
142833,EDF ENERGY,6451992,33,623.73,ELECTRICITY,03/10/2019,,Technical and Service Support,Utilities
142833,EDF ENERGY,6451992,34,474.72,ELECTRICITY,03/10/2019,,Technical and Service Support,Utilities
142833,EDF ENERGY,6451992,35,232.95,ELECTRICITY,03/10/2019,,Technical and Service Support,Utilities
142833,EDF ENERGY,6451992,36,21.46,ELECTRICITY,03/10/2019,,Technical and Service Support,Utilities
142833,EDF ENERGY,6451992,37,825.6,ELECTRICITY,03/10/2019,,Technical and Service Support,Utilities
142833,EDF ENERGY,6451992,38,57.71,ELECTRICITY,03/10/2019,,Technical and Service Support,Utilities
142833,EDF ENERGY,6451992,39,416.1,ELECTRICITY,03/10/2019,,Technical and Service Support,Utilities
142833,EDF ENERGY,6451992,40,"1,083.88",ELECTRICITY,03/10/2019,,Technical and Service Support,Utilities
142833,EDF ENERGY,6451992,41,453.34,ELECTRICITY,03/10/2019,,Technical and Service Support,Utilities
142833,EDF ENERGY,6451992,42,692.28,ELECTRICITY,03/10/2019,,Technical and Service Support,Utilities
142833,EDF ENERGY,6451992,43,615.15,ELECTRICITY,03/10/2019,,Technical and Service Support,Utilities
142833,EDF ENERGY,6451992,44,508.35,ELECTRICITY,03/10/2019,,Technical and Service Support,Utilities
142833,EDF ENERGY,6451992,45,432.55,ELECTRICITY,03/10/2019,,Technical and Service Support,Utilities
142833,EDF ENERGY,6451992,46,687.65,ELECTRICITY,03/10/2019,,Technical and Service Support,Utilities
142833,EDF ENERGY,6451992,47,514.54,ELECTRICITY,03/10/2019,,Technical and Service Support,Utilities
142833,EDF ENERGY,6451992,48,823.12,ELECTRICITY,03/10/2019,,Technical and Service Support,Utilities
142833,EDF ENERGY,6451992,49,466.19,ELECTRICITY,03/10/2019,,Technical and Service Support,Utilities
142833,EDF ENERGY,6451992,50,5.58,ELECTRICITY,03/10/2019,,Technical and Service Support,Utilities
142833,EDF ENERGY,6451992,51,580.95,ELECTRICITY,03/10/2019,,Technical and Service Support,Utilities
142833,EDF ENERGY,6451992,52,539.03,ELECTRICITY,03/10/2019,,Technical and Service Support,Utilities
142833,EDF ENERGY,6451992,53,45.51,ELECTRICITY,03/10/2019,,Technical and Service Support,Utilities
142833,EDF ENERGY,6451992,54,797.45,ELECTRICITY,03/10/2019,,Technical and Service Support,Utilities
142833,EDF ENERGY,6451992,55,265.9,ELECTRICITY,03/10/2019,,Technical and Service Support,Utilities
142833,EDF ENERGY,6451992,56,668.36,ELECTRICITY,03/10/2019,,Technical and Service Support,Utilities
142833,EDF ENERGY,6451992,57,488.13,ELECTRICITY,03/10/2019,,Technical and Service Support,Utilities
142833,EDF ENERGY,6451992,58,327.02,ELECTRICITY,03/10/2019,,Technical and Service Support,Utilities
142833,EDF ENERGY,6451992,59,543.65,ELECTRICITY,03/10/2019,,Technical and Service Support,Utilities
142833,EDF ENERGY,6451992,60,"1,215.59",ELECTRICITY,03/10/2019,,Technical and Service Support,Utilities
142833,EDF ENERGY,6451992,61,"1,305.90",ELECTRICITY,03/10/2019,,Technical and Service Support,Utilities
142833,EDF ENERGY,6451992,62,585.86,ELECTRICITY,03/10/2019,,Technical and Service Support,Utilities
142833,EDF ENERGY,6451992,63,476.44,ELECTRICITY,03/10/2019,,Technical and Service Support,Utilities
142833,EDF ENERGY,6451992,64,"1,380.43",ELECTRICITY,03/10/2019,,Technical and Service Support,Utilities
142833,EDF ENERGY,6451992,65,389.99,ELECTRICITY,03/10/2019,,Technical and Service Support,Utilities
142833,EDF ENERGY,6451992,66,446.55,ELECTRICITY,03/10/2019,,Technical and Service Support,Utilities
142833,EDF ENERGY,6451992,67,383.87,ELECTRICITY,03/10/2019,,Technical and Service Support,Utilities
142833,EDF ENERGY,6451992,68,649.29,ELECTRICITY,03/10/2019,,Technical and Service Support,Utilities
142833,EDF ENERGY,6451992,69,"1,266.86",ELECTRICITY,03/10/2019,,Technical and Service Support,Utilities
142833,EDF ENERGY,6451992,70,39.21,ELECTRICITY,03/10/2019,,Technical and Service Support,Utilities
142833,EDF ENERGY,6451992,71,30.12,ELECTRICITY,03/10/2019,,Technical and Service Support,Utilities
142833,EDF ENERGY,6451992,72,16.27,ELECTRICITY,03/10/2019,,Technical and Service Support,Utilities
142833,EDF ENERGY,6451992,73,20,ELECTRICITY,03/10/2019,,Technical and Service Support,Utilities
142833,EDF ENERGY,6451992,74,669.59,ELECTRICITY,03/10/2019,,Technical and Service Support,Utilities
142833,EDF ENERGY,6451992,75,316.83,ELECTRICITY,03/10/2019,,Technical and Service Support,Utilities
142833,EDF ENERGY,6451992,76,225.66,ELECTRICITY,03/10/2019,,Technical and Service Support,Utilities
142833,EDF ENERGY,6451992,77,410.69,ELECTRICITY,03/10/2019,,Technical and Service Support,Utilities
142833,EDF ENERGY,6451992,78,270.5,ELECTRICITY,03/10/2019,,Technical and Service Support,Utilities
142833,EDF ENERGY,6451992,79,345.49,ELECTRICITY,03/10/2019,,Technical and Service Support,Utilities
142833,EDF ENERGY,6451992,80,21.87,ELECTRICITY,03/10/2019,,Technical and Service Support,Utilities
142833,EDF ENERGY,6451992,81,466.06,ELECTRICITY,03/10/2019,,Technical and Service Support,Utilities
142833,EDF ENERGY,6451992,82,396.3,ELECTRICITY,03/10/2019,,Technical and Service Support,Utilities
142833,EDF ENERGY,6451992,83,791.65,ELECTRICITY,03/10/2019,,Technical and Service Support,Utilities
142833,EDF ENERGY,6451992,84,656.83,ELECTRICITY,03/10/2019,,Technical and Service Support,Utilities
142833,EDF ENERGY,6451992,85,453.46,ELECTRICITY,03/10/2019,,Technical and Service Support,Utilities
142833,EDF ENERGY,6451992,86,618.15,ELECTRICITY,03/10/2019,,Technical and Service Support,Utilities
142833,EDF ENERGY,6451992,87,333.08,ELECTRICITY,03/10/2019,,Technical and Service Support,Utilities
142833,EDF ENERGY,6451992,88,458.21,ELECTRICITY,03/10/2019,,Technical and Service Support,Utilities
270919K,COMPASS GROUP LTD,1004099225,1,"1,482.76",CATERING EQUIP SL,03/10/2019,"3,238.52",Technical and Service Support,Catering
270919K,COMPASS GROUP LTD,1004099225,2,60.41,REFRESHMENTS,03/10/2019,,Technical and Service Support,Catering
270919K,COMPASS GROUP LTD,1004099225,3,"1,108.33",CATERING,03/10/2019,,Technical and Service Support,Catering
270919K,COMPASS GROUP LTD,1004099225,4,587.02,CATERING EQUIP SL,03/10/2019,,Technical and Service Support,Catering
800137773,KIER BUILDING SERV ENGINEERS,10187262,1,14,REACTIVE BUILDING FABRIC,03/10/2019,"4,138.72",Technical and Service Support,Works - Construction
800137773,KIER BUILDING SERV ENGINEERS,10187262,2,8.95,REACTIVE BUILDING FABRIC,03/10/2019,,Technical and Service Support,Works - Construction
800137773,KIER BUILDING SERV ENGINEERS,10187262,3,7,REACTIVE BUILDING FABRIC,03/10/2019,,Technical and Service Support,Works - Construction
800137773,KIER BUILDING SERV ENGINEERS,10187262,4,7,REACTIVE BUILDING FABRIC,03/10/2019,,Technical and Service Support,Works - Construction
800137773,KIER BUILDING SERV ENGINEERS,10187262,5,7,REACTIVE BUILDING FABRIC,03/10/2019,,Technical and Service Support,Works - Construction
800137773,KIER BUILDING SERV ENGINEERS,10187262,6,89.55,REACTIVE BUILDING FABRIC,03/10/2019,,Technical and Service Support,Works - Construction
800137773,KIER BUILDING SERV ENGINEERS,10187262,7,157,REACTIVE BUILDING FABRIC,03/10/2019,,Technical and Service Support,Works - Construction
800137773,KIER BUILDING SERV ENGINEERS,10187262,8,72,REACTIVE BUILDING FABRIC,03/10/2019,,Technical and Service Support,Works - Construction
800137773,KIER BUILDING SERV ENGINEERS,10187262,9,35.82,REACTIVE BUILDING FABRIC,03/10/2019,,Technical and Service Support,Works - Construction
800137773,KIER BUILDING SERV ENGINEERS,10187262,10,70,REACTIVE BUILDING FABRIC,03/10/2019,,Technical and Service Support,Works - Construction
800137773,KIER BUILDING SERV ENGINEERS,10187262,11,53.73,REACTIVE BUILDING FABRIC,03/10/2019,,Technical and Service Support,Works - Construction
800137773,KIER BUILDING SERV ENGINEERS,10187262,12,179.1,REACTIVE BUILDING FABRIC,03/10/2019,,Technical and Service Support,Works - Construction
800137773,KIER BUILDING SERV ENGINEERS,10187262,13,35.82,REACTIVE BUILDING FABRIC,03/10/2019,,Technical and Service Support,Works - Construction
800137773,KIER BUILDING SERV ENGINEERS,10187262,14,56,REACTIVE BUILDING FABRIC,03/10/2019,,Technical and Service Support,Works - Construction
800137773,KIER BUILDING SERV ENGINEERS,10187262,15,63,REACTIVE BUILDING FABRIC,03/10/2019,,Technical and Service Support,Works - Construction
800137773,KIER BUILDING SERV ENGINEERS,10187262,16,91,REACTIVE BUILDING FABRIC,03/10/2019,,Technical and Service Support,Works - Construction
800137773,KIER BUILDING SERV ENGINEERS,10187262,17,19,REACTIVE BUILDING FABRIC,03/10/2019,,Technical and Service Support,Works - Construction
800137773,KIER BUILDING SERV ENGINEERS,10187262,18,17.91,REACTIVE BUILDING FABRIC,03/10/2019,,Technical and Service Support,Works - Construction
800137773,KIER BUILDING SERV ENGINEERS,10187262,19,21,REACTIVE BUILDING FABRIC,03/10/2019,,Technical and Service Support,Works - Construction
800137773,KIER BUILDING SERV ENGINEERS,10187262,20,56,REACTIVE BUILDING FABRIC,03/10/2019,,Technical and Service Support,Works - Construction
800137773,KIER BUILDING SERV ENGINEERS,10187262,21,70,REACTIVE BUILDING FABRIC,03/10/2019,,Technical and Service Support,Works - Construction
800137773,KIER BUILDING SERV ENGINEERS,10187262,22,171,REACTIVE BUILDING FABRIC,03/10/2019,,Technical and Service Support,Works - Construction
800137773,KIER BUILDING SERV ENGINEERS,10187262,23,56,REACTIVE BUILDING FABRIC,03/10/2019,,Technical and Service Support,Works - Construction
800137773,KIER BUILDING SERV ENGINEERS,10187262,24,35,REACTIVE BUILDING FABRIC,03/10/2019,,Technical and Service Support,Works - Construction
800137773,KIER BUILDING SERV ENGINEERS,10187262,25,98,REACTIVE BUILDING FABRIC,03/10/2019,,Technical and Service Support,Works - Construction
800137773,KIER BUILDING SERV ENGINEERS,10187262,26,112,REACTIVE BUILDING FABRIC,03/10/2019,,Technical and Service Support,Works - Construction
800137773,KIER BUILDING SERV ENGINEERS,10187262,27,21,REACTIVE BUILDING FABRIC,03/10/2019,,Technical and Service Support,Works - Construction
800137773,KIER BUILDING SERV ENGINEERS,10187262,28,56,REACTIVE BUILDING FABRIC,03/10/2019,,Technical and Service Support,Works - Construction
800137773,KIER BUILDING SERV ENGINEERS,10187262,29,126,REACTIVE BUILDING FABRIC,03/10/2019,,Technical and Service Support,Works - Construction
800137773,KIER BUILDING SERV ENGINEERS,10187262,30,107.46,REACTIVE BUILDING FABRIC,03/10/2019,,Technical and Service Support,Works - Construction
800137773,KIER BUILDING SERV ENGINEERS,10187262,31,21,REACTIVE BUILDING FABRIC,03/10/2019,,Technical and Service Support,Works - Construction
800137773,KIER BUILDING SERV ENGINEERS,10187262,32,17.91,REACTIVE BUILDING FABRIC,03/10/2019,,Technical and Service Support,Works - Construction
800137773,KIER BUILDING SERV ENGINEERS,10187262,33,7,REACTIVE BUILDING FABRIC,03/10/2019,,Technical and Service Support,Works - Construction
800137773,KIER BUILDING SERV ENGINEERS,10187262,34,149,REACTIVE BUILDING FABRIC,03/10/2019,,Technical and Service Support,Works - Construction
800137773,KIER BUILDING SERV ENGINEERS,10187262,35,80,REACTIVE BUILDING FABRIC,03/10/2019,,Technical and Service Support,Works - Construction
800137773,KIER BUILDING SERV ENGINEERS,10187262,36,47,REACTIVE BUILDING FABRIC,03/10/2019,,Technical and Service Support,Works - Construction
800137773,KIER BUILDING SERV ENGINEERS,10187262,37,395,REACTIVE BUILDING FABRIC,03/10/2019,,Technical and Service Support,Works - Construction
800137773,KIER BUILDING SERV ENGINEERS,10187262,38,56,REACTIVE BUILDING FABRIC,03/10/2019,,Technical and Service Support,Works - Construction
800137773,KIER BUILDING SERV ENGINEERS,10187262,39,28,REACTIVE BUILDING FABRIC,03/10/2019,,Technical and Service Support,Works - Construction
800137773,KIER BUILDING SERV ENGINEERS,10187262,40,35.82,REACTIVE BUILDING FABRIC,03/10/2019,,Technical and Service Support,Works - Construction
800137773,KIER BUILDING SERV ENGINEERS,10187262,41,90,REACTIVE BUILDING FABRIC,03/10/2019,,Technical and Service Support,Works - Construction
800137773,KIER BUILDING SERV ENGINEERS,10187262,42,35.82,REACTIVE BUILDING FABRIC,03/10/2019,,Technical and Service Support,Works - Construction
800137773,KIER BUILDING SERV ENGINEERS,10187262,43,760,REACTIVE BUILDING FABRIC,03/10/2019,,Technical and Service Support,Works - Construction
800137773,KIER BUILDING SERV ENGINEERS,10187262,44,97,REACTIVE BUILDING FABRIC,03/10/2019,,Technical and Service Support,Works - Construction
800137773,KIER BUILDING SERV ENGINEERS,10187262,45,45,REACTIVE BUILDING FABRIC,03/10/2019,,Technical and Service Support,Works - Construction
800137773,KIER BUILDING SERV ENGINEERS,10187262,46,17.91,REACTIVE BUILDING FABRIC,03/10/2019,,Technical and Service Support,Works - Construction
800137773,KIER BUILDING SERV ENGINEERS,10187262,47,17.91,REACTIVE BUILDING FABRIC,03/10/2019,,Technical and Service Support,Works - Construction
800137773,KIER BUILDING SERV ENGINEERS,10187262,48,45,REACTIVE BUILDING FABRIC,03/10/2019,,Technical and Service Support,Works - Construction
800137773,KIER BUILDING SERV ENGINEERS,10187262,49,225.1,REACTIVE BUILDING FABRIC,03/10/2019,,Technical and Service Support,Works - Construction
800137773,KIER BUILDING SERV ENGINEERS,10187262,50,17.91,REACTIVE BUILDING FABRIC,03/10/2019,,Technical and Service Support,Works - Construction
800137773,KIER BUILDING SERV ENGINEERS,10187262,51,37,REACTIVE BUILDING FABRIC,03/10/2019,,Technical and Service Support,Works - Construction
800137774,KIER BUILDING SERV ENGINEERS,10187416,1,63.24,REACTIVE BUILDING FABRIC,03/10/2019,286.28,Technical and Service Support,Works - Construction
800137774,KIER BUILDING SERV ENGINEERS,10187416,2,35.82,REACTIVE BUILDING FABRIC,03/10/2019,,Technical and Service Support,Works - Construction
800137774,KIER BUILDING SERV ENGINEERS,10187416,3,124.53,REACTIVE BUILDING FABRIC,03/10/2019,,Technical and Service Support,Works - Construction
800137774,KIER BUILDING SERV ENGINEERS,10187416,4,62.69,REACTIVE BUILDING FABRIC,03/10/2019,,Technical and Service Support,Works - Construction
260919K,FIREANGEL SAFETY TECHNOLOGY LD,1135065,1,"1,470.00",FIRE DETECTORS,03/10/2019,"1,470.00",Fire Stations (South East),Health and Safety
300919K,FIREANGEL SAFETY TECHNOLOGY LD,1135067,1,840,FIRE DETECTORS,03/10/2019,840,Fire Stations (South East),Health and Safety
260919K,FIREANGEL SAFETY TECHNOLOGY LD,1135068,1,"1,470.00",FIRE DETECTORS,03/10/2019,"1,470.00",Fire Stations (South East),Health and Safety
260919K,FIREANGEL SAFETY TECHNOLOGY LD,1135069,1,840,FIRE DETECTORS,03/10/2019,"3,090.00",Fire Stations (South East),Health and Safety
260919K,FIREANGEL SAFETY TECHNOLOGY LD,1135069,2,"2,250.00",FIRE DETECTORS,03/10/2019,,Fire Stations (South East),Health and Safety
260919K,FIREANGEL SAFETY TECHNOLOGY LD,1135071,1,840,FIRE DETECTORS,03/10/2019,"3,840.00",Fire Stations (South East),Health and Safety
260919K,FIREANGEL SAFETY TECHNOLOGY LD,1135071,2,"3,000.00",FIRE DETECTORS,03/10/2019,,Fire Stations (South East),Health and Safety
300919K,FIREANGEL SAFETY TECHNOLOGY LD,1135133,1,420,FIRE DETECTORS,03/10/2019,420,Fire Stations (North East),Health and Safety
300919K,FIREANGEL SAFETY TECHNOLOGY LD,1135135,1,"1,050.00",FIRE DETECTORS,03/10/2019,"1,050.00",Fire Stations (North East),Health and Safety
260919K,FIREANGEL SAFETY TECHNOLOGY LD,1135136,1,"1,890.00",FIRE DETECTORS,03/10/2019,"1,890.00",Fire Stations (North East),Health and Safety
260919K,FIREANGEL SAFETY TECHNOLOGY LD,1135139,1,630,FIRE DETECTORS,03/10/2019,630,Fire Stations (North East),Health and Safety
260919K,FIREANGEL SAFETY TECHNOLOGY LD,1135198,1,"1,050.00",FIRE DETECTORS,03/10/2019,"1,050.00",Fire Stations (North East),Health and Safety
300919K,FIREANGEL SAFETY TECHNOLOGY LD,1135199,1,525,FIRE DETECTORS,03/10/2019,525,Fire Stations (North East),Health and Safety
300919K,FIREANGEL SAFETY TECHNOLOGY LD,1135200,1,315,FIRE DETECTORS,03/10/2019,315,Fire Stations (North East),Health and Safety
300919K,FIREANGEL SAFETY TECHNOLOGY LD,1135202,1,630,FIRE DETECTORS,03/10/2019,630,Fire Stations (North East),Health and Safety
260919K,FIREANGEL SAFETY TECHNOLOGY LD,1135203,1,"1,470.00",FIRE DETECTORS,03/10/2019,"4,470.00",Fire Stations (South East),Health and Safety
260919K,FIREANGEL SAFETY TECHNOLOGY LD,1135203,2,"3,000.00",FIRE DETECTORS,03/10/2019,,Fire Stations (South East),Health and Safety
260919K,FIREANGEL SAFETY TECHNOLOGY LD,1135255,1,840,FIRE DETECTORS,03/10/2019,"3,840.00",Fire Stations (South East),Health and Safety
260919K,FIREANGEL SAFETY TECHNOLOGY LD,1135255,2,"3,000.00",FIRE DETECTORS,03/10/2019,,Fire Stations (South East),Health and Safety
300919K,FIREANGEL SAFETY TECHNOLOGY LD,1135304,1,315,FIRE DETECTORS,03/10/2019,315,Fire Stations (North East),Health and Safety
300919K,FIREANGEL SAFETY TECHNOLOGY LD,1135311,1,630,FIRE DETECTORS,03/10/2019,630,Fire Stations (North East),Health and Safety
300919K,FIREANGEL SAFETY TECHNOLOGY LD,1135312,1,"1,260.00",FIRE DETECTORS,03/10/2019,"1,260.00",Fire Stations (North East),Health and Safety
300919K,BT GLOBAL SERVICES,1138250,1,541.66,TELECOMMUNICATIONS,03/10/2019,541.66,Enterprise Application Group (ICT),ICT
300919K,BT GLOBAL SERVICES,1138313,1,541.66,TELECOMMUNICATIONS,03/10/2019,541.66,Enterprise Application Group (ICT),ICT
800137746,HAYS SPECIALIST RECRUITMENT,1153009,1,905.1,FRS STAFF AGENCY,03/10/2019,905.1,People Services,Human Resources
800137743,HAYS SPECIALIST RECRUITMENT,1153010,1,"1,461.25",FRS STAFF AGENCY,03/10/2019,"1,461.25",Operational Policy,Human Resources
800137693,HAYS SPECIALIST RECRUITMENT,1153011,1,"1,175.30",FRS STAFF AGENCY,03/10/2019,"1,175.30",Change to LFC Governance,Human Resources
800137730,HAYS SPECIALIST RECRUITMENT,1153012,1,"2,112.60",FRS STAFF AGENCY,03/10/2019,"2,112.60",Enterprise Application Group (ICT),Human Resources
800137748,HAYS SPECIALIST RECRUITMENT,1153013,1,757.75,FRS STAFF AGENCY,03/10/2019,757.75,Technical and Service Support,Human Resources
800137724,HAYS SPECIALIST RECRUITMENT,1153015,1,"1,184.75",FRS STAFF AGENCY,03/10/2019,"1,184.75",CPO People Programme,Human Resources
800137689,HAYS SPECIALIST RECRUITMENT,1153016,1,631.34,FRS STAFF AGENCY,03/10/2019,631.34,Community Safety,Human Resources
800137718,HAYS SPECIALIST RECRUITMENT,1153017,1,757.75,FRS STAFF AGENCY,03/10/2019,757.75,Building Support Programme,Human Resources
800137682,HAYS SPECIALIST RECRUITMENT,1153018,1,"1,546.20",FRS STAFF AGENCY,03/10/2019,"1,546.20",Technical and Service Support,Human Resources
800137744,HAYS SPECIALIST RECRUITMENT,1153019,1,618.1,FRS STAFF AGENCY,03/10/2019,618.1,Information Management (ICT),Human Resources
800137681,HAYS SPECIALIST RECRUITMENT,1153020,1,581.76,FRS STAFF AGENCY,03/10/2019,581.76,Management Support,Human Resources
800137736,HAYS SPECIALIST RECRUITMENT,1153021,1,"1,099.00",FRS STAFF AGENCY,03/10/2019,"1,099.00",Grenfell Investigation Team,Human Resources
800137673,HAYS SPECIALIST RECRUITMENT,1153023,1,636.3,FRS STAFF AGENCY,03/10/2019,636.3,General Counsel,Human Resources
800137708,HAYS SPECIALIST RECRUITMENT,1153024,1,636.3,FRS STAFF AGENCY,03/10/2019,636.3,People Services,Human Resources
800137733,HAYS SPECIALIST RECRUITMENT,1153025,1,896,FRS STAFF AGENCY,03/10/2019,896,Enterprise Application Group (ICT),Human Resources
800137685,HAYS SPECIALIST RECRUITMENT,1153026,1,504.5,FRS STAFF AGENCY,03/10/2019,504.5,People Services,Human Resources
800137671,HAYS SPECIALIST RECRUITMENT,1153027,1,868.48,FRS STAFF AGENCY,03/10/2019,868.48,Technical and Service Support,Human Resources
800137713,HAYS SPECIALIST RECRUITMENT,1153028,1,"1,643.55",FRS STAFF AGENCY,03/10/2019,"1,643.55",Infrastructure Team (ICT),Human Resources
800137721,HAYS SPECIALIST RECRUITMENT,1153029,1,355.12,FRS STAFF AGENCY,03/10/2019,355.12,People Services,Human Resources
800137719,HAYS SPECIALIST RECRUITMENT,1153030,1,636.3,FRS STAFF AGENCY,03/10/2019,636.3,Management Support,Human Resources
800137688,HAYS SPECIALIST RECRUITMENT,1153031,1,636.3,FRS STAFF AGENCY,03/10/2019,636.3,Management Support,Human Resources
800137742,HAYS SPECIALIST RECRUITMENT,1153032,1,"1,108.45",FRS STAFF AGENCY,03/10/2019,"1,108.45",General Counsel,Human Resources
800137676,HAYS SPECIALIST RECRUITMENT,1153033,1,"1,576.95",FRS STAFF AGENCY,03/10/2019,"1,576.95",Procurement,Human Resources
800137683,HAYS SPECIALIST RECRUITMENT,1153034,1,573.95,FRS STAFF AGENCY,03/10/2019,573.95,Management Support,Human Resources
800137745,HAYS SPECIALIST RECRUITMENT,1153035,1,636.3,FRS STAFF AGENCY,03/10/2019,636.3,People Services,Human Resources
800137706,HAYS SPECIALIST RECRUITMENT,1153036,1,494.48,FRS STAFF AGENCY,03/10/2019,494.48,Operational Resilience,Human Resources
800137702,HAYS SPECIALIST RECRUITMENT,1153037,1,"1,857.15",FRS STAFF AGENCY,03/10/2019,"1,857.15",CPO Delivery,Human Resources
800137707,HAYS SPECIALIST RECRUITMENT,1153038,1,618.1,FRS STAFF AGENCY,03/10/2019,618.1,Community Safety,Human Resources
800137686,HAYS SPECIALIST RECRUITMENT,1153039,1,528.08,FRS STAFF AGENCY,03/10/2019,528.08,Information Management (ICT),Human Resources
800137679,HAYS SPECIALIST RECRUITMENT,1153040,1,757.75,FRS STAFF AGENCY,03/10/2019,757.75,London Resilience Group,Human Resources
800137670,HAYS SPECIALIST RECRUITMENT,1153041,1,"1,099.00",FRS STAFF AGENCY,03/10/2019,"1,099.00",Grenfell Investigation Team,Human Resources
800137717,HAYS SPECIALIST RECRUITMENT,1153042,1,900.55,FRS STAFF AGENCY,03/10/2019,900.55,Infrastructure Team (ICT),Human Resources
800137716,HAYS SPECIALIST RECRUITMENT,1153043,1,900.2,FRS STAFF AGENCY,03/10/2019,900.2,Information Management (ICT),Human Resources
800137672,HAYS SPECIALIST RECRUITMENT,1153044,1,618.1,FRS STAFF AGENCY,03/10/2019,618.1,People Services,Human Resources
800137687,HAYS SPECIALIST RECRUITMENT,1153045,1,261.46,FRS STAFF AGENCY,03/10/2019,261.46,Operational Resilience,Human Resources
800137698,HAYS SPECIALIST RECRUITMENT,1153046,1,381.78,FRS STAFF AGENCY,03/10/2019,381.78,Grenfell Investigation Team,Human Resources
800137712,HAYS SPECIALIST RECRUITMENT,1153047,1,636.3,FRS STAFF AGENCY,03/10/2019,636.3,People Services,Human Resources
800137720,HAYS SPECIALIST RECRUITMENT,1153048,1,"1,183.15",FRS STAFF AGENCY,03/10/2019,"1,183.15",Procurement,Human Resources
800137740,HAYS SPECIALIST RECRUITMENT,1153049,1,391.3,FRS STAFF AGENCY,03/10/2019,391.3,People Services,Human Resources
800137714,HAYS SPECIALIST RECRUITMENT,1153050,1,609.03,FRS STAFF AGENCY,03/10/2019,609.03,Management Support,Human Resources
800137747,HAYS SPECIALIST RECRUITMENT,1153051,1,879.2,FRS STAFF AGENCY,03/10/2019,879.2,Grenfell Investigation Legal Costs,Human Resources
800137739,HAYS SPECIALIST RECRUITMENT,1153052,1,978.25,FRS STAFF AGENCY,03/10/2019,978.25,People Services,Human Resources
800137725,HAYS SPECIALIST RECRUITMENT,1153053,1,671.15,FRS STAFF AGENCY,03/10/2019,671.15,People Services,Human Resources
800137729,HAYS SPECIALIST RECRUITMENT,1153054,1,874.65,FRS STAFF AGENCY,03/10/2019,874.65,Information Management (ICT),Human Resources
800137692,HAYS SPECIALIST RECRUITMENT,1153055,1,"1,183.84",FRS STAFF AGENCY,03/10/2019,"1,183.84",NFCC Governance,Human Resources
800137674,HAYS SPECIALIST RECRUITMENT,1153056,1,646.45,FRS STAFF AGENCY,03/10/2019,646.45,Technical and Service Support,Human Resources
800137678,HAYS SPECIALIST RECRUITMENT,1153058,1,"1,694.40",FRS STAFF AGENCY,03/10/2019,"1,694.40",Infrastructure Team (ICT),Human Resources
800137709,HAYS SPECIALIST RECRUITMENT,1153059,1,636.3,FRS STAFF AGENCY,03/10/2019,636.3,Technical and Service Support,Human Resources
800137726,HAYS SPECIALIST RECRUITMENT,1153060,1,454.5,FRS STAFF AGENCY,03/10/2019,454.5,Fire Stations (North East),Human Resources
800137694,HAYS SPECIALIST RECRUITMENT,1153061,1,715.86,FRS STAFF AGENCY,03/10/2019,715.86,Operational Policy,Human Resources
800137675,HAYS SPECIALIST RECRUITMENT,1153062,1,"1,824.80",FRS STAFF AGENCY,03/10/2019,"1,824.80",Enterprise Application Group (ICT),Human Resources
800137752,HAYS SPECIALIST RECRUITMENT,1153063,1,898.25,FRS STAFF AGENCY,03/10/2019,898.25,Infrastructure Team (ICT),Human Resources
800137737,HAYS SPECIALIST RECRUITMENT,1153064,1,"1,824.80",FRS STAFF AGENCY,03/10/2019,"1,824.80",Infrastructure Team (ICT),Human Resources
800137701,HAYS SPECIALIST RECRUITMENT,1153065,1,644.09,FRS STAFF AGENCY,03/10/2019,644.09,Communications,Human Resources
800137732,HAYS SPECIALIST RECRUITMENT,1153066,1,879.2,FRS STAFF AGENCY,03/10/2019,879.2,Enterprise Application Group (ICT),Human Resources
800137753,HAYS SPECIALIST RECRUITMENT,1153067,1,"1,092.77",FRS STAFF AGENCY,03/10/2019,"1,092.77",Technical and Service Support,Human Resources
800137697,HAYS SPECIALIST RECRUITMENT,1153068,1,606.2,FRS STAFF AGENCY,03/10/2019,606.2,Training and Professional Development,Human Resources
800137677,HAYS SPECIALIST RECRUITMENT,1153069,1,"1,326.95",FRS STAFF AGENCY,03/10/2019,"1,326.95",Procurement,Human Resources
800137734,HAYS SPECIALIST RECRUITMENT,1153070,1,509.04,FRS STAFF AGENCY,03/10/2019,509.04,Technical and Service Support,Human Resources
800137749,HAYS SPECIALIST RECRUITMENT,1153071,1,636.3,FRS STAFF AGENCY,03/10/2019,636.3,Technical and Service Support,Human Resources
800137696,HAYS SPECIALIST RECRUITMENT,1153072,1,757.75,FRS STAFF AGENCY,03/10/2019,757.75,Information Management (ICT),Human Resources
800137704,HAYS SPECIALIST RECRUITMENT,1153073,1,636.3,FRS STAFF AGENCY,03/10/2019,636.3,People Services,Human Resources
800137741,HAYS SPECIALIST RECRUITMENT,1153074,1,847.85,FRS STAFF AGENCY,03/10/2019,847.85,London Resilience Group,Human Resources
800137703,HAYS SPECIALIST RECRUITMENT,1153075,1,494.48,FRS STAFF AGENCY,03/10/2019,494.48,Community Safety,Human Resources
800137731,HAYS SPECIALIST RECRUITMENT,1153076,1,646.45,FRS STAFF AGENCY,03/10/2019,646.45,Fire Stations (South East),Human Resources
800137695,HAYS SPECIALIST RECRUITMENT,1153077,1,"1,017.66",FRS STAFF AGENCY,03/10/2019,"1,017.66",Training and Professional Development,Human Resources
800137710,HAYS SPECIALIST RECRUITMENT,1153078,1,636.3,FRS STAFF AGENCY,03/10/2019,636.3,Management Support,Human Resources
800137705,HAYS SPECIALIST RECRUITMENT,1153079,1,718.2,FRS STAFF AGENCY,03/10/2019,718.2,Operational Policy,Human Resources
800137751,HAYS SPECIALIST RECRUITMENT,1153080,1,"2,121.95",FRS STAFF AGENCY,03/10/2019,"2,121.95",Watch Structure Review,Human Resources
800137723,HAYS SPECIALIST RECRUITMENT,1153081,1,494.48,FRS STAFF AGENCY,03/10/2019,494.48,Management Support,Human Resources
800137680,HAYS SPECIALIST RECRUITMENT,1153082,1,744.97,FRS STAFF AGENCY,03/10/2019,744.97,General Counsel,Human Resources
800137728,HAYS SPECIALIST RECRUITMENT,1153083,1,506.52,FRS STAFF AGENCY,03/10/2019,506.52,Management Support,Human Resources
800137691,HAYS SPECIALIST RECRUITMENT,1153084,1,"1,671.44",FRS STAFF AGENCY,03/10/2019,"1,671.44",Procurement,Human Resources
800137690,HAYS SPECIALIST RECRUITMENT,1153085,1,"1,584.50",FRS STAFF AGENCY,03/10/2019,"1,584.50",Procurement,Human Resources
800137727,HAYS SPECIALIST RECRUITMENT,1153086,1,757.75,FRS STAFF AGENCY,03/10/2019,757.75,Procurement,Human Resources
800137738,HAYS SPECIALIST RECRUITMENT,1153087,1,757.75,FRS STAFF AGENCY,03/10/2019,757.75,Finance Services,Human Resources
800137711,HAYS SPECIALIST RECRUITMENT,1153088,1,716.8,FRS STAFF AGENCY,03/10/2019,716.8,Information Management (ICT),Human Resources
800137735,HAYS SPECIALIST RECRUITMENT,1153089,1,618.1,FRS STAFF AGENCY,03/10/2019,618.1,General Counsel,Human Resources
800137684,HAYS SPECIALIST RECRUITMENT,1153090,1,"1,236.20",FRS STAFF AGENCY,03/10/2019,"1,236.20",Grenfell Investigation Legal Costs,Human Resources
800137700,HAYS SPECIALIST RECRUITMENT,1153091,1,348.02,FRS STAFF AGENCY,03/10/2019,348.02,People Services,Human Resources
800137699,HAYS SPECIALIST RECRUITMENT,1153092,1,591.57,FRS STAFF AGENCY,03/10/2019,591.57,Training and Professional Development,Human Resources
800137756,HAYS SPECIALIST RECRUITMENT,1153093,1,381.78,FRS STAFF AGENCY,03/10/2019,381.78,Grenfell Investigation Team,Human Resources
800137755,HAYS SPECIALIST RECRUITMENT,1153095,1,494.48,FRS STAFF AGENCY,03/10/2019,494.48,Management Support,Human Resources
300919K,SILVERSANDS LIMITED,128605,1,"1,990.00",SOFTWARE COTS,03/10/2019,"1,990.00",Enterprise Application Group (ICT),ICT
270919K,G WORRALL & SON LIMITED,134981,1,263.45,FIXTURES & FITTINGS,03/10/2019,263.45,Technical and Service Support,Furniture & Soft Furnishings
142836,MR NIKOLAS CLARKE,137471,1,675,COUNSELS FEES,03/10/2019,675,Compensation Budgets,Legal Services
260919V,EBY Design LTD,145469,1,"10,300.00",GENERAL,03/10/2019,"10,300.00",CPO Quality Assurance,Consultancy
300919V,AMAS LTD,1834-912819,1,"5,475.00",RENTS,03/10/2019,"5,475.00",Training and Professional Development,Facilities & Management Services
300919V,XACT CONSULTANCY & TRAINING LT,19-1589,1,"28,520.00",TRAINING CONTRACT - OTHER,03/10/2019,"28,520.00",Training and Professional Development,Human Resources
300919K,ACE VEHICLE SERVICES LIMITED,190,1,320,OPERATIONAL EQUIP-PURCHASE,03/10/2019,320,Fire Stations (North West),Fire & Rescue
300919V,ATKINS LIMITED,19038085,1,"32,143.75",SOFTWARE COTS,03/10/2019,"32,143.75",Enterprise Application Group (ICT),ICT
260919K,TORQUE CALIBRATION LTD,1909101,1,301.77,PURCHASE,03/10/2019,496.77,Technical and Service Support,Furniture & Soft Furnishings
260919K,TORQUE CALIBRATION LTD,1909101,2,195,PURCHASE,03/10/2019,,Technical and Service Support,Furniture & Soft Furnishings
260919K,TORQUE CALIBRATION LTD,1909102,1,260,REPAIR & MAINTENANCE,03/10/2019,275,Technical and Service Support,Furniture & Soft Furnishings
260919K,TORQUE CALIBRATION LTD,1909102,2,15,REPAIR & MAINTENANCE,03/10/2019,,Technical and Service Support,Furniture & Soft Furnishings
260919V,DRON & WRIGHT,19976,1,506.25,CONSULTANTS,03/10/2019,"44,572.36",Technical and Service Support,Consultancy
260919V,DRON & WRIGHT,19976,2,"4,464.16",CONSULTANTS,03/10/2019,,Technical and Service Support,Consultancy
260919V,DRON & WRIGHT,19976,3,900,CONSULTANTS,03/10/2019,,Technical and Service Support,Consultancy
260919V,DRON & WRIGHT,19976,4,"3,237.62",CONSULTANTS,03/10/2019,,Technical and Service Support,Consultancy
260919V,DRON & WRIGHT,19976,5,"1,017.96",CONSULTANTS,03/10/2019,,Technical and Service Support,Consultancy
260919V,DRON & WRIGHT,19976,6,656.59,DISPOSAL COSTS-ESTATES AGENTS,03/10/2019,,Technical and Service Support,Facilities & Management S
260919V,DRON & WRIGHT,19976,7,"6,854.52",CONSULTANTS,03/10/2019,,Technical and Service Support,Facilities & Management S
260919V,DRON & WRIGHT,19976,8,"1,751.34",CONSULTANTS,03/10/2019,,Technical and Service Support,Facilities & Management S
260919V,DRON & WRIGHT,19976,9,786.92,CONSULTANTS,03/10/2019,,Technical and Service Support,Facilities & Management S
260919V,DRON & WRIGHT,19976,10,37.94,CONSULTANTS,03/10/2019,,Technical and Service Support,Facilities & Management S
260919V,DRON & WRIGHT,19976,11,"6,749.33",DISPOSAL COSTS-ESTATES AGENTS,03/10/2019,,Technical and Service Support,Facilities & Management S
260919V,DRON & WRIGHT,19976,12,"7,452.08",DISPOSAL COSTS-ESTATES AGENTS,03/10/2019,,Technical and Service Support,Facilities & Management S
260919V,DRON & WRIGHT,19976,13,114.31,PROFESSIONAL SERVICES,03/10/2019,,Technical and Service Support,Facilities & Management S
260919V,DRON & WRIGHT,19976,14,506.19,PROFESSIONAL SERVICES,03/10/2019,,Technical and Service Support,Facilities & Management S
260919V,DRON & WRIGHT,19976,15,"3,876.82",CONSULTANTS,03/10/2019,,Technical and Service Support,Facilities & Management S
260919V,DRON & WRIGHT,19976,16,"5,660.33",PROF FEES-MISCELLANEOUS,03/10/2019,,Technical and Service Support,Facilities & Management S
260919K,COTSWOLD OUTDOOR LTD,2.01906E+12,1,91.67,CLOTHING,03/10/2019,966.88,Operational Policy,Clothing
260919K,COTSWOLD OUTDOOR LTD,2.01906E+12,2,91.67,CLOTHING,03/10/2019,,Operational Policy,Clothing
260919K,COTSWOLD OUTDOOR LTD,2.01906E+12,3,91.67,CLOTHING,03/10/2019,,Operational Policy,Clothing
260919K,COTSWOLD OUTDOOR LTD,2.01906E+12,4,91.67,CLOTHING,03/10/2019,,Operational Policy,Clothing
260919K,COTSWOLD OUTDOOR LTD,2.01906E+12,5,91.67,CLOTHING,03/10/2019,,Operational Policy,Clothing
260919K,COTSWOLD OUTDOOR LTD,2.01906E+12,6,91.67,CLOTHING,03/10/2019,,Operational Policy,Clothing
260919K,COTSWOLD OUTDOOR LTD,2.01906E+12,7,70.83,CLOTHING,03/10/2019,,Operational Policy,Clothing
260919K,COTSWOLD OUTDOOR LTD,2.01906E+12,8,70.83,CLOTHING,03/10/2019,,Operational Policy,Clothing
260919K,COTSWOLD OUTDOOR LTD,2.01906E+12,9,70.83,CLOTHING,03/10/2019,,Operational Policy,Clothing
260919K,COTSWOLD OUTDOOR LTD,2.01906E+12,10,70.83,CLOTHING,03/10/2019,,Operational Policy,Clothing
260919K,COTSWOLD OUTDOOR LTD,2.01906E+12,11,70.83,CLOTHING,03/10/2019,,Operational Policy,Clothing
260919K,COTSWOLD OUTDOOR LTD,2.01906E+12,12,62.71,CLOTHING,03/10/2019,,Operational Policy,Clothing
260919K,DMC PRODUCTS AND MARKETING,2153,1,735.6,OPERATIONAL EQUIP-PURCHASE,03/10/2019,735.6,Procurement,Fire & Rescue
260919K,BSRIA LTD,218509,1,340,PROFESSIONAL DEVELOPMENT,03/10/2019,340,Training and Professional Development,Human Resources
260919K,ENTEL UK LTD,219174,1,435,RADIO,03/10/2019,444,Enterprise Application Group (ICT),ICT
260919K,ENTEL UK LTD,219174,2,9,RADIO,03/10/2019,,Enterprise Application Group (ICT),ICT
130919F,ELLE MEDIA GROUP,22218,1,926,GENERAL CONSUMABLES,03/10/2019,926,Technical and Service Support,Emergency Services
260919K,DRAEGER SAFETY UK LIMITED,2910178906,1,802.5,PROTECTIVE EQUIPT - PARTS,03/10/2019,"1,605.00",Technical and Service Support,Emergency Services
260919K,DRAEGER SAFETY UK LIMITED,2910178906,2,802.5,PROTECTIVE EQUIPT - PARTS,03/10/2019,,Technical and Service Support,Emergency Services
300919K,DRAEGER SAFETY UK LIMITED,2910178959,1,297,PROTECTIVE EQUIPT - PARTS,03/10/2019,792.28,Technical and Service Support,Emergency Services
300919K,DRAEGER SAFETY UK LIMITED,2910178959,2,39,PROTECTIVE EQUIPT - PARTS,03/10/2019,,Technical and Service Support,Emergency Services
300919K,DRAEGER SAFETY UK LIMITED,2910178959,3,3.28,PROTECTIVE EQUIPT - PARTS,03/10/2019,,Technical and Service Support,Emergency Services
300919K,DRAEGER SAFETY UK LIMITED,2910178959,4,441.3,PROTECTIVE EQUIPT - PARTS,03/10/2019,,Technical and Service Support,Emergency Services
300919K,DRAEGER SAFETY UK LIMITED,2910178959,5,11.7,PROTECTIVE EQUIPT - PARTS,03/10/2019,,Technical and Service Support,Emergency Services
300919K,DRAEGER SAFETY UK LIMITED,2910179294,1,268,PROTECTIVE EQUIPT - PARTS,03/10/2019,796.15,Technical and Service Support,Emergency Services
300919K,DRAEGER SAFETY UK LIMITED,2910179294,2,60,PROTECTIVE EQUIPT - PARTS,03/10/2019,,Technical and Service Support,Emergency Services
300919K,DRAEGER SAFETY UK LIMITED,2910179294,3,27,PROTECTIVE EQUIPT - PARTS,03/10/2019,,Technical and Service Support,Emergency Services
300919K,DRAEGER SAFETY UK LIMITED,2910179294,4,322.2,PROTECTIVE EQUIPT - PARTS,03/10/2019,,Technical and Service Support,Emergency Services
300919K,DRAEGER SAFETY UK LIMITED,2910179294,5,118.95,PROTECTIVE EQUIPT - PARTS,03/10/2019,,Technical and Service Support,Emergency Services
130919F,DRAEGER SAFETY UK LIMITED,2910179826,1,308,REPAIR & MAINTENANCE,03/10/2019,325,Technical and Service Support,Furniture & Soft Furnishings
130919F,DRAEGER SAFETY UK LIMITED,2910179826,2,17,REPAIR & MAINTENANCE,03/10/2019,,Technical and Service Support,Furniture & Soft Furnishings
180919G,DRAEGER SAFETY UK LIMITED,2910180319,1,549.9,PROTECTIVE EQUIPT - PARTS,03/10/2019,549.9,Technical and Service Support,Emergency Services
260919K,WATERFRONT MANUFACTURING LTD,32439,1,228.09,UNIFORMS,03/10/2019,412.7,Fire Stations (South East),Clothing
260919K,WATERFRONT MANUFACTURING LTD,32439,2,184.61,UNIFORMS,03/10/2019,,Fire Stations (South East),Clothing
260919K,WATERFRONT MANUFACTURING LTD,32486,1,209.59,UNIFORMS,03/10/2019,394.2,Fire Stations (South East),Clothing
260919K,WATERFRONT MANUFACTURING LTD,32486,2,184.61,UNIFORMS,03/10/2019,,Fire Stations (South East),Clothing
260919K,WATERFRONT MANUFACTURING LTD,32487,1,209.59,UNIFORMS,03/10/2019,394.2,Fire Stations (North East),Clothing
260919K,WATERFRONT MANUFACTURING LTD,32487,2,184.61,UNIFORMS,03/10/2019,,Fire Stations (North East),Clothing
300919K,WATERFRONT MANUFACTURING LTD,32490,1,209.59,UNIFORMS,03/10/2019,394.2,Fire Stations (North East),Clothing
300919K,WATERFRONT MANUFACTURING LTD,32490,2,184.61,UNIFORMS,03/10/2019,,Fire Stations (North East),Clothing
260919K,DELTOR COMMUNICATIONS LTD,40816,1,318,GENERAL CONSUMABLES,03/10/2019,318,Technical and Service Support,Emergency Services
270919K,THE BRAND ALCHEMISTS,4497,1,58,COMMUNITY RELATIONS,03/10/2019,"1,134.00",Community Safety,Facilities & Management Services
270919K,THE BRAND ALCHEMISTS,4497,2,"1,076.00",COMMUNITY RELATIONS,03/10/2019,,Community Safety,Facilities & Management Services
300919K,THE BRAND ALCHEMISTS,4503,1,"1,100.00",COMMUNITY RELATIONS,03/10/2019,"1,180.00",Community Safety,Facilities & Management Services
300919K,THE BRAND ALCHEMISTS,4503,2,60,COMMUNITY RELATIONS,03/10/2019,,Community Safety,Facilities & Management Services
300919K,THE BRAND ALCHEMISTS,4503,3,20,COMMUNITY RELATIONS,03/10/2019,,Community Safety,Facilities & Management Services
260919K,LEASEPLAN UK LIMITED,505616584,1,325,ROAD TAX,03/10/2019,325,Procurement,Vehicle Management
270919K,THE KINGDOM GROUP LT T/A KINGS,51544,1,579.04,FRS STAFF AGENCY,03/10/2019,579.04,Communications,Human Resources
800137787,SPORTSAFE UK LTD,553610,1,463.57,REACTIVE GYM EQUIPMENT,03/10/2019,463.57,Technical and Service Support,Sports & Playground Equipment & Maintenance
142836,BRITISH GAS BUSINESS,580205506,1,"2,148.27",ELECTRICITY,03/10/2019,"2,148.27",Technical and Service Support,Utilities
142836,BRITISH GAS BUSINESS,640225988,1,"2,199.11",ELECTRICITY,03/10/2019,"2,199.11",Technical and Service Support,Utilities
270919K,STORM TECHNOLOGIES,656513,1,700,MAINTENANCE & SUPPORT,03/10/2019,700,Infrastructure Team (ICT),ICT
300919V,VIGILANCE PROPERTIES,9229,1,"7,500.00",PREMISES SECURITY,03/10/2019,"7,500.00",Technical and Service Support,Facilities & Management Services
300919V,VIGILANCE PROPERTIES,9230,1,"6,480.00",PREMISES SECURITY,03/10/2019,"6,480.00",Technical and Service Support,Facilities & Management Services
250919K,AQA EDUCATION,92359,1,"6,628.15",COMMUNITY RELATIONS,03/10/2019,"6,628.15",Community Safety,Facilities & Management Services
260919K,PLASTOR,92490,1,483.84,OPERATIONAL EQUIP-PURCHASE,03/10/2019,483.84,Operational Resilience,Fire & Rescue
260919K,ASIAN FIRE SERVICE ASSOCIATION,AFSAWNC2019-20,1,453,PROFESSIONAL DEVELOPMENT,03/10/2019,906,Training and Professional Development,Human Resources
260919K,ASIAN FIRE SERVICE ASSOCIATION,AFSAWNC2019-20,2,453,PROFESSIONAL DEVELOPMENT,03/10/2019,,Training and Professional Development,Human Resources
260919K,PITNEY BOWES PURCHASE POWER,BG795631,1,20,POSTAL SERVICES,03/10/2019,"4,044.41",Information Management (ICT),Mail Services
260919K,PITNEY BOWES PURCHASE POWER,BG795631,2,"1,140.87",POSTAL SERVICES,03/10/2019,,Information Management (ICT),Mail Services
260919K,PITNEY BOWES PURCHASE POWER,BG795631,3,"2,883.54",POSTAL SERVICES,03/10/2019,,Information Management (ICT),Mail Services
270919K,THAMES WATER UTILITIES LTD,CBA1903848,1,348,CURRENT HYDRANT COSTS,03/10/2019,348,Procurement,Works - Construction
270919K,THAMES WATER UTILITIES LTD,CBA1903849,1,348,CURRENT HYDRANT COSTS,03/10/2019,348,Procurement,Works - Construction
270919K,THAMES WATER UTILITIES LTD,CBA1903850,1,348,CURRENT HYDRANT COSTS,03/10/2019,348,Procurement,Works - Construction
270919K,THAMES WATER UTILITIES LTD,CBA1903853,1,348,CURRENT HYDRANT COSTS,03/10/2019,348,Procurement,Works - Construction
270919K,THAMES WATER UTILITIES LTD,CBA1903854,1,348,CURRENT HYDRANT COSTS,03/10/2019,348,Procurement,Works - Construction
270919K,THAMES WATER UTILITIES LTD,CBA1903855,1,348,CURRENT HYDRANT COSTS,03/10/2019,348,Procurement,Works - Construction
270919K,THAMES WATER UTILITIES LTD,CBA1903857,1,348,CURRENT HYDRANT COSTS,03/10/2019,348,Procurement,Works - Construction
300919K,THAMES WATER UTILITIES LTD,CBA1904275,1,348,CURRENT HYDRANT COSTS,03/10/2019,348,Procurement,Works - Construction
300919K,THAMES WATER UTILITIES LTD,CBA1904276,1,"1,273.00",CURRENT HYDRANT COSTS,03/10/2019,"1,273.00",Procurement,Works - Construction
300919K,THAMES WATER UTILITIES LTD,CBA1904277,1,348,CURRENT HYDRANT COSTS,03/10/2019,348,Procurement,Works - Construction
300919K,THAMES WATER UTILITIES LTD,CBA1904280,1,"1,273.00",CURRENT HYDRANT COSTS,03/10/2019,"1,273.00",Procurement,Works - Construction
300919K,THAMES WATER UTILITIES LTD,CBA1904281,1,256,CURRENT HYDRANT COSTS,03/10/2019,256,Procurement,Works - Construction
300919K,THAMES WATER UTILITIES LTD,CBA1904283,1,"1,273.00",CURRENT HYDRANT COSTS,03/10/2019,"1,273.00",Procurement,Works - Construction
300919K,THAMES WATER UTILITIES LTD,CBA1904285,1,348,CURRENT HYDRANT COSTS,03/10/2019,348,Procurement,Works - Construction
300919K,THAMES WATER UTILITIES LTD,CBA1904288,1,348,CURRENT HYDRANT COSTS,03/10/2019,348,Procurement,Works - Construction
300919K,THAMES WATER UTILITIES LTD,CBA1904289,1,348,CURRENT HYDRANT COSTS,03/10/2019,348,Procurement,Works - Construction
300919K,THAMES WATER UTILITIES LTD,CBA1904290,1,"1,273.00",CURRENT HYDRANT COSTS,03/10/2019,"1,273.00",Procurement,Works - Construction
300919K,THAMES WATER UTILITIES LTD,CBA1904291,1,348,CURRENT HYDRANT COSTS,03/10/2019,348,Procurement,Works - Construction
300919K,THAMES WATER UTILITIES LTD,CBA1904292,1,"1,273.00",CURRENT HYDRANT COSTS,03/10/2019,"1,273.00",Procurement,Works - Construction
300919K,THAMES WATER UTILITIES LTD,CBA1904297,1,348,CURRENT HYDRANT COSTS,03/10/2019,348,Procurement,Works - Construction
270919K,THAMES WATER UTILITIES LTD,CBA1904301,1,"1,273.00",CURRENT HYDRANT COSTS,03/10/2019,"1,273.00",Procurement,Works - Construction
270919K,THAMES WATER UTILITIES LTD,CBA1904302,1,348,CURRENT HYDRANT COSTS,03/10/2019,348,Procurement,Works - Construction
270919K,THAMES WATER UTILITIES LTD,CBA1904303,1,348,CURRENT HYDRANT COSTS,03/10/2019,348,Procurement,Works - Construction
270919K,THAMES WATER UTILITIES LTD,CBA1904304,1,"1,273.00",CURRENT HYDRANT COSTS,03/10/2019,"1,273.00",Procurement,Works - Construction
270919K,THAMES WATER UTILITIES LTD,CBA1904305,1,"1,273.00",CURRENT HYDRANT COSTS,03/10/2019,"1,273.00",Procurement,Works - Construction
270919K,THAMES WATER UTILITIES LTD,CBA1904306,1,348,CURRENT HYDRANT COSTS,03/10/2019,348,Procurement,Works - Construction
270919K,THAMES WATER UTILITIES LTD,CBA1904307,1,348,CURRENT HYDRANT COSTS,03/10/2019,348,Procurement,Works - Construction
270919K,THAMES WATER UTILITIES LTD,CBA1904308,1,"1,273.00",CURRENT HYDRANT COSTS,03/10/2019,"1,273.00",Procurement,Works - Construction
270919K,THAMES WATER UTILITIES LTD,CBA1904313,1,348,CURRENT HYDRANT COSTS,03/10/2019,348,Procurement,Works - Construction
270919K,THAMES WATER UTILITIES LTD,CBA19054309,1,"1,273.00",CURRENT HYDRANT COSTS,03/10/2019,"1,273.00",Procurement,Works - Construction
270919K,COMPASS GROUP LTD,I003979879,1,"1,482.76",CATERING EQUIP SL,03/10/2019,"2,952.59",Technical and Service Support,Catering
270919K,COMPASS GROUP LTD,I003979879,2,60.41,REFRESHMENTS,03/10/2019,,Technical and Service Support,Catering
270919K,COMPASS GROUP LTD,I003979879,3,822.4,CATERING,03/10/2019,,Technical and Service Support,Catering
270919K,COMPASS GROUP LTD,I003979879,4,587.02,CATERING EQUIP SL,03/10/2019,,Technical and Service Support,Catering
270919K,COMPASS GROUP LTD,I004099202,1,"1,482.76",CATERING EQUIP SL,03/10/2019,"3,238.52",Technical and Service Support,Catering
270919K,COMPASS GROUP LTD,I004099202,2,60.41,REFRESHMENTS,03/10/2019,,Technical and Service Support,Catering
270919K,COMPASS GROUP LTD,I004099202,3,"1,108.33",CATERING,03/10/2019,,Technical and Service Support,Catering
270919K,COMPASS GROUP LTD,I004099202,4,587.02,CATERING EQUIP SL,03/10/2019,,Technical and Service Support,Catering
300919K,HALL FUELS,I11248801,1,"2,273.70",FUEL,03/10/2019,"2,273.70",Fire Stations (North East),Vehicle Management
200919K,ENERGY AUDITING AGENCY LTD,INV-4628,1,326,CONSULTANTS,03/10/2019,326,Technical and Service Support,Consultancy
170919V,ENVISION CONCEPTS LIMITED,INV-57510,1,"6,850.00",REACTIVE SMALL WORKS AND PROJ,03/10/2019,"6,850.00",Technical and Service Support,Works - Construction
800137511,NPS SHOES LTD,INV-9548,1,35.25,FOOTWEAR,03/10/2019,"2,127.75",Fire Stations (South East),Clothing
800137511,NPS SHOES LTD,INV-9548,2,35.25,FOOTWEAR,03/10/2019,,Fire Stations (North West),Clothing
800137511,NPS SHOES LTD,INV-9548,3,35.25,FOOTWEAR,03/10/2019,,Fire Stations (South West),Clothing
800137511,NPS SHOES LTD,INV-9548,4,39,FOOTWEAR,03/10/2019,,Fire Stations (North West),Clothing
800137511,NPS SHOES LTD,INV-9548,5,39,FOOTWEAR,03/10/2019,,Fire Stations (South West),Clothing
800137511,NPS SHOES LTD,INV-9548,6,35.25,FOOTWEAR,03/10/2019,,Fire Stations (South West),Clothing
800137511,NPS SHOES LTD,INV-9548,7,70.5,FOOTWEAR,03/10/2019,,Firefighter Trainees,Clothing
800137511,NPS SHOES LTD,INV-9548,8,70.5,FOOTWEAR,03/10/2019,,Firefighter Trainees,Clothing
800137511,NPS SHOES LTD,INV-9548,9,35.25,FOOTWEAR,03/10/2019,,Fire Stations (North West),Clothing
800137511,NPS SHOES LTD,INV-9548,10,35.25,FOOTWEAR,03/10/2019,,Fire Stations (South West),Clothing
800137511,NPS SHOES LTD,INV-9548,11,35.25,FOOTWEAR,03/10/2019,,Fire Stations (North East),Clothing
800137511,NPS SHOES LTD,INV-9548,12,70.5,FOOTWEAR,03/10/2019,,Firefighter Trainees,Clothing
800137511,NPS SHOES LTD,INV-9548,13,35.25,FOOTWEAR,03/10/2019,,Fire Stations (South East),Clothing
800137511,NPS SHOES LTD,INV-9548,14,35.25,FOOTWEAR,03/10/2019,,Fire Stations (North West),Clothing
800137511,NPS SHOES LTD,INV-9548,15,35.25,FOOTWEAR,03/10/2019,,Fire Stations (North West),Clothing
800137511,NPS SHOES LTD,INV-9548,16,35.25,FOOTWEAR,03/10/2019,,Fire Stations (North West),Clothing
800137511,NPS SHOES LTD,INV-9548,17,35.25,FOOTWEAR,03/10/2019,,Fire Stations (North East),Clothing
800137511,NPS SHOES LTD,INV-9548,18,70.5,FOOTWEAR,03/10/2019,,Firefighter Trainees,Clothing
800137511,NPS SHOES LTD,INV-9548,19,35.25,FOOTWEAR,03/10/2019,,Fire Stations (North West),Clothing
800137511,NPS SHOES LTD,INV-9548,20,35.25,FOOTWEAR,03/10/2019,,Fire Stations (South East),Clothing
800137511,NPS SHOES LTD,INV-9548,21,35.25,FOOTWEAR,03/10/2019,,Fire Stations (North West),Clothing
800137511,NPS SHOES LTD,INV-9548,22,70.5,FOOTWEAR,03/10/2019,,Firefighter Trainees,Clothing
800137511,NPS SHOES LTD,INV-9548,23,35.25,FOOTWEAR,03/10/2019,,Fire Stations (North West),Clothing
800137511,NPS SHOES LTD,INV-9548,24,35.25,FOOTWEAR,03/10/2019,,Fire Stations (North West),Clothing
800137511,NPS SHOES LTD,INV-9548,25,35.25,FOOTWEAR,03/10/2019,,Technical and Service Support,Clothing
800137511,NPS SHOES LTD,INV-9548,26,70.5,FOOTWEAR,03/10/2019,,Firefighter Trainees,Clothing
800137511,NPS SHOES LTD,INV-9548,27,70.5,FOOTWEAR,03/10/2019,,Firefighter Trainees,Clothing
800137511,NPS SHOES LTD,INV-9548,28,35.25,FOOTWEAR,03/10/2019,,Fire Stations (South East),Clothing
800137511,NPS SHOES LTD,INV-9548,29,35.25,FOOTWEAR,03/10/2019,,Fire Stations (North West),Clothing
800137511,NPS SHOES LTD,INV-9548,30,48,FOOTWEAR,03/10/2019,,Fire Stations (North West),Clothing
800137511,NPS SHOES LTD,INV-9548,31,48,FOOTWEAR,03/10/2019,,Control and Mobilising,Clothing
800137511,NPS SHOES LTD,INV-9548,32,35.25,FOOTWEAR,03/10/2019,,Fire Stations (North West),Clothing
800137511,NPS SHOES LTD,INV-9548,33,35.25,FOOTWEAR,03/10/2019,,Fire Stations (South West),Clothing
800137511,NPS SHOES LTD,INV-9548,34,35.25,FOOTWEAR,03/10/2019,,Fire Safety Delivery,Clothing
800137511,NPS SHOES LTD,INV-9548,35,39,FOOTWEAR,03/10/2019,,Fire Stations (South East),Clothing
800137511,NPS SHOES LTD,INV-9548,36,39,FOOTWEAR,03/10/2019,,Fire Stations (North East),Clothing
800137511,NPS SHOES LTD,INV-9548,37,39,FOOTWEAR,03/10/2019,,Fire Stations (South West),Clothing
800137511,NPS SHOES LTD,INV-9548,38,39,CLOTHING,03/10/2019,,Fire Stations (South East),Clothing
800137511,NPS SHOES LTD,INV-9548,39,70.5,FOOTWEAR,03/10/2019,,Firefighter Trainees,Clothing
800137511,NPS SHOES LTD,INV-9548,40,35.25,FOOTWEAR,03/10/2019,,Fire Stations (North East),Clothing
800137511,NPS SHOES LTD,INV-9548,41,35.25,FOOTWEAR,03/10/2019,,Fire Stations (North West),Clothing
800137511,NPS SHOES LTD,INV-9548,42,70.5,FOOTWEAR,03/10/2019,,Firefighter Trainees,Clothing
800137511,NPS SHOES LTD,INV-9548,43,70.5,FOOTWEAR,03/10/2019,,Firefighter Trainees,Clothing
800137511,NPS SHOES LTD,INV-9548,44,70.5,FOOTWEAR,03/10/2019,,Firefighter Trainees,Clothing
800137511,NPS SHOES LTD,INV-9548,45,70.5,FOOTWEAR,03/10/2019,,Firefighter Trainees,Clothing
800137511,NPS SHOES LTD,INV-9548,46,35.25,FOOTWEAR,03/10/2019,,Fire Stations (North East),Clothing
800137511,NPS SHOES LTD,INV-9548,47,35.25,FOOTWEAR,03/10/2019,,Fire Stations (South West),Clothing
142834,MR STEPHEN WALSH,INVSW123,1,"7,837.50",LEGAL PROFESSIONAL FEES-GENERL,03/10/2019,"7,837.50",Grenfell Investigation Legal Costs,Legal Services
142836,MR STEPHEN WALSH,INVSW124,1,"18,470.83",LEGAL PROFESSIONAL FEES-GENERL,03/10/2019,"18,470.83",Grenfell Investigation Legal Costs,Legal Services
260919K,DCJ CONNECTED SOLUTIONS LTD,LFB-023,1,"4,040.00",SOFTWARE BESPOKE,03/10/2019,"4,040.00",Enterprise Application Group (ICT),ICT
270919K,ECO WMT GROUP LIMITED,LFB001,1,229.8,REACTIVE CLEANING,03/10/2019,294.6,Technical and Service Support,Cleaning & Janitorial
270919K,ECO WMT GROUP LIMITED,LFB001,2,64.8,REACTIVE CLEANING,03/10/2019,,Technical and Service Support,Cleaning & Janitorial
800137621,INTERSERVE ( FACILITIES MGMT),MANF025879,1,"1,601.99",PLANNED CLEANING,03/10/2019,"116,913.30",Technical and Service Support,Cleaning & Janitorial
800137621,INTERSERVE ( FACILITIES MGMT),MANF025879,2,766.68,PLANNED CLEANING,03/10/2019,,Technical and Service Support,Cleaning & Janitorial
800137621,INTERSERVE ( FACILITIES MGMT),MANF025879,3,759.3,PLANNED CLEANING,03/10/2019,,Technical and Service Support,Cleaning & Janitorial
800137621,INTERSERVE ( FACILITIES MGMT),MANF025879,4,754.67,PLANNED CLEANING,03/10/2019,,Technical and Service Support,Cleaning & Janitorial
800137621,INTERSERVE ( FACILITIES MGMT),MANF025879,5,"1,315.67",PLANNED CLEANING,03/10/2019,,Technical and Service Support,Cleaning & Janitorial
800137621,INTERSERVE ( FACILITIES MGMT),MANF025879,6,882.41,PLANNED CLEANING,03/10/2019,,Technical and Service Support,Cleaning & Janitorial
800137621,INTERSERVE ( FACILITIES MGMT),MANF025879,7,619.64,PLANNED CLEANING,03/10/2019,,Technical and Service Support,Cleaning & Janitorial
800137621,INTERSERVE ( FACILITIES MGMT),MANF025879,8,760.72,PLANNED CLEANING,03/10/2019,,Technical and Service Support,Cleaning & Janitorial
800137621,INTERSERVE ( FACILITIES MGMT),MANF025879,9,"1,097.67",PLANNED CLEANING,03/10/2019,,Technical and Service Support,Cleaning & Janitorial
800137621,INTERSERVE ( FACILITIES MGMT),MANF025879,10,577.65,PLANNED CLEANING,03/10/2019,,Technical and Service Support,Cleaning & Janitorial
800137621,INTERSERVE ( FACILITIES MGMT),MANF025879,11,"1,400.89",PLANNED CLEANING,03/10/2019,,Technical and Service Support,Cleaning & Janitorial
800137621,INTERSERVE ( FACILITIES MGMT),MANF025879,12,523.83,PLANNED CLEANING,03/10/2019,,Technical and Service Support,Cleaning & Janitorial
800137621,INTERSERVE ( FACILITIES MGMT),MANF025879,13,505.9,PLANNED CLEANING,03/10/2019,,Technical and Service Support,Cleaning & Janitorial
800137621,INTERSERVE ( FACILITIES MGMT),MANF025879,14,607.4,PLANNED CLEANING,03/10/2019,,Technical and Service Support,Cleaning & Janitorial
800137621,INTERSERVE ( FACILITIES MGMT),MANF025879,15,"2,058.99",PLANNED CLEANING,03/10/2019,,Technical and Service Support,Cleaning & Janitorial
800137621,INTERSERVE ( FACILITIES MGMT),MANF025879,16,587.84,PLANNED CLEANING,03/10/2019,,Technical and Service Support,Cleaning & Janitorial
800137621,INTERSERVE ( FACILITIES MGMT),MANF025879,17,783.15,PLANNED CLEANING,03/10/2019,,Technical and Service Support,Cleaning & Janitorial
800137621,INTERSERVE ( FACILITIES MGMT),MANF025879,18,"1,538.07",PLANNED CLEANING,03/10/2019,,Technical and Service Support,Cleaning & Janitorial
800137621,INTERSERVE ( FACILITIES MGMT),MANF025879,19,823.47,PLANNED CLEANING,03/10/2019,,Technical and Service Support,Cleaning & Janitorial
800137621,INTERSERVE ( FACILITIES MGMT),MANF025879,20,"1,848.82",PLANNED CLEANING,03/10/2019,,Technical and Service Support,Cleaning & Janitorial
800137621,INTERSERVE ( FACILITIES MGMT),MANF025879,21,808.87,PLANNED CLEANING,03/10/2019,,Technical and Service Support,Cleaning & Janitorial
800137621,INTERSERVE ( FACILITIES MGMT),MANF025879,22,787.14,PLANNED CLEANING,03/10/2019,,Technical and Service Support,Cleaning & Janitorial
800137621,INTERSERVE ( FACILITIES MGMT),MANF025879,23,577.23,PLANNED CLEANING,03/10/2019,,Technical and Service Support,Cleaning & Janitorial
800137621,INTERSERVE ( FACILITIES MGMT),MANF025879,24,"1,675.21",PLANNED CLEANING,03/10/2019,,Technical and Service Support,Cleaning & Janitorial
800137621,INTERSERVE ( FACILITIES MGMT),MANF025879,25,"2,738.18",PLANNED CLEANING,03/10/2019,,Technical and Service Support,Cleaning & Janitorial
800137621,INTERSERVE ( FACILITIES MGMT),MANF025879,26,52.3,PLANNED CLEANING,03/10/2019,,Technical and Service Support,Cleaning & Janitorial
800137621,INTERSERVE ( FACILITIES MGMT),MANF025879,27,157.55,PLANNED CLEANING,03/10/2019,,Technical and Service Support,Cleaning & Janitorial
800137621,INTERSERVE ( FACILITIES MGMT),MANF025879,28,757.02,PLANNED CLEANING,03/10/2019,,Technical and Service Support,Cleaning & Janitorial
800137621,INTERSERVE ( FACILITIES MGMT),MANF025879,29,949.53,PLANNED CLEANING,03/10/2019,,Technical and Service Support,Cleaning & Janitorial
800137621,INTERSERVE ( FACILITIES MGMT),MANF025879,30,"1,048.50",PLANNED CLEANING,03/10/2019,,Technical and Service Support,Cleaning & Janitorial
800137621,INTERSERVE ( FACILITIES MGMT),MANF025879,31,830.71,PLANNED CLEANING,03/10/2019,,Technical and Service Support,Cleaning & Janitorial
800137621,INTERSERVE ( FACILITIES MGMT),MANF025879,32,407.07,PLANNED CLEANING,03/10/2019,,Technical and Service Support,Cleaning & Janitorial
800137621,INTERSERVE ( FACILITIES MGMT),MANF025879,33,779.04,PLANNED CLEANING,03/10/2019,,Technical and Service Support,Cleaning & Janitorial
800137621,INTERSERVE ( FACILITIES MGMT),MANF025879,34,755.91,PLANNED CLEANING,03/10/2019,,Technical and Service Support,Cleaning & Janitorial
800137621,INTERSERVE ( FACILITIES MGMT),MANF025879,35,752.83,PLANNED CLEANING,03/10/2019,,Technical and Service Support,Cleaning & Janitorial
800137621,INTERSERVE ( FACILITIES MGMT),MANF025879,36,"1,843.05",PLANNED CLEANING,03/10/2019,,Technical and Service Support,Cleaning & Janitorial
800137621,INTERSERVE ( FACILITIES MGMT),MANF025879,37,951.08,PLANNED CLEANING,03/10/2019,,Technical and Service Support,Cleaning & Janitorial
800137621,INTERSERVE ( FACILITIES MGMT),MANF025879,38,"1,530.03",PLANNED CLEANING,03/10/2019,,Technical and Service Support,Cleaning & Janitorial
800137621,INTERSERVE ( FACILITIES MGMT),MANF025879,39,746.88,PLANNED CLEANING,03/10/2019,,Technical and Service Support,Cleaning & Janitorial
800137621,INTERSERVE ( FACILITIES MGMT),MANF025879,40,799.82,PLANNED CLEANING,03/10/2019,,Technical and Service Support,Cleaning & Janitorial
800137621,INTERSERVE ( FACILITIES MGMT),MANF025879,41,988.45,PLANNED CLEANING,03/10/2019,,Technical and Service Support,Cleaning & Janitorial
800137621,INTERSERVE ( FACILITIES MGMT),MANF025879,42,"1,626.83",PLANNED CLEANING,03/10/2019,,Technical and Service Support,Cleaning & Janitorial
800137621,INTERSERVE ( FACILITIES MGMT),MANF025879,43,"1,900.39",PLANNED CLEANING,03/10/2019,,Technical and Service Support,Cleaning & Janitorial
800137621,INTERSERVE ( FACILITIES MGMT),MANF025879,44,764.14,PLANNED CLEANING,03/10/2019,,Technical and Service Support,Cleaning & Janitorial
800137621,INTERSERVE ( FACILITIES MGMT),MANF025879,45,596.04,PLANNED CLEANING,03/10/2019,,Technical and Service Support,Cleaning & Janitorial
800137621,INTERSERVE ( FACILITIES MGMT),MANF025879,46,826.36,PLANNED CLEANING,03/10/2019,,Technical and Service Support,Cleaning & Janitorial
800137621,INTERSERVE ( FACILITIES MGMT),MANF025879,47,"1,641.15",PLANNED CLEANING,03/10/2019,,Technical and Service Support,Cleaning & Janitorial
800137621,INTERSERVE ( FACILITIES MGMT),MANF025879,48,585.26,PLANNED CLEANING,03/10/2019,,Technical and Service Support,Cleaning & Janitorial
800137621,INTERSERVE ( FACILITIES MGMT),MANF025879,49,"1,211.26",PLANNED CLEANING,03/10/2019,,Technical and Service Support,Cleaning & Janitorial
800137621,INTERSERVE ( FACILITIES MGMT),MANF025879,50,411.1,PLANNED CLEANING,03/10/2019,,Technical and Service Support,Cleaning & Janitorial
800137621,INTERSERVE ( FACILITIES MGMT),MANF025879,51,"1,240.67",PLANNED CLEANING,03/10/2019,,Technical and Service Support,Cleaning & Janitorial
800137621,INTERSERVE ( FACILITIES MGMT),MANF025879,52,"1,389.54",PLANNED CLEANING,03/10/2019,,Technical and Service Support,Cleaning & Janitorial
800137621,INTERSERVE ( FACILITIES MGMT),MANF025879,53,650.28,PLANNED CLEANING,03/10/2019,,Technical and Service Support,Cleaning & Janitorial
800137621,INTERSERVE ( FACILITIES MGMT),MANF025879,54,941.25,PLANNED CLEANING,03/10/2019,,Technical and Service Support,Cleaning & Janitorial
800137621,INTERSERVE ( FACILITIES MGMT),MANF025879,55,"1,122.31",PLANNED CLEANING,03/10/2019,,Technical and Service Support,Cleaning & Janitorial
800137621,INTERSERVE ( FACILITIES MGMT),MANF025879,56,747.65,PLANNED CLEANING,03/10/2019,,Technical and Service Support,Cleaning & Janitorial
800137621,INTERSERVE ( FACILITIES MGMT),MANF025879,57,"2,639.85",PLANNED CLEANING,03/10/2019,,Technical and Service Support,Cleaning & Janitorial
800137621,INTERSERVE ( FACILITIES MGMT),MANF025879,58,829.7,PLANNED CLEANING,03/10/2019,,Technical and Service Support,Cleaning & Janitorial
800137621,INTERSERVE ( FACILITIES MGMT),MANF025879,59,"1,696.83",PLANNED CLEANING,03/10/2019,,Technical and Service Support,Cleaning & Janitorial
800137621,INTERSERVE ( FACILITIES MGMT),MANF025879,60,749.7,PLANNED CLEANING,03/10/2019,,Technical and Service Support,Cleaning & Janitorial
800137621,INTERSERVE ( FACILITIES MGMT),MANF025879,61,"1,631.19",PLANNED CLEANING,03/10/2019,,Technical and Service Support,Cleaning & Janitorial
800137621,INTERSERVE ( FACILITIES MGMT),MANF025879,62,"1,631.19",PLANNED CLEANING,03/10/2019,,Technical and Service Support,Cleaning & Janitorial
800137621,INTERSERVE ( FACILITIES MGMT),MANF025879,63,"1,139.11",PLANNED CLEANING,03/10/2019,,Technical and Service Support,Cleaning & Janitorial
800137621,INTERSERVE ( FACILITIES MGMT),MANF025879,64,759.73,PLANNED CLEANING,03/10/2019,,Technical and Service Support,Cleaning & Janitorial
800137621,INTERSERVE ( FACILITIES MGMT),MANF025879,65,801.85,PLANNED CLEANING,03/10/2019,,Technical and Service Support,Cleaning & Janitorial
800137621,INTERSERVE ( FACILITIES MGMT),MANF025879,66,853.51,PLANNED CLEANING,03/10/2019,,Technical and Service Support,Cleaning & Janitorial
800137621,INTERSERVE ( FACILITIES MGMT),MANF025879,67,895.78,PLANNED CLEANING,03/10/2019,,Technical and Service Support,Cleaning & Janitorial
800137621,INTERSERVE ( FACILITIES MGMT),MANF025879,68,400.93,PLANNED CLEANING,03/10/2019,,Technical and Service Support,Cleaning & Janitorial
800137621,INTERSERVE ( FACILITIES MGMT),MANF025879,69,"1,123.20",PLANNED CLEANING,03/10/2019,,Technical and Service Support,Cleaning & Janitorial
800137621,INTERSERVE ( FACILITIES MGMT),MANF025879,70,988.68,PLANNED CLEANING,03/10/2019,,Technical and Service Support,Cleaning & Janitorial
800137621,INTERSERVE ( FACILITIES MGMT),MANF025879,71,"1,129.03",PLANNED CLEANING,03/10/2019,,Technical and Service Support,Cleaning & Janitorial
800137621,INTERSERVE ( FACILITIES MGMT),MANF025879,72,582.07,PLANNED CLEANING,03/10/2019,,Technical and Service Support,Cleaning & Janitorial
800137621,INTERSERVE ( FACILITIES MGMT),MANF025879,73,759.78,PLANNED CLEANING,03/10/2019,,Technical and Service Support,Cleaning & Janitorial
800137621,INTERSERVE ( FACILITIES MGMT),MANF025879,74,"1,219.81",PLANNED CLEANING,03/10/2019,,Technical and Service Support,Cleaning & Janitorial
800137621,INTERSERVE ( FACILITIES MGMT),MANF025879,75,463.66,PLANNED CLEANING,03/10/2019,,Technical and Service Support,Cleaning & Janitorial
800137621,INTERSERVE ( FACILITIES MGMT),MANF025879,76,"1,225.08",PLANNED CLEANING,03/10/2019,,Technical and Service Support,Cleaning & Janitorial
800137621,INTERSERVE ( FACILITIES MGMT),MANF025879,77,"2,710.61",PLANNED CLEANING,03/10/2019,,Technical and Service Support,Cleaning & Janitorial
800137621,INTERSERVE ( FACILITIES MGMT),MANF025879,78,768.39,PLANNED CLEANING,03/10/2019,,Technical and Service Support,Cleaning & Janitorial
800137621,INTERSERVE ( FACILITIES MGMT),MANF025879,79,"4,914.92",PLANNED CLEANING,03/10/2019,,Technical and Service Support,Cleaning & Janitorial
800137621,INTERSERVE ( FACILITIES MGMT),MANF025879,80,"2,405.18",PLANNED CLEANING,03/10/2019,,Technical and Service Support,Cleaning & Janitorial
800137621,INTERSERVE ( FACILITIES MGMT),MANF025879,81,576.58,PLANNED CLEANING,03/10/2019,,Technical and Service Support,Cleaning & Janitorial
800137621,INTERSERVE ( FACILITIES MGMT),MANF025879,82,592.11,PLANNED CLEANING,03/10/2019,,Technical and Service Support,Cleaning & Janitorial
800137621,INTERSERVE ( FACILITIES MGMT),MANF025879,83,"1,204.47",PLANNED CLEANING,03/10/2019,,Technical and Service Support,Cleaning & Janitorial
800137621,INTERSERVE ( FACILITIES MGMT),MANF025879,84,794.49,PLANNED CLEANING,03/10/2019,,Technical and Service Support,Cleaning & Janitorial
800137621,INTERSERVE ( FACILITIES MGMT),MANF025879,85,619.01,PLANNED CLEANING,03/10/2019,,Technical and Service Support,Cleaning & Janitorial
800137621,INTERSERVE ( FACILITIES MGMT),MANF025879,86,"1,104.74",PLANNED CLEANING,03/10/2019,,Technical and Service Support,Cleaning & Janitorial
800137621,INTERSERVE ( FACILITIES MGMT),MANF025879,87,737.07,PLANNED CLEANING,03/10/2019,,Technical and Service Support,Cleaning & Janitorial
800137621,INTERSERVE ( FACILITIES MGMT),MANF025879,88,974.18,PLANNED CLEANING,03/10/2019,,Technical and Service Support,Cleaning & Janitorial
800137621,INTERSERVE ( FACILITIES MGMT),MANF025879,89,776.88,PLANNED CLEANING,03/10/2019,,Technical and Service Support,Cleaning & Janitorial
800137621,INTERSERVE ( FACILITIES MGMT),MANF025879,90,"1,622.34",PLANNED CLEANING,03/10/2019,,Technical and Service Support,Cleaning & Janitorial
800137621,INTERSERVE ( FACILITIES MGMT),MANF025879,91,"1,083.31",PLANNED CLEANING,03/10/2019,,Technical and Service Support,Cleaning & Janitorial
800137621,INTERSERVE ( FACILITIES MGMT),MANF025879,92,18.64,PLANNED CLEANING,03/10/2019,,Technical and Service Support,Cleaning & Janitorial
800137621,INTERSERVE ( FACILITIES MGMT),MANF025879,93,496.86,PLANNED CLEANING,03/10/2019,,Technical and Service Support,Cleaning & Janitorial
800137621,INTERSERVE ( FACILITIES MGMT),MANF025879,94,"2,099.84",PLANNED CLEANING,03/10/2019,,Technical and Service Support,Cleaning & Janitorial
800137621,INTERSERVE ( FACILITIES MGMT),MANF025879,95,992.51,PLANNED CLEANING,03/10/2019,,Technical and Service Support,Cleaning & Janitorial
800137621,INTERSERVE ( FACILITIES MGMT),MANF025879,96,"1,570.91",PLANNED CLEANING,03/10/2019,,Technical and Service Support,Cleaning & Janitorial
800137621,INTERSERVE ( FACILITIES MGMT),MANF025879,97,124.91,PLANNED CLEANING,03/10/2019,,Technical and Service Support,Cleaning & Janitorial
800137621,INTERSERVE ( FACILITIES MGMT),MANF025879,98,788.45,PLANNED CLEANING,03/10/2019,,Technical and Service Support,Cleaning & Janitorial
800137621,INTERSERVE ( FACILITIES MGMT),MANF025879,99,"9,459.19",PLANNED CLEANING,03/10/2019,,Technical and Service Support,Cleaning & Janitorial
800137621,INTERSERVE ( FACILITIES MGMT),MANF025879,100,62.85,PLANNED CLEANING,03/10/2019,,Technical and Service Support,Cleaning & Janitorial
800137621,INTERSERVE ( FACILITIES MGMT),MANF025879,101,55.46,PLANNED CLEANING,03/10/2019,,Technical and Service Support,Cleaning & Janitorial
800137621,INTERSERVE ( FACILITIES MGMT),MANF025879,102,70.98,PLANNED CLEANING,03/10/2019,,Technical and Service Support,Cleaning & Janitorial
800137621,INTERSERVE ( FACILITIES MGMT),MANF025879,103,14.79,PLANNED CLEANING,03/10/2019,,Technical and Service Support,Cleaning & Janitorial
800137621,INTERSERVE ( FACILITIES MGMT),MANF025879,104,18.49,PLANNED CLEANING,03/10/2019,,Technical and Service Support,Cleaning & Janitorial
800137621,INTERSERVE ( FACILITIES MGMT),MANF025879,105,673.63,PLANNED CLEANING,03/10/2019,,Technical and Service Support,Cleaning & Janitorial
800137621,INTERSERVE ( FACILITIES MGMT),MANF025879,106,"1,104.11",PLANNED CLEANING,03/10/2019,,Technical and Service Support,Cleaning & Janitorial
800137621,INTERSERVE ( FACILITIES MGMT),MANF025879,107,"1,147.30",PLANNED CLEANING,03/10/2019,,Technical and Service Support,Cleaning & Janitorial
800137621,INTERSERVE ( FACILITIES MGMT),MANF025879,108,404.03,PLANNED CLEANING,03/10/2019,,Technical and Service Support,Cleaning & Janitorial
800137620,INTERSERVE ( FACILITIES MGMT),MANF025880,1,326.8,PLANNED CLEANING,03/10/2019,"23,190.23",Technical and Service Support,Cleaning & Janitorial
800137620,INTERSERVE ( FACILITIES MGMT),MANF025880,2,153.65,PLANNED CLEANING,03/10/2019,,Technical and Service Support,Cleaning & Janitorial
800137620,INTERSERVE ( FACILITIES MGMT),MANF025880,3,13.56,PLANNED CLEANING,03/10/2019,,Technical and Service Support,Cleaning & Janitorial
800137620,INTERSERVE ( FACILITIES MGMT),MANF025880,4,334.31,PLANNED CLEANING,03/10/2019,,Technical and Service Support,Cleaning & Janitorial
800137620,INTERSERVE ( FACILITIES MGMT),MANF025880,5,233.46,PLANNED CLEANING,03/10/2019,,Technical and Service Support,Cleaning & Janitorial
800137620,INTERSERVE ( FACILITIES MGMT),MANF025880,6,155.71,PLANNED CLEANING,03/10/2019,,Technical and Service Support,Cleaning & Janitorial
800137620,INTERSERVE ( FACILITIES MGMT),MANF025880,7,164.33,PLANNED CLEANING,03/10/2019,,Technical and Service Support,Cleaning & Janitorial
800137620,INTERSERVE ( FACILITIES MGMT),MANF025880,8,174.93,PLANNED CLEANING,03/10/2019,,Technical and Service Support,Cleaning & Janitorial
800137620,INTERSERVE ( FACILITIES MGMT),MANF025880,9,183.59,PLANNED CLEANING,03/10/2019,,Technical and Service Support,Cleaning & Janitorial
800137620,INTERSERVE ( FACILITIES MGMT),MANF025880,10,118.39,PLANNED CLEANING,03/10/2019,,Technical and Service Support,Cleaning & Janitorial
800137620,INTERSERVE ( FACILITIES MGMT),MANF025880,11,287.11,PLANNED CLEANING,03/10/2019,,Technical and Service Support,Cleaning & Janitorial
800137620,INTERSERVE ( FACILITIES MGMT),MANF025880,12,202.63,PLANNED CLEANING,03/10/2019,,Technical and Service Support,Cleaning & Janitorial
800137620,INTERSERVE ( FACILITIES MGMT),MANF025880,13,231.39,PLANNED CLEANING,03/10/2019,,Technical and Service Support,Cleaning & Janitorial
800137620,INTERSERVE ( FACILITIES MGMT),MANF025880,14,119.3,PLANNED CLEANING,03/10/2019,,Technical and Service Support,Cleaning & Janitorial
800137620,INTERSERVE ( FACILITIES MGMT),MANF025880,15,155.72,PLANNED CLEANING,03/10/2019,,Technical and Service Support,Cleaning & Janitorial
800137620,INTERSERVE ( FACILITIES MGMT),MANF025880,16,332.8,PLANNED CLEANING,03/10/2019,,Technical and Service Support,Cleaning & Janitorial
800137620,INTERSERVE ( FACILITIES MGMT),MANF025880,17,78.76,PLANNED CLEANING,03/10/2019,,Technical and Service Support,Cleaning & Janitorial
800137620,INTERSERVE ( FACILITIES MGMT),MANF025880,18,251.08,PLANNED CLEANING,03/10/2019,,Technical and Service Support,Cleaning & Janitorial
800137620,INTERSERVE ( FACILITIES MGMT),MANF025880,19,555.53,PLANNED CLEANING,03/10/2019,,Technical and Service Support,Cleaning & Janitorial
800137620,INTERSERVE ( FACILITIES MGMT),MANF025880,20,235.13,PLANNED CLEANING,03/10/2019,,Technical and Service Support,Cleaning & Janitorial
800137620,INTERSERVE ( FACILITIES MGMT),MANF025880,21,492.94,PLANNED CLEANING,03/10/2019,,Technical and Service Support,Cleaning & Janitorial
800137620,INTERSERVE ( FACILITIES MGMT),MANF025880,22,118.17,PLANNED CLEANING,03/10/2019,,Technical and Service Support,Cleaning & Janitorial
800137620,INTERSERVE ( FACILITIES MGMT),MANF025880,23,121.36,PLANNED CLEANING,03/10/2019,,Technical and Service Support,Cleaning & Janitorial
800137620,INTERSERVE ( FACILITIES MGMT),MANF025880,24,246.86,PLANNED CLEANING,03/10/2019,,Technical and Service Support,Cleaning & Janitorial
800137620,INTERSERVE ( FACILITIES MGMT),MANF025880,25,162.83,PLANNED CLEANING,03/10/2019,,Technical and Service Support,Cleaning & Janitorial
800137620,INTERSERVE ( FACILITIES MGMT),MANF025880,26,82.17,PLANNED CLEANING,03/10/2019,,Technical and Service Support,Cleaning & Janitorial
800137620,INTERSERVE ( FACILITIES MGMT),MANF025880,27,230.2,PLANNED CLEANING,03/10/2019,,Technical and Service Support,Cleaning & Janitorial
800137620,INTERSERVE ( FACILITIES MGMT),MANF025880,28,378.91,PLANNED CLEANING,03/10/2019,,Technical and Service Support,Cleaning & Janitorial
800137620,INTERSERVE ( FACILITIES MGMT),MANF025880,29,165.78,PLANNED CLEANING,03/10/2019,,Technical and Service Support,Cleaning & Janitorial
800137620,INTERSERVE ( FACILITIES MGMT),MANF025880,30,161.33,PLANNED CLEANING,03/10/2019,,Technical and Service Support,Cleaning & Janitorial
800137620,INTERSERVE ( FACILITIES MGMT),MANF025880,31,118.3,PLANNED CLEANING,03/10/2019,,Technical and Service Support,Cleaning & Janitorial
800137620,INTERSERVE ( FACILITIES MGMT),MANF025880,32,343.33,PLANNED CLEANING,03/10/2019,,Technical and Service Support,Cleaning & Janitorial
800137620,INTERSERVE ( FACILITIES MGMT),MANF025880,33,561.18,PLANNED CLEANING,03/10/2019,,Technical and Service Support,Cleaning & Janitorial
800137620,INTERSERVE ( FACILITIES MGMT),MANF025880,34,10.72,PLANNED CLEANING,03/10/2019,,Technical and Service Support,Cleaning & Janitorial
800137620,INTERSERVE ( FACILITIES MGMT),MANF025880,35,32.29,PLANNED CLEANING,03/10/2019,,Technical and Service Support,Cleaning & Janitorial
800137620,INTERSERVE ( FACILITIES MGMT),MANF025880,36,157.48,PLANNED CLEANING,03/10/2019,,Technical and Service Support,Cleaning & Janitorial
800137620,INTERSERVE ( FACILITIES MGMT),MANF025880,37,318.87,PLANNED CLEANING,03/10/2019,,Technical and Service Support,Cleaning & Janitorial
800137620,INTERSERVE ( FACILITIES MGMT),MANF025880,38,84.25,PLANNED CLEANING,03/10/2019,,Technical and Service Support,Cleaning & Janitorial
800137620,INTERSERVE ( FACILITIES MGMT),MANF025880,39,254.27,PLANNED CLEANING,03/10/2019,,Technical and Service Support,Cleaning & Janitorial
800137620,INTERSERVE ( FACILITIES MGMT),MANF025880,40,284.78,PLANNED CLEANING,03/10/2019,,Technical and Service Support,Cleaning & Janitorial
800137620,INTERSERVE ( FACILITIES MGMT),MANF025880,41,133.27,PLANNED CLEANING,03/10/2019,,Technical and Service Support,Cleaning & Janitorial
800137620,INTERSERVE ( FACILITIES MGMT),MANF025880,42,192.9,PLANNED CLEANING,03/10/2019,,Technical and Service Support,Cleaning & Janitorial
800137620,INTERSERVE ( FACILITIES MGMT),MANF025880,43,230.02,PLANNED CLEANING,03/10/2019,,Technical and Service Support,Cleaning & Janitorial
800137620,INTERSERVE ( FACILITIES MGMT),MANF025880,44,153.23,PLANNED CLEANING,03/10/2019,,Technical and Service Support,Cleaning & Janitorial
800137620,INTERSERVE ( FACILITIES MGMT),MANF025880,45,541.03,PLANNED CLEANING,03/10/2019,,Technical and Service Support,Cleaning & Janitorial
800137620,INTERSERVE ( FACILITIES MGMT),MANF025880,46,126.87,PLANNED CLEANING,03/10/2019,,Technical and Service Support,Cleaning & Janitorial
800137620,INTERSERVE ( FACILITIES MGMT),MANF025880,47,226.41,PLANNED CLEANING,03/10/2019,,Technical and Service Support,Cleaning & Janitorial
800137620,INTERSERVE ( FACILITIES MGMT),MANF025880,48,151.06,PLANNED CLEANING,03/10/2019,,Technical and Service Support,Cleaning & Janitorial
800137620,INTERSERVE ( FACILITIES MGMT),MANF025880,49,199.65,PLANNED CLEANING,03/10/2019,,Technical and Service Support,Cleaning & Janitorial
800137620,INTERSERVE ( FACILITIES MGMT),MANF025880,50,321.96,PLANNED CLEANING,03/10/2019,,Technical and Service Support,Cleaning & Janitorial
800137620,INTERSERVE ( FACILITIES MGMT),MANF025880,51,25.6,PLANNED CLEANING,03/10/2019,,Technical and Service Support,Cleaning & Janitorial
800137620,INTERSERVE ( FACILITIES MGMT),MANF025880,52,157.13,PLANNED CLEANING,03/10/2019,,Technical and Service Support,Cleaning & Janitorial
800137620,INTERSERVE ( FACILITIES MGMT),MANF025880,53,150.5,PLANNED CLEANING,03/10/2019,,Technical and Service Support,Cleaning & Janitorial
800137620,INTERSERVE ( FACILITIES MGMT),MANF025880,54,154.67,PLANNED CLEANING,03/10/2019,,Technical and Service Support,Cleaning & Janitorial
800137620,INTERSERVE ( FACILITIES MGMT),MANF025880,55,269.64,PLANNED CLEANING,03/10/2019,,Technical and Service Support,Cleaning & Janitorial
800137620,INTERSERVE ( FACILITIES MGMT),MANF025880,56,180.84,PLANNED CLEANING,03/10/2019,,Technical and Service Support,Cleaning & Janitorial
800137620,INTERSERVE ( FACILITIES MGMT),MANF025880,57,127,PLANNED CLEANING,03/10/2019,,Technical and Service Support,Cleaning & Janitorial
800137620,INTERSERVE ( FACILITIES MGMT),MANF025880,58,155.91,PLANNED CLEANING,03/10/2019,,Technical and Service Support,Cleaning & Janitorial
800137620,INTERSERVE ( FACILITIES MGMT),MANF025880,59,224.96,PLANNED CLEANING,03/10/2019,,Technical and Service Support,Cleaning & Janitorial
800137620,INTERSERVE ( FACILITIES MGMT),MANF025880,60,168.77,PLANNED CLEANING,03/10/2019,,Technical and Service Support,Cleaning & Janitorial
800137620,INTERSERVE ( FACILITIES MGMT),MANF025880,61,161.59,PLANNED CLEANING,03/10/2019,,Technical and Service Support,Cleaning & Janitorial
800137620,INTERSERVE ( FACILITIES MGMT),MANF025880,62,"2,196.79",PLANNED CLEANING,03/10/2019,,Technical and Service Support,Cleaning & Janitorial
800137620,INTERSERVE ( FACILITIES MGMT),MANF025880,63,12.88,PLANNED CLEANING,03/10/2019,,Technical and Service Support,Cleaning & Janitorial
800137620,INTERSERVE ( FACILITIES MGMT),MANF025880,64,11.36,PLANNED CLEANING,03/10/2019,,Technical and Service Support,Cleaning & Janitorial
800137620,INTERSERVE ( FACILITIES MGMT),MANF025880,65,14.55,PLANNED CLEANING,03/10/2019,,Technical and Service Support,Cleaning & Janitorial
800137620,INTERSERVE ( FACILITIES MGMT),MANF025880,66,3.03,PLANNED CLEANING,03/10/2019,,Technical and Service Support,Cleaning & Janitorial
800137620,INTERSERVE ( FACILITIES MGMT),MANF025880,67,3.78,PLANNED CLEANING,03/10/2019,,Technical and Service Support,Cleaning & Janitorial
800137620,INTERSERVE ( FACILITIES MGMT),MANF025880,68,138.06,PLANNED CLEANING,03/10/2019,,Technical and Service Support,Cleaning & Janitorial
800137620,INTERSERVE ( FACILITIES MGMT),MANF025880,69,226.28,PLANNED CLEANING,03/10/2019,,Technical and Service Support,Cleaning & Janitorial
800137620,INTERSERVE ( FACILITIES MGMT),MANF025880,70,119.94,PLANNED CLEANING,03/10/2019,,Technical and Service Support,Cleaning & Janitorial
800137620,INTERSERVE ( FACILITIES MGMT),MANF025880,71,248.24,PLANNED CLEANING,03/10/2019,,Technical and Service Support,Cleaning & Janitorial
800137620,INTERSERVE ( FACILITIES MGMT),MANF025880,72,159.22,PLANNED CLEANING,03/10/2019,,Technical and Service Support,Cleaning & Janitorial
800137620,INTERSERVE ( FACILITIES MGMT),MANF025880,73,332.49,PLANNED CLEANING,03/10/2019,,Technical and Service Support,Cleaning & Janitorial
800137620,INTERSERVE ( FACILITIES MGMT),MANF025880,74,222.02,PLANNED CLEANING,03/10/2019,,Technical and Service Support,Cleaning & Janitorial
800137620,INTERSERVE ( FACILITIES MGMT),MANF025880,75,3.82,PLANNED CLEANING,03/10/2019,,Technical and Service Support,Cleaning & Janitorial
800137620,INTERSERVE ( FACILITIES MGMT),MANF025880,76,1.96,PLANNED CLEANING,03/10/2019,,Technical and Service Support,Cleaning & Janitorial
800137620,INTERSERVE ( FACILITIES MGMT),MANF025880,77,101.83,PLANNED CLEANING,03/10/2019,,Technical and Service Support,Cleaning & Janitorial
800137620,INTERSERVE ( FACILITIES MGMT),MANF025880,78,431.47,PLANNED CLEANING,03/10/2019,,Technical and Service Support,Cleaning & Janitorial
800137620,INTERSERVE ( FACILITIES MGMT),MANF025880,79,203.42,PLANNED CLEANING,03/10/2019,,Technical and Service Support,Cleaning & Janitorial
800137620,INTERSERVE ( FACILITIES MGMT),MANF025880,80,313.57,PLANNED CLEANING,03/10/2019,,Technical and Service Support,Cleaning & Janitorial
800137620,INTERSERVE ( FACILITIES MGMT),MANF025880,81,153.07,PLANNED CLEANING,03/10/2019,,Technical and Service Support,Cleaning & Janitorial
800137620,INTERSERVE ( FACILITIES MGMT),MANF025880,82,107.36,PLANNED CLEANING,03/10/2019,,Technical and Service Support,Cleaning & Janitorial
800137620,INTERSERVE ( FACILITIES MGMT),MANF025880,83,103.69,PLANNED CLEANING,03/10/2019,,Technical and Service Support,Cleaning & Janitorial
800137620,INTERSERVE ( FACILITIES MGMT),MANF025880,84,124.48,PLANNED CLEANING,03/10/2019,,Technical and Service Support,Cleaning & Janitorial
800137620,INTERSERVE ( FACILITIES MGMT),MANF025880,85,421.99,PLANNED CLEANING,03/10/2019,,Technical and Service Support,Cleaning & Janitorial
800137620,INTERSERVE ( FACILITIES MGMT),MANF025880,86,120.48,PLANNED CLEANING,03/10/2019,,Technical and Service Support,Cleaning & Janitorial
800137620,INTERSERVE ( FACILITIES MGMT),MANF025880,87,160.51,PLANNED CLEANING,03/10/2019,,Technical and Service Support,Cleaning & Janitorial
800137620,INTERSERVE ( FACILITIES MGMT),MANF025880,88,315.23,PLANNED CLEANING,03/10/2019,,Technical and Service Support,Cleaning & Janitorial
800137620,INTERSERVE ( FACILITIES MGMT),MANF025880,89,155.15,PLANNED CLEANING,03/10/2019,,Technical and Service Support,Cleaning & Janitorial
800137620,INTERSERVE ( FACILITIES MGMT),MANF025880,90,194.61,PLANNED CLEANING,03/10/2019,,Technical and Service Support,Cleaning & Janitorial
800137620,INTERSERVE ( FACILITIES MGMT),MANF025880,91,163.92,PLANNED CLEANING,03/10/2019,,Technical and Service Support,Cleaning & Janitorial
800137620,INTERSERVE ( FACILITIES MGMT),MANF025880,92,202.58,PLANNED CLEANING,03/10/2019,,Technical and Service Support,Cleaning & Janitorial
800137620,INTERSERVE ( FACILITIES MGMT),MANF025880,93,333.42,PLANNED CLEANING,03/10/2019,,Technical and Service Support,Cleaning & Janitorial
800137620,INTERSERVE ( FACILITIES MGMT),MANF025880,94,389.48,PLANNED CLEANING,03/10/2019,,Technical and Service Support,Cleaning & Janitorial
800137620,INTERSERVE ( FACILITIES MGMT),MANF025880,95,156.6,PLANNED CLEANING,03/10/2019,,Technical and Service Support,Cleaning & Janitorial
800137620,INTERSERVE ( FACILITIES MGMT),MANF025880,96,122.15,PLANNED CLEANING,03/10/2019,,Technical and Service Support,Cleaning & Janitorial
800137620,INTERSERVE ( FACILITIES MGMT),MANF025880,97,169.36,PLANNED CLEANING,03/10/2019,,Technical and Service Support,Cleaning & Janitorial
800137620,INTERSERVE ( FACILITIES MGMT),MANF025880,98,336.35,PLANNED CLEANING,03/10/2019,,Technical and Service Support,Cleaning & Janitorial
800137620,INTERSERVE ( FACILITIES MGMT),MANF025880,99,170.04,PLANNED CLEANING,03/10/2019,,Technical and Service Support,Cleaning & Janitorial
800137620,INTERSERVE ( FACILITIES MGMT),MANF025880,100,347.76,PLANNED CLEANING,03/10/2019,,Technical and Service Support,Cleaning & Janitorial
800137620,INTERSERVE ( FACILITIES MGMT),MANF025880,101,214.89,PLANNED CLEANING,03/10/2019,,Technical and Service Support,Cleaning & Janitorial
800137620,INTERSERVE ( FACILITIES MGMT),MANF025880,102,170.25,PLANNED CLEANING,03/10/2019,,Technical and Service Support,Cleaning & Janitorial
800137620,INTERSERVE ( FACILITIES MGMT),MANF025880,103,83.42,PLANNED CLEANING,03/10/2019,,Technical and Service Support,Cleaning & Janitorial
800137620,INTERSERVE ( FACILITIES MGMT),MANF025880,104,159.66,PLANNED CLEANING,03/10/2019,,Technical and Service Support,Cleaning & Janitorial
800137620,INTERSERVE ( FACILITIES MGMT),MANF025880,105,154.92,PLANNED CLEANING,03/10/2019,,Technical and Service Support,Cleaning & Janitorial
800137620,INTERSERVE ( FACILITIES MGMT),MANF025880,106,154.29,PLANNED CLEANING,03/10/2019,,Technical and Service Support,Cleaning & Janitorial
800137620,INTERSERVE ( FACILITIES MGMT),MANF025880,107,377.73,PLANNED CLEANING,03/10/2019,,Technical and Service Support,Cleaning & Janitorial
800137620,INTERSERVE ( FACILITIES MGMT),MANF025880,108,194.92,PLANNED CLEANING,03/10/2019,,Technical and Service Support,Cleaning & Janitorial
800137615,INTERSERVE ( FACILITIES MGMT),MANF025881,1,46.64,REACTIVE CLEANING,03/10/2019,332.25,Technical and Service Support,Cleaning & Janitorial
800137615,INTERSERVE ( FACILITIES MGMT),MANF025881,2,124.55,REACTIVE CLEANING,03/10/2019,,Technical and Service Support,Cleaning & Janitorial
800137615,INTERSERVE ( FACILITIES MGMT),MANF025881,3,78.65,REACTIVE CLEANING,03/10/2019,,Technical and Service Support,Cleaning & Janitorial
800137615,INTERSERVE ( FACILITIES MGMT),MANF025881,4,82.41,REACTIVE CLEANING,03/10/2019,,Technical and Service Support,Cleaning & Janitorial
270919V,B NOKES CONTRACTS LTD,MCE840,1,"6,229.25",REACTIVE SMALL WORKS AND PROJ,03/10/2019,"6,229.25",Technical and Service Support,Works - Construction
270919K,B NOKES CONTRACTS LTD,MCE841,1,"1,774.00",REACTIVE MEP,03/10/2019,"1,774.00",Technical and Service Support,Works - Construction
270919V,B NOKES CONTRACTS LTD,MCE842,1,"7,441.00",REACTIVE SMALL WORKS AND PROJ,03/10/2019,"7,441.00",Technical and Service Support,Works - Construction
270919K,B NOKES CONTRACTS LTD,MCE843,1,"1,380.00",REACTIVE SMALL WORKS AND PROJ,03/10/2019,"1,380.00",Technical and Service Support,Works - Construction
270919K,B NOKES CONTRACTS LTD,MCE844,1,"4,281.00",REACTIVE SMALL WORKS AND PROJ,03/10/2019,"4,281.00",Technical and Service Support,Works - Construction
270919V,B NOKES CONTRACTS LTD,MCE846,1,"6,929.50",REACTIVE SMALL WORKS AND PROJ,03/10/2019,"6,929.50",Technical and Service Support,Works - Construction
270919V,B NOKES CONTRACTS LTD,MCE847,1,"9,942.50",REACTIVE SMALL WORKS AND PROJ,03/10/2019,"9,942.50",Technical and Service Support,Works - Construction
270919V,B NOKES CONTRACTS LTD,MCE848,1,"8,905.55",REACTIVE SMALL WORKS AND PROJ,03/10/2019,"8,905.55",Technical and Service Support,Works - Construction
260919V,B NOKES CONTRACTS LTD,MCE849,1,"9,966.00",REACTIVE SMALL WORKS AND PROJ,03/10/2019,"9,966.00",Technical and Service Support,Works - Construction
300919K,CANNON'S MSA LTD,NV1136213,1,326,HYGIENE,03/10/2019,326,Technical and Service Support,Cleaning & Janitorial
800137893,BYWATERS LTD,P107250,1,300,REACTIVE REFUSE COLLECTION,03/10/2019,300,Technical and Service Support,Environmental Services
800137889,BYWATERS LTD,P107253,1,251.6,REACTIVE REFUSE COLLECTION,03/10/2019,251.6,Technical and Service Support,Environmental Services
260919K,PILLINGER CONTROLS LTD,PI79196,1,"1,080.00",REACTIVE SMALL WORKS AND PROJ,03/10/2019,"1,080.00",Technical and Service Support,Works - Construction
260919K,Ribband Star Consultancy Ltd,RS/LFB/F008,1,"3,669.49",CONSULTANTS,03/10/2019,"3,669.49",Training and Professional Development,Consultancy
120919G,MARLOW ROPES LTD,SIN080840,1,417.27,OPERATIONAL EQUIP-PURCHASE,03/10/2019,417.27,Technical and Service Support,Fire & Rescue
270919V,BRITISH TELECOM,VP56185770M01101CI,1,"3,258.82",TELECOMMUNICATIONS,03/10/2019,"142,253.36",Enterprise Application Group (ICT),ICT
270919V,BRITISH TELECOM,VP56185770M01101CI,2,"138,994.54",TELECOMMUNICATIONS,03/10/2019,,Enterprise Application Group (ICT),ICT
142837,PA CONSULTING SERVICES LTD,10131850,1,"32,707.50",SOFTWARE COTS,07/10/2019,"32,707.50",Grenfell Investigation Legal Costs,ICT
142840,THOMPSONS SOLICITORS,10274,1,"3,000.00",CLAIMANT COSTS AGREED,07/10/2019,"3,000.00",Compensation Budgets,Legal Services
011019G,FIREANGEL SAFETY TECHNOLOGY LD,1135134,1,840,FIRE DETECTORS,07/10/2019,840,Fire Stations (North East),Health and Safety
021019K,FIREANGEL SAFETY TECHNOLOGY LD,1135138,1,630,FIRE DETECTORS,07/10/2019,630,Fire Stations (North East),Health and Safety
011019V,FRANKHAM CONSULTANCY GROUP LTD,149858,1,"19,607.00",PROF FEES-MISCELLANEOUS,07/10/2019,"26,676.75",Technical and Service Support,Consultancy
011019V,FRANKHAM CONSULTANCY GROUP LTD,149858,2,"7,069.75",PROF FEES-MISCELLANEOUS,07/10/2019,,Technical and Service Support,Consultancy
011019G,KPD Business Services Limited,199,1,"1,500.00",GENERAL,07/10/2019,"1,500.00",Procurement,Consultancy
011019G,ACE VEHICLE SERVICES LIMITED,212,1,320,OPERATIONAL EQUIP-PURCHASE,07/10/2019,320,Fire Stations (North West),Fire & Rescue
011019G,ACE VEHICLE SERVICES LIMITED,215,1,320,OPERATIONAL EQUIP-PURCHASE,07/10/2019,320,Fire Stations (South West),Fire & Rescue
021019K,ACE VEHICLE SERVICES LIMITED,218,1,320,OPERATIONAL EQUIP-PURCHASE,07/10/2019,320,Fire Stations (North West),Fire & Rescue
021019K,ELLE MEDIA GROUP,22263,1,955,GENERAL CONSUMABLES,07/10/2019,"1,576.00",Technical and Service Support,Emergency Services
021019K,ELLE MEDIA GROUP,22263,2,352,GENERAL CONSUMABLES,07/10/2019,,Technical and Service Support,Emergency Services
021019K,ELLE MEDIA GROUP,22263,3,269,GENERAL CONSUMABLES,07/10/2019,,Technical and Service Support,Emergency Services
011019G,ILECS LIMITED,22600,1,"2,125.00",PROFESSIONAL SERVICES,07/10/2019,"2,125.00",Technical and Service Support,Consultancy
011019G,ACE VEHICLE SERVICES LIMITED,227,1,320,OPERATIONAL EQUIP-PURCHASE,07/10/2019,320,Fire Stations (South East),Fire & Rescue
011019G,ACE VEHICLE SERVICES LIMITED,237,1,320,OPERATIONAL EQUIP-PURCHASE,07/10/2019,320,Fire Stations (South West),Fire & Rescue
021019K,ACE VEHICLE SERVICES LIMITED,243,1,320,OPERATIONAL EQUIP-PURCHASE,07/10/2019,500,Fire Stations (South West),Fire & Rescue
021019K,ACE VEHICLE SERVICES LIMITED,243,2,180,OPERATIONAL EQUIP-PURCHASE,07/10/2019,,Fire Stations (South West),Fire & Rescue
021019K,CRISPIN HUGHES,2535,1,345.2,PRINTING,07/10/2019,345.2,Firefighter Trainees,Facilities & Management Services
011019G,(ENEI) EMPLOYERS NETWORK FOR,25807,1,"2,900.00",SUBSCRIPTIONS,07/10/2019,"2,900.00",People Services,Financial Services
021019K,ENVIROGRAF,262386,1,837.79,OPERATIONAL EQUIP-PURCHASE,07/10/2019,837.79,Community Safety,Fire & Rescue
011019G,SPECTRUM,3097,1,420,GENERAL,07/10/2019,420,Communications,Consultancy
021019K,WATERFRONT MANUFACTURING LTD,32492,1,209.59,UNIFORMS,07/10/2019,394.2,Fire Stations (North West),Clothing
021019K,WATERFRONT MANUFACTURING LTD,32492,2,184.61,UNIFORMS,07/10/2019,,Fire Stations (North West),Clothing
011019G,WATERFRONT MANUFACTURING LTD,32493,1,209.59,UNIFORMS,07/10/2019,394.2,Fire Stations (North East),Clothing
011019G,WATERFRONT MANUFACTURING LTD,32493,2,184.61,UNIFORMS,07/10/2019,,Fire Stations (North East),Clothing
021019K,WATERFRONT MANUFACTURING LTD,32494,1,209.59,UNIFORMS,07/10/2019,394.2,Fire Stations (North West),Clothing
021019K,WATERFRONT MANUFACTURING LTD,32494,2,184.61,UNIFORMS,07/10/2019,,Fire Stations (North West),Clothing
021019K,WATERFRONT MANUFACTURING LTD,32495,1,209.59,UNIFORMS,07/10/2019,394.2,Fire Stations (North West),Clothing
021019K,WATERFRONT MANUFACTURING LTD,32495,2,184.61,UNIFORMS,07/10/2019,,Fire Stations (North West),Clothing
021019K,Bovingdons Catering Limited,3900,1,300,REFRESHMENTS,07/10/2019,300,Fire Stations (Management),Catering
800137365,GREENHAM TRADING LTD,5020442,1,31.1,HYGIENE,07/10/2019,422.77,Fire Stations (South East),Cleaning & Janitorial
800137365,GREENHAM TRADING LTD,5020442,2,1.02,HYGIENE,07/10/2019,,Fire Stations (South East),Cleaning & Janitorial
800137365,GREENHAM TRADING LTD,5020442,3,10.2,HYGIENE,07/10/2019,,Fire Stations (South East),Cleaning & Janitorial
800137365,GREENHAM TRADING LTD,5020442,4,134.42,HYGIENE,07/10/2019,,Fire Stations (South East),Cleaning & Janitorial
800137365,GREENHAM TRADING LTD,5020442,5,32.43,MEDICAL SUPPLIES,07/10/2019,,Fire Stations (South East),Healthcare
800137365,GREENHAM TRADING LTD,5020442,6,32.43,MEDICAL SUPPLIES,07/10/2019,,Fire Stations (South East),Healthcare
800137365,GREENHAM TRADING LTD,5020442,7,32.43,MEDICAL SUPPLIES,07/10/2019,,Fire Stations (South East),Healthcare
800137365,GREENHAM TRADING LTD,5020442,8,71.34,HYGIENE,07/10/2019,,Fire Stations (South East),Cleaning & Janitorial
800137365,GREENHAM TRADING LTD,5020442,9,17.7,HYGIENE,07/10/2019,,Fire Stations (South East),Cleaning & Janitorial
800137365,GREENHAM TRADING LTD,5020442,10,32.6,HYGIENE,07/10/2019,,Fire Stations (South East),Cleaning & Janitorial
800137365,GREENHAM TRADING LTD,5020442,11,9.4,HYGIENE,07/10/2019,,Fire Stations (South East),Cleaning & Janitorial
800137365,GREENHAM TRADING LTD,5020442,12,17.7,HYGIENE,07/10/2019,,Fire Stations (South East),Cleaning & Janitorial
021019K,LONGTON PROTECTIVE CLOTHING,53616,1,110,PROTECTIVE CLOTHING,07/10/2019,510,Community Safety,Clothing
021019K,LONGTON PROTECTIVE CLOTHING,53616,2,100,PROTECTIVE CLOTHING,07/10/2019,,Community Safety,Clothing
021019K,LONGTON PROTECTIVE CLOTHING,53616,3,100,PROTECTIVE CLOTHING,07/10/2019,,Community Safety,Clothing
021019K,LONGTON PROTECTIVE CLOTHING,53616,4,100,PROTECTIVE CLOTHING,07/10/2019,,Community Safety,Clothing
021019K,LONGTON PROTECTIVE CLOTHING,53616,5,100,PROTECTIVE CLOTHING,07/10/2019,,Community Safety,Clothing
190919K,EASTERN SHIRES PURCHASING ORG,5408384,1,318,CATERING EQUIPMENT,07/10/2019,318,Fire Stations (North West),Catering
300919K,EASTERN SHIRES PURCHASING ORG,5408387,1,318,CATERING EQUIPMENT,07/10/2019,318,Fire Stations (North West),Catering
011019G,CAPITA SECURE INFO SOLUTIONS,6060040005,1,270,DEVELOPMENT  EXPENSES-CONTRACT,07/10/2019,270,Technical and Service Support,ICT
011019G,CURRIE & BROWN UK LIMITED,7047534,1,"1,000.00",PROF FEES-MISCELLANEOUS,07/10/2019,"1,000.00",Technical and Service Support,"Works - Construction, R&M"
011019G,CURRIE & BROWN UK LIMITED,7050149,1,653.63,PROF FEES-MISCELLANEOUS,07/10/2019,653.63,Technical and Service Support,"Works - Construction, R&M"
011019G,CURRIE & BROWN UK LIMITED,7050150,1,404,PROF FEES-MISCELLANEOUS,07/10/2019,"1,000.00",Technical and Service Support,"Works - Construction, R&M"
011019G,CURRIE & BROWN UK LIMITED,7050150,2,596,PROF FEES-MISCELLANEOUS,07/10/2019,,Technical and Service Support,"Works - Construction, R&M"
011019G,FIRE SERVICE COLLEGE LTD,817234,1,"3,060.00",HIRE OF FACILITIES,07/10/2019,"3,060.00",Operational Resilience,Facilities & Management Services
800137631,SERVEST GROUP LIMITED,83325,1,826.3,REACTIVE MEP,07/10/2019,"107,123.98",Technical and Service Support,Works - Construction
800137631,SERVEST GROUP LIMITED,83325,2,"1,585.33",REACTIVE MEP,07/10/2019,,Technical and Service Support,Works - Construction
800137631,SERVEST GROUP LIMITED,83325,3,18.23,REACTIVE MEP,07/10/2019,,Technical and Service Support,Works - Construction
800137631,SERVEST GROUP LIMITED,83325,4,132.16,REACTIVE MEP,07/10/2019,,Technical and Service Support,Works - Construction
800137631,SERVEST GROUP LIMITED,83325,5,86.38,REACTIVE MEP,07/10/2019,,Technical and Service Support,Works - Construction
800137631,SERVEST GROUP LIMITED,83325,6,689.5,REACTIVE MEP,07/10/2019,,Technical and Service Support,Works - Construction
800137631,SERVEST GROUP LIMITED,83325,7,8.95,REACTIVE MEP,07/10/2019,,Technical and Service Support,Works - Construction
800137631,SERVEST GROUP LIMITED,83325,8,825.58,REACTIVE MEP,07/10/2019,,Technical and Service Support,Works - Construction
800137631,SERVEST GROUP LIMITED,83325,9,300.8,REACTIVE MEP,07/10/2019,,Technical and Service Support,Works - Construction
800137631,SERVEST GROUP LIMITED,83325,10,632.2,REACTIVE MEP,07/10/2019,,Technical and Service Support,Works - Construction
800137631,SERVEST GROUP LIMITED,83325,11,72.95,REACTIVE MEP,07/10/2019,,Technical and Service Support,Works - Construction
800137631,SERVEST GROUP LIMITED,83325,12,738.86,REACTIVE MEP,07/10/2019,,Technical and Service Support,Works - Construction
800137631,SERVEST GROUP LIMITED,83325,13,760.06,REACTIVE MEP,07/10/2019,,Technical and Service Support,Works - Construction
800137631,SERVEST GROUP LIMITED,83325,14,825.28,REACTIVE MEP,07/10/2019,,Technical and Service Support,Works - Construction
800137631,SERVEST GROUP LIMITED,83325,15,"6,010.37",REACTIVE MEP,07/10/2019,,Technical and Service Support,Works - Construction
800137631,SERVEST GROUP LIMITED,83325,16,"1,562.88",REACTIVE MEP,07/10/2019,,Technical and Service Support,Works - Construction
800137631,SERVEST GROUP LIMITED,83325,17,910.25,REACTIVE MEP,07/10/2019,,Technical and Service Support,Works - Construction
800137631,SERVEST GROUP LIMITED,83325,18,71.6,REACTIVE MEP,07/10/2019,,Technical and Service Support,Works - Construction
800137631,SERVEST GROUP LIMITED,83325,19,"1,301.02",REACTIVE MEP,07/10/2019,,Technical and Service Support,Works - Construction
800137631,SERVEST GROUP LIMITED,83325,20,706.24,REACTIVE MEP,07/10/2019,,Technical and Service Support,Works - Construction
800137631,SERVEST GROUP LIMITED,83325,21,214.76,REACTIVE MEP,07/10/2019,,Technical and Service Support,Works - Construction
800137631,SERVEST GROUP LIMITED,83325,22,41.3,REACTIVE MEP,07/10/2019,,Technical and Service Support,Works - Construction
800137631,SERVEST GROUP LIMITED,83325,23,618.76,REACTIVE MEP,07/10/2019,,Technical and Service Support,Works - Construction
800137631,SERVEST GROUP LIMITED,83325,24,364.69,REACTIVE MEP,07/10/2019,,Technical and Service Support,Works - Construction
800137631,SERVEST GROUP LIMITED,83325,25,186.88,REACTIVE MEP,07/10/2019,,Technical and Service Support,Works - Construction
800137631,SERVEST GROUP LIMITED,83325,26,602.54,REACTIVE MEP,07/10/2019,,Technical and Service Support,Works - Construction
800137631,SERVEST GROUP LIMITED,83325,27,214.76,REACTIVE MEP,07/10/2019,,Technical and Service Support,Works - Construction
800137631,SERVEST GROUP LIMITED,83325,28,153.84,REACTIVE MEP,07/10/2019,,Technical and Service Support,Works - Construction
800137631,SERVEST GROUP LIMITED,83325,29,487.09,REACTIVE MEP,07/10/2019,,Technical and Service Support,Works - Construction
800137631,SERVEST GROUP LIMITED,83325,30,773.39,REACTIVE MEP,07/10/2019,,Technical and Service Support,Works - Construction
800137631,SERVEST GROUP LIMITED,83325,31,76.92,REACTIVE MEP,07/10/2019,,Technical and Service Support,Works - Construction
800137631,SERVEST GROUP LIMITED,83325,32,74.34,REACTIVE MEP,07/10/2019,,Technical and Service Support,Works - Construction
800137631,SERVEST GROUP LIMITED,83325,33,452.45,REACTIVE MEP,07/10/2019,,Technical and Service Support,Works - Construction
800137631,SERVEST GROUP LIMITED,83325,34,86.54,REACTIVE MEP,07/10/2019,,Technical and Service Support,Works - Construction
800137631,SERVEST GROUP LIMITED,83325,35,76.92,REACTIVE MEP,07/10/2019,,Technical and Service Support,Works - Construction
800137631,SERVEST GROUP LIMITED,83325,36,"1,234.46",REACTIVE MEP,07/10/2019,,Technical and Service Support,Works - Construction
800137631,SERVEST GROUP LIMITED,83325,37,219.65,REACTIVE MEP,07/10/2019,,Technical and Service Support,Works - Construction
800137631,SERVEST GROUP LIMITED,83325,38,702.97,REACTIVE MEP,07/10/2019,,Technical and Service Support,Works - Construction
800137631,SERVEST GROUP LIMITED,83325,39,597.4,REACTIVE MEP,07/10/2019,,Technical and Service Support,Works - Construction
800137631,SERVEST GROUP LIMITED,83325,40,76.92,REACTIVE MEP,07/10/2019,,Technical and Service Support,Works - Construction
800137631,SERVEST GROUP LIMITED,83325,41,71.6,REACTIVE MEP,07/10/2019,,Technical and Service Support,Works - Construction
800137631,SERVEST GROUP LIMITED,83325,42,36.46,REACTIVE MEP,07/10/2019,,Technical and Service Support,Works - Construction
800137631,SERVEST GROUP LIMITED,83325,43,178.62,REACTIVE MEP,07/10/2019,,Technical and Service Support,Works - Construction
800137631,SERVEST GROUP LIMITED,83325,44,304.3,REACTIVE MEP,07/10/2019,,Technical and Service Support,Works - Construction
800137631,SERVEST GROUP LIMITED,83325,45,"2,733.77",REACTIVE MEP,07/10/2019,,Technical and Service Support,Works - Construction
800137631,SERVEST GROUP LIMITED,83325,46,76.92,REACTIVE MEP,07/10/2019,,Technical and Service Support,Works - Construction
800137631,SERVEST GROUP LIMITED,83325,47,72.92,REACTIVE MEP,07/10/2019,,Technical and Service Support,Works - Construction
800137631,SERVEST GROUP LIMITED,83325,48,54.69,REACTIVE MEP,07/10/2019,,Technical and Service Support,Works - Construction
800137631,SERVEST GROUP LIMITED,83325,49,820.38,REACTIVE MEP,07/10/2019,,Technical and Service Support,Works - Construction
800137631,SERVEST GROUP LIMITED,83325,50,788.77,REACTIVE MEP,07/10/2019,,Technical and Service Support,Works - Construction
800137631,SERVEST GROUP LIMITED,83325,51,144.78,REACTIVE MEP,07/10/2019,,Technical and Service Support,Works - Construction
800137631,SERVEST GROUP LIMITED,83325,52,628.89,REACTIVE MEP,07/10/2019,,Technical and Service Support,Works - Construction
800137631,SERVEST GROUP LIMITED,83325,53,358,REACTIVE MEP,07/10/2019,,Technical and Service Support,Works - Construction
800137631,SERVEST GROUP LIMITED,83325,54,"2,929.56",REACTIVE MEP,07/10/2019,,Technical and Service Support,Works - Construction
800137631,SERVEST GROUP LIMITED,83325,55,"4,940.82",REACTIVE MEP,07/10/2019,,Technical and Service Support,Works - Construction
800137631,SERVEST GROUP LIMITED,83325,56,874.78,REACTIVE MEP,07/10/2019,,Technical and Service Support,Works - Construction
800137631,SERVEST GROUP LIMITED,83325,57,136.73,REACTIVE MEP,07/10/2019,,Technical and Service Support,Works - Construction
800137631,SERVEST GROUP LIMITED,83325,58,797.92,REACTIVE MEP,07/10/2019,,Technical and Service Support,Works - Construction
800137631,SERVEST GROUP LIMITED,83325,59,"1,210.65",REACTIVE MEP,07/10/2019,,Technical and Service Support,Works - Construction
800137631,SERVEST GROUP LIMITED,83325,60,218.76,REACTIVE MEP,07/10/2019,,Technical and Service Support,Works - Construction
800137631,SERVEST GROUP LIMITED,83325,61,316.2,REACTIVE MEP,07/10/2019,,Technical and Service Support,Works - Construction
800137631,SERVEST GROUP LIMITED,83325,62,168.4,REACTIVE MEP,07/10/2019,,Technical and Service Support,Works - Construction
800137631,SERVEST GROUP LIMITED,83325,63,107.4,REACTIVE MEP,07/10/2019,,Technical and Service Support,Works - Construction
800137631,SERVEST GROUP LIMITED,83325,64,66.08,REACTIVE MEP,07/10/2019,,Technical and Service Support,Works - Construction
800137631,SERVEST GROUP LIMITED,83325,65,807.42,REACTIVE MEP,07/10/2019,,Technical and Service Support,Works - Construction
800137631,SERVEST GROUP LIMITED,83325,66,"3,165.38",REACTIVE MEP,07/10/2019,,Technical and Service Support,Works - Construction
800137631,SERVEST GROUP LIMITED,83325,67,86.59,REACTIVE MEP,07/10/2019,,Technical and Service Support,Works - Construction
800137631,SERVEST GROUP LIMITED,83325,68,73.08,REACTIVE MEP,07/10/2019,,Technical and Service Support,Works - Construction
800137631,SERVEST GROUP LIMITED,83325,69,"1,887.15",REACTIVE MEP,07/10/2019,,Technical and Service Support,Works - Construction
800137631,SERVEST GROUP LIMITED,83325,70,178.01,REACTIVE MEP,07/10/2019,,Technical and Service Support,Works - Construction
800137631,SERVEST GROUP LIMITED,83325,71,214.76,REACTIVE MEP,07/10/2019,,Technical and Service Support,Works - Construction
800137631,SERVEST GROUP LIMITED,83325,72,494.68,REACTIVE MEP,07/10/2019,,Technical and Service Support,Works - Construction
800137631,SERVEST GROUP LIMITED,83325,73,385.84,REACTIVE MEP,07/10/2019,,Technical and Service Support,Works - Construction
800137631,SERVEST GROUP LIMITED,83325,74,36.46,REACTIVE MEP,07/10/2019,,Technical and Service Support,Works - Construction
800137631,SERVEST GROUP LIMITED,83325,75,113.93,REACTIVE MEP,07/10/2019,,Technical and Service Support,Works - Construction
800137631,SERVEST GROUP LIMITED,83325,76,8.95,REACTIVE MEP,07/10/2019,,Technical and Service Support,Works - Construction
800137631,SERVEST GROUP LIMITED,83325,77,277.55,REACTIVE MEP,07/10/2019,,Technical and Service Support,Works - Construction
800137631,SERVEST GROUP LIMITED,83325,78,63.81,REACTIVE MEP,07/10/2019,,Technical and Service Support,Works - Construction
800137631,SERVEST GROUP LIMITED,83325,79,"1,253.10",REACTIVE MEP,07/10/2019,,Technical and Service Support,Works - Construction
800137631,SERVEST GROUP LIMITED,83325,80,36.46,REACTIVE MEP,07/10/2019,,Technical and Service Support,Works - Construction
800137631,SERVEST GROUP LIMITED,83325,81,85.26,REACTIVE MEP,07/10/2019,,Technical and Service Support,Works - Construction
800137631,SERVEST GROUP LIMITED,83325,82,115.64,REACTIVE MEP,07/10/2019,,Technical and Service Support,Works - Construction
800137631,SERVEST GROUP LIMITED,83325,83,271.32,REACTIVE MEP,07/10/2019,,Technical and Service Support,Works - Construction
800137631,SERVEST GROUP LIMITED,83325,84,115.64,REACTIVE MEP,07/10/2019,,Technical and Service Support,Works - Construction
800137631,SERVEST GROUP LIMITED,83325,85,9.12,REACTIVE MEP,07/10/2019,,Technical and Service Support,Works - Construction
800137631,SERVEST GROUP LIMITED,83325,86,35.8,REACTIVE MEP,07/10/2019,,Technical and Service Support,Works - Construction
800137631,SERVEST GROUP LIMITED,83325,87,809.81,REACTIVE MEP,07/10/2019,,Technical and Service Support,Works - Construction
800137631,SERVEST GROUP LIMITED,83325,88,600,REACTIVE MEP,07/10/2019,,Technical and Service Support,Works - Construction
800137631,SERVEST GROUP LIMITED,83325,89,671.16,REACTIVE MEP,07/10/2019,,Technical and Service Support,Works - Construction
800137631,SERVEST GROUP LIMITED,83325,90,132.16,REACTIVE MEP,07/10/2019,,Technical and Service Support,Works - Construction
800137631,SERVEST GROUP LIMITED,83325,91,335.3,REACTIVE MEP,07/10/2019,,Technical and Service Support,Works - Construction
800137631,SERVEST GROUP LIMITED,83325,92,289.76,REACTIVE MEP,07/10/2019,,Technical and Service Support,Works - Construction
800137631,SERVEST GROUP LIMITED,83325,93,8.26,REACTIVE MEP,07/10/2019,,Technical and Service Support,Works - Construction
800137631,SERVEST GROUP LIMITED,83325,94,307.68,REACTIVE MEP,07/10/2019,,Technical and Service Support,Works - Construction
800137631,SERVEST GROUP LIMITED,83325,95,457.91,REACTIVE MEP,07/10/2019,,Technical and Service Support,Works - Construction
800137631,SERVEST GROUP LIMITED,83325,96,148.68,REACTIVE MEP,07/10/2019,,Technical and Service Support,Works - Construction
800137631,SERVEST GROUP LIMITED,83325,97,54.69,REACTIVE MEP,07/10/2019,,Technical and Service Support,Works - Construction
800137631,SERVEST GROUP LIMITED,83325,98,153.84,REACTIVE MEP,07/10/2019,,Technical and Service Support,Works - Construction
800137631,SERVEST GROUP LIMITED,83325,99,333.04,REACTIVE MEP,07/10/2019,,Technical and Service Support,Works - Construction
800137631,SERVEST GROUP LIMITED,83325,100,"1,416.76",REACTIVE MEP,07/10/2019,,Technical and Service Support,Works - Construction
800137631,SERVEST GROUP LIMITED,83325,101,71.6,REACTIVE MEP,07/10/2019,,Technical and Service Support,Works - Construction
800137631,SERVEST GROUP LIMITED,83325,102,160,REACTIVE MEP,07/10/2019,,Technical and Service Support,Works - Construction
800137631,SERVEST GROUP LIMITED,83325,103,207.27,REACTIVE MEP,07/10/2019,,Technical and Service Support,Works - Construction
800137631,SERVEST GROUP LIMITED,83325,104,50.65,REACTIVE MEP,07/10/2019,,Technical and Service Support,Works - Construction
800137631,SERVEST GROUP LIMITED,83325,105,148.68,REACTIVE MEP,07/10/2019,,Technical and Service Support,Works - Construction
800137631,SERVEST GROUP LIMITED,83325,106,155.24,REACTIVE MEP,07/10/2019,,Technical and Service Support,Works - Construction
800137631,SERVEST GROUP LIMITED,83325,107,382.68,REACTIVE MEP,07/10/2019,,Technical and Service Support,Works - Construction
800137631,SERVEST GROUP LIMITED,83325,108,18.23,REACTIVE MEP,07/10/2019,,Technical and Service Support,Works - Construction
800137631,SERVEST GROUP LIMITED,83325,109,"1,247.72",REACTIVE MEP,07/10/2019,,Technical and Service Support,Works - Construction
800137631,SERVEST GROUP LIMITED,83325,110,71.6,REACTIVE MEP,07/10/2019,,Technical and Service Support,Works - Construction
800137631,SERVEST GROUP LIMITED,83325,111,359.76,REACTIVE MEP,07/10/2019,,Technical and Service Support,Works - Construction
800137631,SERVEST GROUP LIMITED,83325,112,873.88,REACTIVE MEP,07/10/2019,,Technical and Service Support,Works - Construction
800137631,SERVEST GROUP LIMITED,83325,113,300,REACTIVE MEP,07/10/2019,,Technical and Service Support,Works - Construction
800137631,SERVEST GROUP LIMITED,83325,114,938.38,REACTIVE MEP,07/10/2019,,Technical and Service Support,Works - Construction
800137631,SERVEST GROUP LIMITED,83325,115,39.65,REACTIVE MEP,07/10/2019,,Technical and Service Support,Works - Construction
800137631,SERVEST GROUP LIMITED,83325,116,27.35,REACTIVE MEP,07/10/2019,,Technical and Service Support,Works - Construction
800137631,SERVEST GROUP LIMITED,83325,117,39.65,REACTIVE MEP,07/10/2019,,Technical and Service Support,Works - Construction
800137631,SERVEST GROUP LIMITED,83325,118,123.46,REACTIVE MEP,07/10/2019,,Technical and Service Support,Works - Construction
800137631,SERVEST GROUP LIMITED,83325,119,39.65,REACTIVE MEP,07/10/2019,,Technical and Service Support,Works - Construction
800137631,SERVEST GROUP LIMITED,83325,120,96.93,REACTIVE MEP,07/10/2019,,Technical and Service Support,Works - Construction
800137631,SERVEST GROUP LIMITED,83325,121,417,REACTIVE MEP,07/10/2019,,Technical and Service Support,Works - Construction
800137631,SERVEST GROUP LIMITED,83325,122,245.07,REACTIVE MEP,07/10/2019,,Technical and Service Support,Works - Construction
800137631,SERVEST GROUP LIMITED,83325,123,562.14,REACTIVE MEP,07/10/2019,,Technical and Service Support,Works - Construction
800137631,SERVEST GROUP LIMITED,83325,124,"1,299.60",REACTIVE MEP,07/10/2019,,Technical and Service Support,Works - Construction
800137631,SERVEST GROUP LIMITED,83325,125,202.33,REACTIVE MEP,07/10/2019,,Technical and Service Support,Works - Construction
800137631,SERVEST GROUP LIMITED,83325,126,158.6,REACTIVE MEP,07/10/2019,,Technical and Service Support,Works - Construction
800137631,SERVEST GROUP LIMITED,83325,127,99.12,REACTIVE MEP,07/10/2019,,Technical and Service Support,Works - Construction
800137631,SERVEST GROUP LIMITED,83325,128,313.25,REACTIVE MEP,07/10/2019,,Technical and Service Support,Works - Construction
800137631,SERVEST GROUP LIMITED,83325,129,16.52,REACTIVE MEP,07/10/2019,,Technical and Service Support,Works - Construction
800137631,SERVEST GROUP LIMITED,83325,130,36.54,REACTIVE MEP,07/10/2019,,Technical and Service Support,Works - Construction
800137631,SERVEST GROUP LIMITED,83325,131,23.92,REACTIVE MEP,07/10/2019,,Technical and Service Support,Works - Construction
800137631,SERVEST GROUP LIMITED,83325,132,231.7,REACTIVE MEP,07/10/2019,,Technical and Service Support,Works - Construction
800137631,SERVEST GROUP LIMITED,83325,133,581.73,REACTIVE MEP,07/10/2019,,Technical and Service Support,Works - Construction
800137631,SERVEST GROUP LIMITED,83325,134,8.26,REACTIVE MEP,07/10/2019,,Technical and Service Support,Works - Construction
800137631,SERVEST GROUP LIMITED,83325,135,173.19,REACTIVE MEP,07/10/2019,,Technical and Service Support,Works - Construction
800137631,SERVEST GROUP LIMITED,83325,136,687.56,REACTIVE MEP,07/10/2019,,Technical and Service Support,Works - Construction
800137631,SERVEST GROUP LIMITED,83325,137,171.4,REACTIVE MEP,07/10/2019,,Technical and Service Support,Works - Construction
800137631,SERVEST GROUP LIMITED,83325,138,209.44,REACTIVE MEP,07/10/2019,,Technical and Service Support,Works - Construction
800137631,SERVEST GROUP LIMITED,83325,139,80.69,REACTIVE MEP,07/10/2019,,Technical and Service Support,Works - Construction
800137631,SERVEST GROUP LIMITED,83325,140,39.65,REACTIVE MEP,07/10/2019,,Technical and Service Support,Works - Construction
800137631,SERVEST GROUP LIMITED,83325,141,249.99,REACTIVE MEP,07/10/2019,,Technical and Service Support,Works - Construction
800137631,SERVEST GROUP LIMITED,83325,142,484.06,REACTIVE MEP,07/10/2019,,Technical and Service Support,Works - Construction
800137631,SERVEST GROUP LIMITED,83325,143,79.3,REACTIVE MEP,07/10/2019,,Technical and Service Support,Works - Construction
800137631,SERVEST GROUP LIMITED,83325,144,161.1,REACTIVE MEP,07/10/2019,,Technical and Service Support,Works - Construction
800137631,SERVEST GROUP LIMITED,83325,145,54.69,REACTIVE MEP,07/10/2019,,Technical and Service Support,Works - Construction
800137631,SERVEST GROUP LIMITED,83325,146,39.65,REACTIVE MEP,07/10/2019,,Technical and Service Support,Works - Construction
800137631,SERVEST GROUP LIMITED,83325,147,115.64,REACTIVE MEP,07/10/2019,,Technical and Service Support,Works - Construction
800137631,SERVEST GROUP LIMITED,83325,148,8.95,REACTIVE MEP,07/10/2019,,Technical and Service Support,Works - Construction
800137631,SERVEST GROUP LIMITED,83325,149,410.42,REACTIVE MEP,07/10/2019,,Technical and Service Support,Works - Construction
800137631,SERVEST GROUP LIMITED,83325,150,403.72,REACTIVE MEP,07/10/2019,,Technical and Service Support,Works - Construction
800137631,SERVEST GROUP LIMITED,83325,151,46.04,REACTIVE MEP,07/10/2019,,Technical and Service Support,Works - Construction
800137631,SERVEST GROUP LIMITED,83325,152,663.44,REACTIVE MEP,07/10/2019,,Technical and Service Support,Works - Construction
800137631,SERVEST GROUP LIMITED,83325,153,11.96,REACTIVE MEP,07/10/2019,,Technical and Service Support,Works - Construction
800137631,SERVEST GROUP LIMITED,83325,154,41.3,REACTIVE MEP,07/10/2019,,Technical and Service Support,Works - Construction
800137631,SERVEST GROUP LIMITED,83325,155,48.72,REACTIVE MEP,07/10/2019,,Technical and Service Support,Works - Construction
800137631,SERVEST GROUP LIMITED,83325,156,295.13,REACTIVE MEP,07/10/2019,,Technical and Service Support,Works - Construction
800137631,SERVEST GROUP LIMITED,83325,157,39.65,REACTIVE MEP,07/10/2019,,Technical and Service Support,Works - Construction
800137631,SERVEST GROUP LIMITED,83325,158,26.85,REACTIVE MEP,07/10/2019,,Technical and Service Support,Works - Construction
800137631,SERVEST GROUP LIMITED,83325,159,39.65,REACTIVE MEP,07/10/2019,,Technical and Service Support,Works - Construction
800137631,SERVEST GROUP LIMITED,83325,160,39.65,REACTIVE MEP,07/10/2019,,Technical and Service Support,Works - Construction
800137631,SERVEST GROUP LIMITED,83325,161,395,REACTIVE MEP,07/10/2019,,Technical and Service Support,Works - Construction
800137631,SERVEST GROUP LIMITED,83325,162,803.98,REACTIVE MEP,07/10/2019,,Technical and Service Support,Works - Construction
800137631,SERVEST GROUP LIMITED,83325,163,145.3,REACTIVE MEP,07/10/2019,,Technical and Service Support,Works - Construction
800137631,SERVEST GROUP LIMITED,83325,164,48.72,REACTIVE MEP,07/10/2019,,Technical and Service Support,Works - Construction
800137631,SERVEST GROUP LIMITED,83325,165,119.63,REACTIVE MEP,07/10/2019,,Technical and Service Support,Works - Construction
800137631,SERVEST GROUP LIMITED,83325,166,74.39,REACTIVE MEP,07/10/2019,,Technical and Service Support,Works - Construction
800137631,SERVEST GROUP LIMITED,83325,167,47.84,REACTIVE MEP,07/10/2019,,Technical and Service Support,Works - Construction
800137631,SERVEST GROUP LIMITED,83325,168,427.36,REACTIVE MEP,07/10/2019,,Technical and Service Support,Works - Construction
800137631,SERVEST GROUP LIMITED,83325,169,60.9,REACTIVE MEP,07/10/2019,,Technical and Service Support,Works - Construction
800137631,SERVEST GROUP LIMITED,83325,170,41.3,REACTIVE MEP,07/10/2019,,Technical and Service Support,Works - Construction
800137631,SERVEST GROUP LIMITED,83325,171,72.92,REACTIVE MEP,07/10/2019,,Technical and Service Support,Works - Construction
800137631,SERVEST GROUP LIMITED,83325,172,231.3,REACTIVE MEP,07/10/2019,,Technical and Service Support,Works - Construction
800137631,SERVEST GROUP LIMITED,83325,173,295.62,REACTIVE MEP,07/10/2019,,Technical and Service Support,Works - Construction
800137631,SERVEST GROUP LIMITED,83325,174,201.38,REACTIVE MEP,07/10/2019,,Technical and Service Support,Works - Construction
800137631,SERVEST GROUP LIMITED,83325,175,"3,724.40",REACTIVE MEP,07/10/2019,,Technical and Service Support,Works - Construction
800137631,SERVEST GROUP LIMITED,83325,176,39.65,REACTIVE MEP,07/10/2019,,Technical and Service Support,Works - Construction
800137631,SERVEST GROUP LIMITED,83325,177,89.81,REACTIVE MEP,07/10/2019,,Technical and Service Support,Works - Construction
800137631,SERVEST GROUP LIMITED,83325,178,82.6,REACTIVE MEP,07/10/2019,,Technical and Service Support,Works - Construction
800137631,SERVEST GROUP LIMITED,83325,179,148.68,REACTIVE MEP,07/10/2019,,Technical and Service Support,Works - Construction
800137631,SERVEST GROUP LIMITED,83325,180,23.92,REACTIVE MEP,07/10/2019,,Technical and Service Support,Works - Construction
800137631,SERVEST GROUP LIMITED,83325,181,478.54,REACTIVE MEP,07/10/2019,,Technical and Service Support,Works - Construction
800137631,SERVEST GROUP LIMITED,83325,182,161.1,REACTIVE MEP,07/10/2019,,Technical and Service Support,Works - Construction
800137631,SERVEST GROUP LIMITED,83325,183,36.46,REACTIVE MEP,07/10/2019,,Technical and Service Support,Works - Construction
800137631,SERVEST GROUP LIMITED,83325,184,486.7,REACTIVE MEP,07/10/2019,,Technical and Service Support,Works - Construction
800137631,SERVEST GROUP LIMITED,83325,185,83.86,REACTIVE MEP,07/10/2019,,Technical and Service Support,Works - Construction
800137631,SERVEST GROUP LIMITED,83325,186,132.16,REACTIVE MEP,07/10/2019,,Technical and Service Support,Works - Construction
800137631,SERVEST GROUP LIMITED,83325,187,53.7,REACTIVE MEP,07/10/2019,,Technical and Service Support,Works - Construction
800137631,SERVEST GROUP LIMITED,83325,188,"2,514.59",REACTIVE MEP,07/10/2019,,Technical and Service Support,Works - Construction
800137631,SERVEST GROUP LIMITED,83325,189,"1,222.44",REACTIVE MEP,07/10/2019,,Technical and Service Support,Works - Construction
800137631,SERVEST GROUP LIMITED,83325,190,84.42,REACTIVE MEP,07/10/2019,,Technical and Service Support,Works - Construction
800137631,SERVEST GROUP LIMITED,83325,191,"5,661.22",REACTIVE MEP,07/10/2019,,Technical and Service Support,Works - Construction
800137631,SERVEST GROUP LIMITED,83325,192,181.72,REACTIVE MEP,07/10/2019,,Technical and Service Support,Works - Construction
800137631,SERVEST GROUP LIMITED,83325,193,"3,040.76",REACTIVE MEP,07/10/2019,,Technical and Service Support,Works - Construction
800137631,SERVEST GROUP LIMITED,83325,194,136.07,REACTIVE MEP,07/10/2019,,Technical and Service Support,Works - Construction
800137631,SERVEST GROUP LIMITED,83325,195,38.81,REACTIVE MEP,07/10/2019,,Technical and Service Support,Works - Construction
800137631,SERVEST GROUP LIMITED,83325,196,"1,146.33",REACTIVE MEP,07/10/2019,,Technical and Service Support,Works - Construction
800137631,SERVEST GROUP LIMITED,83325,197,"1,015.04",REACTIVE MEP,07/10/2019,,Technical and Service Support,Works - Construction
800137631,SERVEST GROUP LIMITED,83325,198,572.47,REACTIVE MEP,07/10/2019,,Technical and Service Support,Works - Construction
800137631,SERVEST GROUP LIMITED,83325,199,"1,164.15",REACTIVE MEP,07/10/2019,,Technical and Service Support,Works - Construction
800137631,SERVEST GROUP LIMITED,83325,200,541.8,REACTIVE MEP,07/10/2019,,Technical and Service Support,Works - Construction
800137631,SERVEST GROUP LIMITED,83325,201,262.21,REACTIVE MEP,07/10/2019,,Technical and Service Support,Works - Construction
800137631,SERVEST GROUP LIMITED,83325,202,39.65,REACTIVE MEP,07/10/2019,,Technical and Service Support,Works - Construction
800137631,SERVEST GROUP LIMITED,83325,203,951.68,REACTIVE MEP,07/10/2019,,Technical and Service Support,Works - Construction
800137631,SERVEST GROUP LIMITED,83325,204,391.54,REACTIVE MEP,07/10/2019,,Technical and Service Support,Works - Construction
800137631,SERVEST GROUP LIMITED,83325,205,53.7,REACTIVE MEP,07/10/2019,,Technical and Service Support,Works - Construction
800137631,SERVEST GROUP LIMITED,83325,206,669.94,REACTIVE MEP,07/10/2019,,Technical and Service Support,Works - Construction
800137631,SERVEST GROUP LIMITED,83325,207,"1,758.87",REACTIVE MEP,07/10/2019,,Technical and Service Support,Works - Construction
800137631,SERVEST GROUP LIMITED,83325,208,"1,153.13",REACTIVE MEP,07/10/2019,,Technical and Service Support,Works - Construction
800137631,SERVEST GROUP LIMITED,83325,209,9.12,REACTIVE MEP,07/10/2019,,Technical and Service Support,Works - Construction
800137631,SERVEST GROUP LIMITED,83325,210,"1,611.25",REACTIVE MEP,07/10/2019,,Technical and Service Support,Works - Construction
800137631,SERVEST GROUP LIMITED,83325,211,189.98,REACTIVE MEP,07/10/2019,,Technical and Service Support,Works - Construction
800137631,SERVEST GROUP LIMITED,83325,212,100.27,REACTIVE MEP,07/10/2019,,Technical and Service Support,Works - Construction
800137631,SERVEST GROUP LIMITED,83325,213,99.12,REACTIVE MEP,07/10/2019,,Technical and Service Support,Works - Construction
800137631,SERVEST GROUP LIMITED,83325,214,27.35,REACTIVE MEP,07/10/2019,,Technical and Service Support,Works - Construction
800137631,SERVEST GROUP LIMITED,83325,215,438.44,REACTIVE MEP,07/10/2019,,Technical and Service Support,Works - Construction
800137631,SERVEST GROUP LIMITED,83325,216,88.84,REACTIVE MEP,07/10/2019,,Technical and Service Support,Works - Construction
800137631,SERVEST GROUP LIMITED,83325,217,8.95,REACTIVE MEP,07/10/2019,,Technical and Service Support,Works - Construction
800137631,SERVEST GROUP LIMITED,83325,218,76.92,REACTIVE MEP,07/10/2019,,Technical and Service Support,Works - Construction
800137631,SERVEST GROUP LIMITED,83325,219,362.41,REACTIVE MEP,07/10/2019,,Technical and Service Support,Works - Construction
800137631,SERVEST GROUP LIMITED,83325,220,39.65,REACTIVE MEP,07/10/2019,,Technical and Service Support,Works - Construction
800137616,SERVEST GROUP LIMITED,83334,1,57.82,REACTIVE MEP,07/10/2019,"34,767.05",Technical and Service Support,Works - Construction
800137616,SERVEST GROUP LIMITED,83334,2,99.12,REACTIVE MEP,07/10/2019,,Technical and Service Support,Works - Construction
800137616,SERVEST GROUP LIMITED,83334,3,39.65,REACTIVE MEP,07/10/2019,,Technical and Service Support,Works - Construction
800137616,SERVEST GROUP LIMITED,83334,4,66.08,REACTIVE MEP,07/10/2019,,Technical and Service Support,Works - Construction
800137616,SERVEST GROUP LIMITED,83334,5,"1,208.20",REACTIVE MEP,07/10/2019,,Technical and Service Support,Works - Construction
800137616,SERVEST GROUP LIMITED,83334,6,"5,284.80",REACTIVE MEP,07/10/2019,,Technical and Service Support,Works - Construction
800137616,SERVEST GROUP LIMITED,83334,7,23.92,REACTIVE MEP,07/10/2019,,Technical and Service Support,Works - Construction
800137616,SERVEST GROUP LIMITED,83334,8,158,REACTIVE MEP,07/10/2019,,Technical and Service Support,Works - Construction
800137616,SERVEST GROUP LIMITED,83334,9,158,REACTIVE MEP,07/10/2019,,Technical and Service Support,Works - Construction
800137616,SERVEST GROUP LIMITED,83334,10,158,REACTIVE MEP,07/10/2019,,Technical and Service Support,Works - Construction
800137616,SERVEST GROUP LIMITED,83334,11,158,REACTIVE MEP,07/10/2019,,Technical and Service Support,Works - Construction
800137616,SERVEST GROUP LIMITED,83334,12,158,REACTIVE MEP,07/10/2019,,Technical and Service Support,Works - Construction
800137616,SERVEST GROUP LIMITED,83334,13,158,REACTIVE MEP,07/10/2019,,Technical and Service Support,Works - Construction
800137616,SERVEST GROUP LIMITED,83334,14,158,REACTIVE MEP,07/10/2019,,Technical and Service Support,Works - Construction
800137616,SERVEST GROUP LIMITED,83334,15,158,REACTIVE MEP,07/10/2019,,Technical and Service Support,Works - Construction
800137616,SERVEST GROUP LIMITED,83334,16,158,REACTIVE MEP,07/10/2019,,Technical and Service Support,Works - Construction
800137616,SERVEST GROUP LIMITED,83334,17,158,REACTIVE MEP,07/10/2019,,Technical and Service Support,Works - Construction
800137616,SERVEST GROUP LIMITED,83334,18,158,REACTIVE MEP,07/10/2019,,Technical and Service Support,Works - Construction
800137616,SERVEST GROUP LIMITED,83334,19,158,REACTIVE MEP,07/10/2019,,Technical and Service Support,Works - Construction
800137616,SERVEST GROUP LIMITED,83334,20,158,REACTIVE MEP,07/10/2019,,Technical and Service Support,Works - Construction
800137616,SERVEST GROUP LIMITED,83334,21,158,REACTIVE MEP,07/10/2019,,Technical and Service Support,Works - Construction
800137616,SERVEST GROUP LIMITED,83334,22,158,REACTIVE MEP,07/10/2019,,Technical and Service Support,Works - Construction
800137616,SERVEST GROUP LIMITED,83334,23,158,REACTIVE MEP,07/10/2019,,Technical and Service Support,Works - Construction
800137616,SERVEST GROUP LIMITED,83334,24,158,REACTIVE MEP,07/10/2019,,Technical and Service Support,Works - Construction
800137616,SERVEST GROUP LIMITED,83334,25,328,REACTIVE MEP,07/10/2019,,Technical and Service Support,Works - Construction
800137616,SERVEST GROUP LIMITED,83334,26,18.23,REACTIVE MEP,07/10/2019,,Technical and Service Support,Works - Construction
800137616,SERVEST GROUP LIMITED,83334,27,146.16,REACTIVE MEP,07/10/2019,,Technical and Service Support,Works - Construction
800137616,SERVEST GROUP LIMITED,83334,28,17.64,REACTIVE MEP,07/10/2019,,Technical and Service Support,Works - Construction
800137616,SERVEST GROUP LIMITED,83334,29,49.56,REACTIVE MEP,07/10/2019,,Technical and Service Support,Works - Construction
800137616,SERVEST GROUP LIMITED,83334,30,"1,550.00",REACTIVE MEP,07/10/2019,,Technical and Service Support,Works - Construction
800137616,SERVEST GROUP LIMITED,83334,31,90.86,REACTIVE MEP,07/10/2019,,Technical and Service Support,Works - Construction
800137616,SERVEST GROUP LIMITED,83334,32,158,REACTIVE MEP,07/10/2019,,Technical and Service Support,Works - Construction
800137616,SERVEST GROUP LIMITED,83334,33,76.92,REACTIVE MEP,07/10/2019,,Technical and Service Support,Works - Construction
800137616,SERVEST GROUP LIMITED,83334,34,115.38,REACTIVE MEP,07/10/2019,,Technical and Service Support,Works - Construction
800137616,SERVEST GROUP LIMITED,83334,35,70.54,REACTIVE MEP,07/10/2019,,Technical and Service Support,Works - Construction
800137616,SERVEST GROUP LIMITED,83334,36,66.08,REACTIVE MEP,07/10/2019,,Technical and Service Support,Works - Construction
800137616,SERVEST GROUP LIMITED,83334,37,66.08,REACTIVE MEP,07/10/2019,,Technical and Service Support,Works - Construction
800137616,SERVEST GROUP LIMITED,83334,38,183.24,REACTIVE MEP,07/10/2019,,Technical and Service Support,Works - Construction
800137616,SERVEST GROUP LIMITED,83334,39,33.04,REACTIVE MEP,07/10/2019,,Technical and Service Support,Works - Construction
800137616,SERVEST GROUP LIMITED,83334,40,33.04,REACTIVE MEP,07/10/2019,,Technical and Service Support,Works - Construction
800137616,SERVEST GROUP LIMITED,83334,41,286.34,REACTIVE MEP,07/10/2019,,Technical and Service Support,Works - Construction
800137616,SERVEST GROUP LIMITED,83334,42,340.1,REACTIVE MEP,07/10/2019,,Technical and Service Support,Works - Construction
800137616,SERVEST GROUP LIMITED,83334,43,435.9,REACTIVE MEP,07/10/2019,,Technical and Service Support,Works - Construction
800137616,SERVEST GROUP LIMITED,83334,44,39.65,REACTIVE MEP,07/10/2019,,Technical and Service Support,Works - Construction
800137616,SERVEST GROUP LIMITED,83334,45,66.08,REACTIVE MEP,07/10/2019,,Technical and Service Support,Works - Construction
800137616,SERVEST GROUP LIMITED,83334,46,45.58,REACTIVE MEP,07/10/2019,,Technical and Service Support,Works - Construction
800137616,SERVEST GROUP LIMITED,83334,47,109.38,REACTIVE MEP,07/10/2019,,Technical and Service Support,Works - Construction
800137616,SERVEST GROUP LIMITED,83334,48,38.81,REACTIVE MEP,07/10/2019,,Technical and Service Support,Works - Construction
800137616,SERVEST GROUP LIMITED,83334,49,44.48,REACTIVE MEP,07/10/2019,,Technical and Service Support,Works - Construction
800137616,SERVEST GROUP LIMITED,83334,50,265.45,REACTIVE MEP,07/10/2019,,Technical and Service Support,Works - Construction
800137616,SERVEST GROUP LIMITED,83334,51,16.24,REACTIVE MEP,07/10/2019,,Technical and Service Support,Works - Construction
800137616,SERVEST GROUP LIMITED,83334,52,66.08,REACTIVE MEP,07/10/2019,,Technical and Service Support,Works - Construction
800137616,SERVEST GROUP LIMITED,83334,53,145.84,REACTIVE MEP,07/10/2019,,Technical and Service Support,Works - Construction
800137616,SERVEST GROUP LIMITED,83334,54,101.45,REACTIVE MEP,07/10/2019,,Technical and Service Support,Works - Construction
800137616,SERVEST GROUP LIMITED,83334,55,160.98,REACTIVE MEP,07/10/2019,,Technical and Service Support,Works - Construction
800137616,SERVEST GROUP LIMITED,83334,56,254,REACTIVE MEP,07/10/2019,,Technical and Service Support,Works - Construction
800137616,SERVEST GROUP LIMITED,83334,57,89.5,REACTIVE MEP,07/10/2019,,Technical and Service Support,Works - Construction
800137616,SERVEST GROUP LIMITED,83334,58,495.09,REACTIVE MEP,07/10/2019,,Technical and Service Support,Works - Construction
800137616,SERVEST GROUP LIMITED,83334,59,18.23,REACTIVE MEP,07/10/2019,,Technical and Service Support,Works - Construction
800137616,SERVEST GROUP LIMITED,83334,60,23.92,REACTIVE MEP,07/10/2019,,Technical and Service Support,Works - Construction
800137616,SERVEST GROUP LIMITED,83334,61,71.6,REACTIVE MEP,07/10/2019,,Technical and Service Support,Works - Construction
800137616,SERVEST GROUP LIMITED,83334,62,115.64,REACTIVE MEP,07/10/2019,,Technical and Service Support,Works - Construction
800137616,SERVEST GROUP LIMITED,83334,63,48.72,REACTIVE MEP,07/10/2019,,Technical and Service Support,Works - Construction
800137616,SERVEST GROUP LIMITED,83334,64,79.3,REACTIVE MEP,07/10/2019,,Technical and Service Support,Works - Construction
800137616,SERVEST GROUP LIMITED,83334,65,107.4,REACTIVE MEP,07/10/2019,,Technical and Service Support,Works - Construction
800137616,SERVEST GROUP LIMITED,83334,66,38.81,REACTIVE MEP,07/10/2019,,Technical and Service Support,Works - Construction
800137616,SERVEST GROUP LIMITED,83334,67,376,REACTIVE MEP,07/10/2019,,Technical and Service Support,Works - Construction
800137616,SERVEST GROUP LIMITED,83334,68,57.82,REACTIVE MEP,07/10/2019,,Technical and Service Support,Works - Construction
800137616,SERVEST GROUP LIMITED,83334,69,"1,264.80",REACTIVE MEP,07/10/2019,,Technical and Service Support,Works - Construction
800137616,SERVEST GROUP LIMITED,83334,70,153.5,REACTIVE MEP,07/10/2019,,Technical and Service Support,Works - Construction
800137616,SERVEST GROUP LIMITED,83334,71,123.13,REACTIVE MEP,07/10/2019,,Technical and Service Support,Works - Construction
800137616,SERVEST GROUP LIMITED,83334,72,359.28,REACTIVE MEP,07/10/2019,,Technical and Service Support,Works - Construction
800137616,SERVEST GROUP LIMITED,83334,73,33.04,REACTIVE MEP,07/10/2019,,Technical and Service Support,Works - Construction
800137616,SERVEST GROUP LIMITED,83334,74,57.82,REACTIVE MEP,07/10/2019,,Technical and Service Support,Works - Construction
800137616,SERVEST GROUP LIMITED,83334,75,273.45,REACTIVE MEP,07/10/2019,,Technical and Service Support,Works - Construction
800137616,SERVEST GROUP LIMITED,83334,76,35.8,REACTIVE MEP,07/10/2019,,Technical and Service Support,Works - Construction
800137616,SERVEST GROUP LIMITED,83334,77,259.55,REACTIVE MEP,07/10/2019,,Technical and Service Support,Works - Construction
800137616,SERVEST GROUP LIMITED,83334,78,143.2,REACTIVE MEP,07/10/2019,,Technical and Service Support,Works - Construction
800137616,SERVEST GROUP LIMITED,83334,79,115.64,REACTIVE MEP,07/10/2019,,Technical and Service Support,Works - Construction
800137616,SERVEST GROUP LIMITED,83334,80,129.42,REACTIVE MEP,07/10/2019,,Technical and Service Support,Works - Construction
800137616,SERVEST GROUP LIMITED,83334,81,44.75,REACTIVE MEP,07/10/2019,,Technical and Service Support,Works - Construction
800137616,SERVEST GROUP LIMITED,83334,82,99.12,REACTIVE MEP,07/10/2019,,Technical and Service Support,Works - Construction
800137616,SERVEST GROUP LIMITED,83334,83,71.6,REACTIVE MEP,07/10/2019,,Technical and Service Support,Works - Construction
800137616,SERVEST GROUP LIMITED,83334,84,217.76,REACTIVE MEP,07/10/2019,,Technical and Service Support,Works - Construction
800137616,SERVEST GROUP LIMITED,83334,85,24.36,REACTIVE MEP,07/10/2019,,Technical and Service Support,Works - Construction
800137616,SERVEST GROUP LIMITED,83334,86,38.81,REACTIVE MEP,07/10/2019,,Technical and Service Support,Works - Construction
800137616,SERVEST GROUP LIMITED,83334,87,115.64,REACTIVE MEP,07/10/2019,,Technical and Service Support,Works - Construction
800137616,SERVEST GROUP LIMITED,83334,88,36.46,REACTIVE MEP,07/10/2019,,Technical and Service Support,Works - Construction
800137616,SERVEST GROUP LIMITED,83334,89,33.04,REACTIVE MEP,07/10/2019,,Technical and Service Support,Works - Construction
800137616,SERVEST GROUP LIMITED,83334,90,171.33,REACTIVE MEP,07/10/2019,,Technical and Service Support,Works - Construction
800137616,SERVEST GROUP LIMITED,83334,91,39.65,REACTIVE MEP,07/10/2019,,Technical and Service Support,Works - Construction
800137616,SERVEST GROUP LIMITED,83334,92,603.15,REACTIVE MEP,07/10/2019,,Technical and Service Support,Works - Construction
800137616,SERVEST GROUP LIMITED,83334,93,39.65,REACTIVE MEP,07/10/2019,,Technical and Service Support,Works - Construction
800137616,SERVEST GROUP LIMITED,83334,94,39.65,REACTIVE MEP,07/10/2019,,Technical and Service Support,Works - Construction
800137616,SERVEST GROUP LIMITED,83334,95,39.65,REACTIVE MEP,07/10/2019,,Technical and Service Support,Works - Construction
800137616,SERVEST GROUP LIMITED,83334,96,132.16,REACTIVE MEP,07/10/2019,,Technical and Service Support,Works - Construction
800137616,SERVEST GROUP LIMITED,83334,97,17.34,REACTIVE MEP,07/10/2019,,Technical and Service Support,Works - Construction
800137616,SERVEST GROUP LIMITED,83334,98,66.08,REACTIVE MEP,07/10/2019,,Technical and Service Support,Works - Construction
800137616,SERVEST GROUP LIMITED,83334,99,17.34,REACTIVE MEP,07/10/2019,,Technical and Service Support,Works - Construction
800137616,SERVEST GROUP LIMITED,83334,100,75,REACTIVE MEP,07/10/2019,,Technical and Service Support,Works - Construction
800137616,SERVEST GROUP LIMITED,83334,101,102.62,REACTIVE MEP,07/10/2019,,Technical and Service Support,Works - Construction
800137616,SERVEST GROUP LIMITED,83334,102,24.36,REACTIVE MEP,07/10/2019,,Technical and Service Support,Works - Construction
800137616,SERVEST GROUP LIMITED,83334,103,39.65,REACTIVE MEP,07/10/2019,,Technical and Service Support,Works - Construction
800137616,SERVEST GROUP LIMITED,83334,104,"1,638.41",REACTIVE MEP,07/10/2019,,Technical and Service Support,Works - Construction
800137616,SERVEST GROUP LIMITED,83334,105,54.35,REACTIVE MEP,07/10/2019,,Technical and Service Support,Works - Construction
800137616,SERVEST GROUP LIMITED,83334,106,207.04,REACTIVE MEP,07/10/2019,,Technical and Service Support,Works - Construction
800137616,SERVEST GROUP LIMITED,83334,107,24.78,REACTIVE MEP,07/10/2019,,Technical and Service Support,Works - Construction
800137616,SERVEST GROUP LIMITED,83334,108,38.81,REACTIVE MEP,07/10/2019,,Technical and Service Support,Works - Construction
800137616,SERVEST GROUP LIMITED,83334,109,318.56,REACTIVE MEP,07/10/2019,,Technical and Service Support,Works - Construction
800137616,SERVEST GROUP LIMITED,83334,110,315.54,REACTIVE MEP,07/10/2019,,Technical and Service Support,Works - Construction
800137616,SERVEST GROUP LIMITED,83334,111,18.23,REACTIVE MEP,07/10/2019,,Technical and Service Support,Works - Construction
800137616,SERVEST GROUP LIMITED,83334,112,113.81,REACTIVE MEP,07/10/2019,,Technical and Service Support,Works - Construction
800137616,SERVEST GROUP LIMITED,83334,113,55.89,REACTIVE MEP,07/10/2019,,Technical and Service Support,Works - Construction
800137616,SERVEST GROUP LIMITED,83334,114,116.5,REACTIVE MEP,07/10/2019,,Technical and Service Support,Works - Construction
800137616,SERVEST GROUP LIMITED,83334,115,190.64,REACTIVE MEP,07/10/2019,,Technical and Service Support,Works - Construction
800137616,SERVEST GROUP LIMITED,83334,116,33.04,REACTIVE MEP,07/10/2019,,Technical and Service Support,Works - Construction
800137616,SERVEST GROUP LIMITED,83334,117,12.18,REACTIVE MEP,07/10/2019,,Technical and Service Support,Works - Construction
800137616,SERVEST GROUP LIMITED,83334,118,202.61,REACTIVE MEP,07/10/2019,,Technical and Service Support,Works - Construction
800137616,SERVEST GROUP LIMITED,83334,119,110.8,REACTIVE MEP,07/10/2019,,Technical and Service Support,Works - Construction
800137616,SERVEST GROUP LIMITED,83334,120,50.65,REACTIVE MEP,07/10/2019,,Technical and Service Support,Works - Construction
800137616,SERVEST GROUP LIMITED,83334,121,82.6,REACTIVE MEP,07/10/2019,,Technical and Service Support,Works - Construction
800137616,SERVEST GROUP LIMITED,83334,122,355.48,REACTIVE MEP,07/10/2019,,Technical and Service Support,Works - Construction
800137616,SERVEST GROUP LIMITED,83334,123,36.46,REACTIVE MEP,07/10/2019,,Technical and Service Support,Works - Construction
800137616,SERVEST GROUP LIMITED,83334,124,18.23,REACTIVE MEP,07/10/2019,,Technical and Service Support,Works - Construction
800137616,SERVEST GROUP LIMITED,83334,125,23.92,REACTIVE MEP,07/10/2019,,Technical and Service Support,Works - Construction
800137616,SERVEST GROUP LIMITED,83334,126,141.08,REACTIVE MEP,07/10/2019,,Technical and Service Support,Works - Construction
800137616,SERVEST GROUP LIMITED,83334,127,33.04,REACTIVE MEP,07/10/2019,,Technical and Service Support,Works - Construction
800137616,SERVEST GROUP LIMITED,83334,128,91.15,REACTIVE MEP,07/10/2019,,Technical and Service Support,Works - Construction
800137616,SERVEST GROUP LIMITED,83334,129,121.8,REACTIVE MEP,07/10/2019,,Technical and Service Support,Works - Construction
800137616,SERVEST GROUP LIMITED,83334,130,75,REACTIVE MEP,07/10/2019,,Technical and Service Support,Works - Construction
800137616,SERVEST GROUP LIMITED,83334,131,82.6,REACTIVE MEP,07/10/2019,,Technical and Service Support,Works - Construction
800137616,SERVEST GROUP LIMITED,83334,132,165.37,REACTIVE MEP,07/10/2019,,Technical and Service Support,Works - Construction
800137616,SERVEST GROUP LIMITED,83334,133,39.65,REACTIVE MEP,07/10/2019,,Technical and Service Support,Works - Construction
800137616,SERVEST GROUP LIMITED,83334,134,141.96,REACTIVE MEP,07/10/2019,,Technical and Service Support,Works - Construction
800137616,SERVEST GROUP LIMITED,83334,135,232.56,REACTIVE MEP,07/10/2019,,Technical and Service Support,Works - Construction
800137616,SERVEST GROUP LIMITED,83334,136,33.04,REACTIVE MEP,07/10/2019,,Technical and Service Support,Works - Construction
800137616,SERVEST GROUP LIMITED,83334,137,59.1,REACTIVE MEP,07/10/2019,,Technical and Service Support,Works - Construction
800137616,SERVEST GROUP LIMITED,83334,138,75,REACTIVE MEP,07/10/2019,,Technical and Service Support,Works - Construction
800137616,SERVEST GROUP LIMITED,83334,139,50.65,REACTIVE MEP,07/10/2019,,Technical and Service Support,Works - Construction
800137616,SERVEST GROUP LIMITED,83334,140,434.27,REACTIVE MEP,07/10/2019,,Technical and Service Support,Works - Construction
800137616,SERVEST GROUP LIMITED,83334,141,33.04,REACTIVE MEP,07/10/2019,,Technical and Service Support,Works - Construction
800137616,SERVEST GROUP LIMITED,83334,142,38.81,REACTIVE MEP,07/10/2019,,Technical and Service Support,Works - Construction
800137616,SERVEST GROUP LIMITED,83334,143,138.95,REACTIVE MEP,07/10/2019,,Technical and Service Support,Works - Construction
800137616,SERVEST GROUP LIMITED,83334,144,148.68,REACTIVE MEP,07/10/2019,,Technical and Service Support,Works - Construction
800137616,SERVEST GROUP LIMITED,83334,145,131.06,REACTIVE MEP,07/10/2019,,Technical and Service Support,Works - Construction
800137616,SERVEST GROUP LIMITED,83334,146,66.08,REACTIVE MEP,07/10/2019,,Technical and Service Support,Works - Construction
800137616,SERVEST GROUP LIMITED,83334,147,120.72,REACTIVE MEP,07/10/2019,,Technical and Service Support,Works - Construction
800137616,SERVEST GROUP LIMITED,83334,148,179.39,REACTIVE MEP,07/10/2019,,Technical and Service Support,Works - Construction
800137616,SERVEST GROUP LIMITED,83334,149,124.56,REACTIVE MEP,07/10/2019,,Technical and Service Support,Works - Construction
800137616,SERVEST GROUP LIMITED,83334,150,33.04,REACTIVE MEP,07/10/2019,,Technical and Service Support,Works - Construction
800137616,SERVEST GROUP LIMITED,83334,151,342.24,REACTIVE MEP,07/10/2019,,Technical and Service Support,Works - Construction
800137616,SERVEST GROUP LIMITED,83334,152,41.14,REACTIVE MEP,07/10/2019,,Technical and Service Support,Works - Construction
800137616,SERVEST GROUP LIMITED,83334,153,50.65,REACTIVE MEP,07/10/2019,,Technical and Service Support,Works - Construction
800137616,SERVEST GROUP LIMITED,83334,154,26.85,REACTIVE MEP,07/10/2019,,Technical and Service Support,Works - Construction
800137616,SERVEST GROUP LIMITED,83334,155,36.46,REACTIVE MEP,07/10/2019,,Technical and Service Support,Works - Construction
800137616,SERVEST GROUP LIMITED,83334,156,192.91,REACTIVE MEP,07/10/2019,,Technical and Service Support,Works - Construction
800137616,SERVEST GROUP LIMITED,83334,157,53.7,REACTIVE MEP,07/10/2019,,Technical and Service Support,Works - Construction
800137616,SERVEST GROUP LIMITED,83334,158,234.76,REACTIVE MEP,07/10/2019,,Technical and Service Support,Works - Construction
800137616,SERVEST GROUP LIMITED,83334,159,83.41,REACTIVE MEP,07/10/2019,,Technical and Service Support,Works - Construction
800137616,SERVEST GROUP LIMITED,83334,160,49.56,REACTIVE MEP,07/10/2019,,Technical and Service Support,Works - Construction
800137616,SERVEST GROUP LIMITED,83334,161,17.34,REACTIVE MEP,07/10/2019,,Technical and Service Support,Works - Construction
800137616,SERVEST GROUP LIMITED,83334,162,367.88,REACTIVE MEP,07/10/2019,,Technical and Service Support,Works - Construction
800137616,SERVEST GROUP LIMITED,83334,163,71.6,REACTIVE MEP,07/10/2019,,Technical and Service Support,Works - Construction
800137616,SERVEST GROUP LIMITED,83334,164,27.34,REACTIVE MEP,07/10/2019,,Technical and Service Support,Works - Construction
800137616,SERVEST GROUP LIMITED,83334,165,86.96,REACTIVE MEP,07/10/2019,,Technical and Service Support,Works - Construction
800137616,SERVEST GROUP LIMITED,83334,166,35.8,REACTIVE MEP,07/10/2019,,Technical and Service Support,Works - Construction
800137616,SERVEST GROUP LIMITED,83334,167,66.08,REACTIVE MEP,07/10/2019,,Technical and Service Support,Works - Construction
800137616,SERVEST GROUP LIMITED,83334,168,281.9,REACTIVE MEP,07/10/2019,,Technical and Service Support,Works - Construction
800137616,SERVEST GROUP LIMITED,83334,169,220.28,REACTIVE MEP,07/10/2019,,Technical and Service Support,Works - Construction
800137616,SERVEST GROUP LIMITED,83334,170,39.65,REACTIVE MEP,07/10/2019,,Technical and Service Support,Works - Construction
800137616,SERVEST GROUP LIMITED,83334,171,205.73,REACTIVE MEP,07/10/2019,,Technical and Service Support,Works - Construction
800137616,SERVEST GROUP LIMITED,83334,172,476.12,REACTIVE MEP,07/10/2019,,Technical and Service Support,Works - Construction
800137616,SERVEST GROUP LIMITED,83334,173,213.64,REACTIVE MEP,07/10/2019,,Technical and Service Support,Works - Construction
800137616,SERVEST GROUP LIMITED,83334,174,111.65,REACTIVE MEP,07/10/2019,,Technical and Service Support,Works - Construction
800137616,SERVEST GROUP LIMITED,83334,175,248.46,REACTIVE MEP,07/10/2019,,Technical and Service Support,Works - Construction
800137616,SERVEST GROUP LIMITED,83334,176,264.34,REACTIVE MEP,07/10/2019,,Technical and Service Support,Works - Construction
800137616,SERVEST GROUP LIMITED,83334,177,164.05,REACTIVE MEP,07/10/2019,,Technical and Service Support,Works - Construction
800137616,SERVEST GROUP LIMITED,83334,178,115.73,REACTIVE MEP,07/10/2019,,Technical and Service Support,Works - Construction
800137616,SERVEST GROUP LIMITED,83334,179,92.64,REACTIVE MEP,07/10/2019,,Technical and Service Support,Works - Construction
800137616,SERVEST GROUP LIMITED,83334,180,90.38,REACTIVE MEP,07/10/2019,,Technical and Service Support,Works - Construction
800137616,SERVEST GROUP LIMITED,83334,181,207.16,REACTIVE MEP,07/10/2019,,Technical and Service Support,Works - Construction
800137616,SERVEST GROUP LIMITED,83334,182,33.04,REACTIVE MEP,07/10/2019,,Technical and Service Support,Works - Construction
800137616,SERVEST GROUP LIMITED,83334,183,75,REACTIVE MEP,07/10/2019,,Technical and Service Support,Works - Construction
800137616,SERVEST GROUP LIMITED,83334,184,78.08,REACTIVE MEP,07/10/2019,,Technical and Service Support,Works - Construction
800137616,SERVEST GROUP LIMITED,83334,185,89.5,REACTIVE MEP,07/10/2019,,Technical and Service Support,Works - Construction
800137616,SERVEST GROUP LIMITED,83334,186,143.2,REACTIVE MEP,07/10/2019,,Technical and Service Support,Works - Construction
800137616,SERVEST GROUP LIMITED,83334,187,82.6,REACTIVE MEP,07/10/2019,,Technical and Service Support,Works - Construction
800137616,SERVEST GROUP LIMITED,83334,188,143.2,REACTIVE MEP,07/10/2019,,Technical and Service Support,Works - Construction
800137616,SERVEST GROUP LIMITED,83334,189,164.23,REACTIVE MEP,07/10/2019,,Technical and Service Support,Works - Construction
800137616,SERVEST GROUP LIMITED,83334,190,497.76,REACTIVE MEP,07/10/2019,,Technical and Service Support,Works - Construction
800137616,SERVEST GROUP LIMITED,83334,191,102.34,REACTIVE MEP,07/10/2019,,Technical and Service Support,Works - Construction
800137616,SERVEST GROUP LIMITED,83334,192,48.26,REACTIVE MEP,07/10/2019,,Technical and Service Support,Works - Construction
800137616,SERVEST GROUP LIMITED,83334,193,115.64,REACTIVE MEP,07/10/2019,,Technical and Service Support,Works - Construction
800137616,SERVEST GROUP LIMITED,83334,194,156.64,REACTIVE MEP,07/10/2019,,Technical and Service Support,Works - Construction
800137616,SERVEST GROUP LIMITED,83334,195,24.78,REACTIVE MEP,07/10/2019,,Technical and Service Support,Works - Construction
800137616,SERVEST GROUP LIMITED,83334,196,33.04,REACTIVE MEP,07/10/2019,,Technical and Service Support,Works - Construction
800137616,SERVEST GROUP LIMITED,83334,197,39.65,REACTIVE MEP,07/10/2019,,Technical and Service Support,Works - Construction
800137616,SERVEST GROUP LIMITED,83334,198,95,REACTIVE MEP,07/10/2019,,Technical and Service Support,Works - Construction
800137616,SERVEST GROUP LIMITED,83334,199,75,REACTIVE MEP,07/10/2019,,Technical and Service Support,Works - Construction
011019G,Fulkers Bailey Russell,8468,1,"1,155.00",REACTIVE SMALL WORKS AND PROJ,07/10/2019,"1,155.00",Technical and Service Support,Works - Construction
011019G,Fulkers Bailey Russell,8471,1,579.68,PROF FEES-MISCELLANEOUS,07/10/2019,579.68,Technical and Service Support,Consultancy
011019G,Fulkers Bailey Russell,8472,1,260.27,PROF FEES-MISCELLANEOUS,07/10/2019,260.27,Technical and Service Support,Consultancy
011019G,Fulkers Bailey Russell,8473,1,"3,574.33",PROF FEES-MISCELLANEOUS,07/10/2019,"3,574.33",Technical and Service Support,Consultancy
190919K,TSI INSTRUMENTS LTD,91139470,1,470,REPAIR & MAINTENANCE,07/10/2019,955,Technical and Service Support,Furniture & Soft Furnishings
190919K,TSI INSTRUMENTS LTD,91139470,2,470,REPAIR & MAINTENANCE,07/10/2019,,Technical and Service Support,Furniture & Soft Furnishings
190919K,TSI INSTRUMENTS LTD,91139470,3,15,REPAIR & MAINTENANCE,07/10/2019,,Technical and Service Support,Furniture & Soft Furnishings
021019K,ADVECO LTD T/A AO SMITH WATER,93788,1,"4,890.00",REACTIVE SMALL WORKS AND PROJ,07/10/2019,"4,890.00",Technical and Service Support,Works - Construction
021019K,ADVECO LTD T/A AO SMITH WATER,93789,1,445,REACTIVE SMALL WORKS AND PROJ,07/10/2019,445,Technical and Service Support,Works - Construction
021019K,ADVECO LTD T/A AO SMITH WATER,93794,1,445,REACTIVE SMALL WORKS AND PROJ,07/10/2019,445,Technical and Service Support,Works - Construction
021019K,ADVECO LTD T/A AO SMITH WATER,93795,1,445,REACTIVE SMALL WORKS AND PROJ,07/10/2019,445,Technical and Service Support,Works - Construction
021019K,ADVECO LTD T/A AO SMITH WATER,93796,1,585,REACTIVE SMALL WORKS AND PROJ,07/10/2019,585,Technical and Service Support,Works - Construction
021019K,ADVECO LTD T/A AO SMITH WATER,93799,1,445,REACTIVE SMALL WORKS AND PROJ,07/10/2019,445,Technical and Service Support,Works - Construction
021019K,ADVECO LTD T/A AO SMITH WATER,93803,1,"4,725.00",REACTIVE SMALL WORKS AND PROJ,07/10/2019,"4,725.00",Technical and Service Support,Works - Construction
021019V,ADVECO LTD T/A AO SMITH WATER,93804,1,"5,320.00",REACTIVE SMALL WORKS AND PROJ,07/10/2019,"5,320.00",Technical and Service Support,Works - Construction
200919V,MAYORS OFF FOR POLICING&CRIME,9411011032,1,"77,250.00",GLA GROUP SHARED SERVICES,07/10/2019,"77,250.00",Finance Services,Human Resources
011019G,BSI MANAGEMENT SYSTEMS,95351145,1,"3,024.00",SUBSCRIPTIONS,07/10/2019,"3,024.00",Procurement,Financial Services
011019V,BTU HEATING LTD,C001366,1,"9,259.30",DEVELOPMENT  EXPENSES-CONTRACT,07/10/2019,"9,259.30",Technical and Service Support,Building Constr Materials
230919F,GRAFTON MERCHANTING GB LTD,CRO/311236,1,236.6,PROTECTIVE CLOTHING,07/10/2019,269.83,Fire Stations (North East),Clothing
230919F,GRAFTON MERCHANTING GB LTD,CRO/311236,2,15.63,CLOTHING,07/10/2019,,Fire Stations (North East),Clothing
230919F,GRAFTON MERCHANTING GB LTD,CRO/311236,3,8.8,OPERATIONAL EQUIP-PURCHASE,07/10/2019,,Fire Stations (North East),Fire & Rescue
230919F,GRAFTON MERCHANTING GB LTD,CRO/311236,4,8.8,OPERATIONAL EQUIP-PURCHASE,07/10/2019,,Fire Stations (North East),Fire & Rescue
142837,LEX AUTOLEASE,EXI1337210,1,367.72,LEASE CAR CHARGES,07/10/2019,338.4,Procurement,Vehicle Management
142837,LEX AUTOLEASE,EXI1337210,2,-29.32,VAT CAR LEASING,07/10/2019,,Finance Services,Vehicle Management
142837,LEX AUTOLEASE,EXI1338391,1,423.49,LEASE CAR CHARGES,07/10/2019,389.96,Procurement,Vehicle Management
142837,LEX AUTOLEASE,EXI1338391,2,-33.53,VAT CAR LEASING,07/10/2019,,Finance Services,Vehicle Management
142837,LEX AUTOLEASE,EXI1339411,1,499.59,LEASE CAR CHARGES,07/10/2019,459.77,Procurement,Vehicle Management
142837,LEX AUTOLEASE,EXI1339411,2,-39.82,VAT CAR LEASING,07/10/2019,,Finance Services,Vehicle Management
142837,LEX AUTOLEASE,EXI1339491,1,445.89,LEASE CAR CHARGES,07/10/2019,409.88,Procurement,Vehicle Management
142837,LEX AUTOLEASE,EXI1339491,2,-36.01,VAT CAR LEASING,07/10/2019,,Finance Services,Vehicle Management
142837,LEX AUTOLEASE,EXI1339515,1,389.54,LEASE CAR CHARGES,07/10/2019,358.24,Procurement,Vehicle Management
142837,LEX AUTOLEASE,EXI1339515,2,-31.3,VAT CAR LEASING,07/10/2019,,Finance Services,Vehicle Management
021019K,HALL FUELS,I11260928,1,"2,069.40",FUEL,07/10/2019,"2,069.40",Fire Stations (North West),Vehicle Management
021019K,HALL FUELS,I11277664,1,"4,136.35",FUEL,07/10/2019,"4,136.35",Fire Stations (North East),Vehicle Management
011019V,Quintain Facilities Management,INV-00082,1,"8,666.66",PROFESSIONAL SERVICES,07/10/2019,"8,666.66",Technical and Service Support,Consultancy
142837,DAYS CONTRACT HIRE,INV00226921,1,"5,465.42",LEASE CAR CHARGES,07/10/2019,"5,023.44",Procurement,Vehicle Management
142837,DAYS CONTRACT HIRE,INV00226921,2,-441.98,VAT CAR LEASING,07/10/2019,,Finance Services,Vehicle Management
142837,DAYS CONTRACT HIRE,INV00227708,1,"4,404.05",LEASE CAR CHARGES,07/10/2019,"4,050.12",Procurement,Vehicle Management
142837,DAYS CONTRACT HIRE,INV00227708,2,-353.93,VAT CAR LEASING,07/10/2019,,Finance Services,Vehicle Management
142837,DAYS CONTRACT HIRE,INV00227739,1,359.38,LEASE CAR CHARGES,07/10/2019,330.24,Procurement,Vehicle Management
142837,DAYS CONTRACT HIRE,INV00227739,2,-29.14,VAT CAR LEASING,07/10/2019,,Finance Services,Vehicle Management
142837,DAYS CONTRACT HIRE,INV00227740,1,408.82,LEASE CAR CHARGES,07/10/2019,375.56,Procurement,Vehicle Management
142837,DAYS CONTRACT HIRE,INV00227740,2,-33.26,VAT CAR LEASING,07/10/2019,,Finance Services,Vehicle Management
011019G,B NOKES CONTRACTS LTD,MCE788,1,440,REACTIVE SMALL WORKS AND PROJ,07/10/2019,440,Technical and Service Support,Works - Construction
011019V,B NOKES CONTRACTS LTD,MCE797,1,"7,866.75",REACTIVE SMALL WORKS AND PROJ,07/10/2019,"7,866.75",Technical and Service Support,Works - Construction
021019K,B NOKES CONTRACTS LTD,MCE798,1,821,REACTIVE SMALL WORKS AND PROJ,07/10/2019,821,Technical and Service Support,Works - Construction
011019V,B NOKES CONTRACTS LTD,MCE799,1,"5,244.50",REACTIVE SMALL WORKS AND PROJ,07/10/2019,"5,244.50",Technical and Service Support,Works - Construction
011019G,B NOKES CONTRACTS LTD,MCE825,1,"1,984.00",REACTIVE SMALL WORKS AND PROJ,07/10/2019,"1,984.00",Technical and Service Support,Works - Construction
021019K,NATIONAL EXHIBITION CENTRE,OP/I408384,1,352.7,REFRESHMENTS,07/10/2019,352.7,Operational Resilience,Catering
180919G,PHOENIX SOFTWARE LTD,OP/I850116,1,"2,562.50",SOFTWARE COTS,07/10/2019,"2,562.50",Infrastructure Team (ICT),ICT
011019G,ETC VENUES LTD,PH-222595,1,670,HIRE OF FACILITIES,07/10/2019,670,CPO People Programme,Facilities & Management Services
021019K,PILLINGER CONTROLS LTD,PI79208,1,540,REACTIVE SMALL WORKS AND PROJ,07/10/2019,540,Technical and Service Support,Works - Construction
011019V,RADIOCOMS SYSTEMS LIMITED,RSLSI19007164,1,"5,800.40",RADIO,07/10/2019,"8,444.25",Enterprise Application Group (ICT),ICT
011019V,RADIOCOMS SYSTEMS LIMITED,RSLSI19007164,2,883.95,RADIO,07/10/2019,,Enterprise Application Group (ICT),ICT
011019V,RADIOCOMS SYSTEMS LIMITED,RSLSI19007164,3,10,RADIO,07/10/2019,,Enterprise Application Group (ICT),ICT
011019V,RADIOCOMS SYSTEMS LIMITED,RSLSI19007164,4,453.4,RADIO,07/10/2019,,Enterprise Application Group (ICT),ICT
011019V,RADIOCOMS SYSTEMS LIMITED,RSLSI19007164,5,"1,296.50",RADIO,07/10/2019,,Enterprise Application Group (ICT),ICT
011019V,SECURITAS SECURITY SERVICES LT,S-SIN1117509,1,"364,932.80",GENERAL,07/10/2019,"364,932.80",Procurement,Consultancy
021019K,BUTTERFLY BOOKS LIMITED,SI-104,1,"7,000.00",PRINTING,07/10/2019,"7,000.00",Corporate Management Team,Facilities & Management Services
200919V,GOVERNMENT ACTUARY'S DEPT,SINV/00029721,1,"6,200.00",PENSION SERVICES,07/10/2019,"8,200.00",Central Finance,Financial Services
200919V,GOVERNMENT ACTUARY'S DEPT,SINV/00029721,2,500,PENSION SERVICES,07/10/2019,,Central Finance,Financial Services
200919V,GOVERNMENT ACTUARY'S DEPT,SINV/00029721,3,"1,500.00",PENSION SERVICES,07/10/2019,,Central Finance,Financial Services
011019G,COLLINS (CONTRACTORS) LTD,SPAW731/19LFEP02,1,"1,779.37",DEVELOPMENT  EXPENSES-CONTRACT,07/10/2019,"1,779.37",Technical and Service Support,"Works - Construction, R&M"
800137447,THOMAS KNEALE & CO LTD,TK127675,1,10.89,BEDS & SOFT FURNISHINGS,07/10/2019,669.79,Fire Stations (North East),Furniture & Soft Furnishings
800137447,THOMAS KNEALE & CO LTD,TK127675,2,1.48,BEDS & SOFT FURNISHINGS,07/10/2019,,Fire Stations (North East),Furniture & Soft Furnishings
800137447,THOMAS KNEALE & CO LTD,TK127675,3,3.47,BEDS & SOFT FURNISHINGS,07/10/2019,,Fire Stations (South West),Furniture & Soft Furnishings
800137447,THOMAS KNEALE & CO LTD,TK127675,4,1.48,BEDS & SOFT FURNISHINGS,07/10/2019,,Fire Stations (South West),Furniture & Soft Furnishings
800137447,THOMAS KNEALE & CO LTD,TK127675,5,6.94,BEDS & SOFT FURNISHINGS,07/10/2019,,Fire Stations (South East),Furniture & Soft Furnishings
800137447,THOMAS KNEALE & CO LTD,TK127675,6,1.48,BEDS & SOFT FURNISHINGS,07/10/2019,,Fire Stations (South East),Furniture & Soft Furnishings
800137447,THOMAS KNEALE & CO LTD,TK127675,7,1.48,BEDS & SOFT FURNISHINGS,07/10/2019,,Fire Stations (North East),Furniture & Soft Furnishings
800137447,THOMAS KNEALE & CO LTD,TK127675,8,3.47,BEDS & SOFT FURNISHINGS,07/10/2019,,Fire Stations (North East),Furniture & Soft Furnishings
800137447,THOMAS KNEALE & CO LTD,TK127675,9,10.89,BEDS & SOFT FURNISHINGS,07/10/2019,,Fire Stations (North West),Furniture & Soft Furnishings
800137447,THOMAS KNEALE & CO LTD,TK127675,10,10.89,BEDS & SOFT FURNISHINGS,07/10/2019,,Fire Stations (North East),Furniture & Soft Furnishings
800137447,THOMAS KNEALE & CO LTD,TK127675,11,3.47,BEDS & SOFT FURNISHINGS,07/10/2019,,Fire Stations (North East),Furniture & Soft Furnishings
800137447,THOMAS KNEALE & CO LTD,TK127675,12,1.48,BEDS & SOFT FURNISHINGS,07/10/2019,,Fire Stations (North East),Furniture & Soft Furnishings
800137447,THOMAS KNEALE & CO LTD,TK127675,13,10.89,BEDS & SOFT FURNISHINGS,07/10/2019,,Fire Stations (South East),Furniture & Soft Furnishings
800137447,THOMAS KNEALE & CO LTD,TK127675,14,3.47,BEDS & SOFT FURNISHINGS,07/10/2019,,Fire Stations (South East),Furniture & Soft Furnishings
800137447,THOMAS KNEALE & CO LTD,TK127675,15,1.48,BEDS & SOFT FURNISHINGS,07/10/2019,,Fire Stations (South East),Furniture & Soft Furnishings
800137447,THOMAS KNEALE & CO LTD,TK127675,16,10.89,BEDS & SOFT FURNISHINGS,07/10/2019,,Fire Stations (South West),Furniture & Soft Furnishings
800137447,THOMAS KNEALE & CO LTD,TK127675,17,0.99,BEDS & SOFT FURNISHINGS,07/10/2019,,Fire Stations (South West),Furniture & Soft Furnishings
800137447,THOMAS KNEALE & CO LTD,TK127675,18,3.47,BEDS & SOFT FURNISHINGS,07/10/2019,,Fire Stations (South West),Furniture & Soft Furnishings
800137447,THOMAS KNEALE & CO LTD,TK127675,19,10.89,BEDS & SOFT FURNISHINGS,07/10/2019,,Fire Stations (North West),Furniture & Soft Furnishings
800137447,THOMAS KNEALE & CO LTD,TK127675,20,0.99,BEDS & SOFT FURNISHINGS,07/10/2019,,Fire Stations (North West),Furniture & Soft Furnishings
800137447,THOMAS KNEALE & CO LTD,TK127675,21,3.47,BEDS & SOFT FURNISHINGS,07/10/2019,,Fire Stations (North West),Furniture & Soft Furnishings
800137447,THOMAS KNEALE & CO LTD,TK127675,22,1.48,BEDS & SOFT FURNISHINGS,07/10/2019,,Fire Stations (North West),Furniture & Soft Furnishings
800137447,THOMAS KNEALE & CO LTD,TK127675,23,10.89,BEDS & SOFT FURNISHINGS,07/10/2019,,Fire Stations (North East),Furniture & Soft Furnishings
800137447,THOMAS KNEALE & CO LTD,TK127675,24,10.89,BEDS & SOFT FURNISHINGS,07/10/2019,,Fire Stations (North East),Furniture & Soft Furnishings
800137447,THOMAS KNEALE & CO LTD,TK127675,25,0.99,BEDS & SOFT FURNISHINGS,07/10/2019,,Fire Stations (North East),Furniture & Soft Furnishings
800137447,THOMAS KNEALE & CO LTD,TK127675,26,3.47,BEDS & SOFT FURNISHINGS,07/10/2019,,Fire Stations (North East),Furniture & Soft Furnishings
800137447,THOMAS KNEALE & CO LTD,TK127675,27,10.89,BEDS & SOFT FURNISHINGS,07/10/2019,,Fire Stations (North West),Furniture & Soft Furnishings
800137447,THOMAS KNEALE & CO LTD,TK127675,28,0.99,BEDS & SOFT FURNISHINGS,07/10/2019,,Fire Stations (North West),Furniture & Soft Furnishings
800137447,THOMAS KNEALE & CO LTD,TK127675,29,3.47,BEDS & SOFT FURNISHINGS,07/10/2019,,Fire Stations (North West),Furniture & Soft Furnishings
800137447,THOMAS KNEALE & CO LTD,TK127675,30,1.48,BEDS & SOFT FURNISHINGS,07/10/2019,,Fire Stations (North West),Furniture & Soft Furnishings
800137447,THOMAS KNEALE & CO LTD,TK127675,31,10.89,BEDS & SOFT FURNISHINGS,07/10/2019,,Fire Stations (North West),Furniture & Soft Furnishings
800137447,THOMAS KNEALE & CO LTD,TK127675,32,0.99,BEDS & SOFT FURNISHINGS,07/10/2019,,Fire Stations (North West),Furniture & Soft Furnishings
800137447,THOMAS KNEALE & CO LTD,TK127675,33,3.47,BEDS & SOFT FURNISHINGS,07/10/2019,,Fire Stations (North West),Furniture & Soft Furnishings
800137447,THOMAS KNEALE & CO LTD,TK127675,34,1.48,BEDS & SOFT FURNISHINGS,07/10/2019,,Fire Stations (North West),Furniture & Soft Furnishings
800137447,THOMAS KNEALE & CO LTD,TK127675,35,10.89,BEDS & SOFT FURNISHINGS,07/10/2019,,Fire Stations (South East),Furniture & Soft Furnishings
800137447,THOMAS KNEALE & CO LTD,TK127675,36,10.89,BEDS & SOFT FURNISHINGS,07/10/2019,,Fire Stations (South East),Furniture & Soft Furnishings
800137447,THOMAS KNEALE & CO LTD,TK127675,37,0.99,BEDS & SOFT FURNISHINGS,07/10/2019,,Fire Stations (South East),Furniture & Soft Furnishings
800137447,THOMAS KNEALE & CO LTD,TK127675,38,6.94,BEDS & SOFT FURNISHINGS,07/10/2019,,Fire Stations (South East),Furniture & Soft Furnishings
800137447,THOMAS KNEALE & CO LTD,TK127675,39,2.96,BEDS & SOFT FURNISHINGS,07/10/2019,,Fire Stations (South East),Furniture & Soft Furnishings
800137447,THOMAS KNEALE & CO LTD,TK127675,40,2.84,BEDS & SOFT FURNISHINGS,07/10/2019,,Fire Stations (South East),Furniture & Soft Furnishings
800137447,THOMAS KNEALE & CO LTD,TK127675,41,10.89,BEDS & SOFT FURNISHINGS,07/10/2019,,Fire Stations (South West),Furniture & Soft Furnishings
800137447,THOMAS KNEALE & CO LTD,TK127675,42,0.99,BEDS & SOFT FURNISHINGS,07/10/2019,,Fire Stations (South West),Furniture & Soft Furnishings
800137447,THOMAS KNEALE & CO LTD,TK127675,43,3.47,BEDS & SOFT FURNISHINGS,07/10/2019,,Fire Stations (South West),Furniture & Soft Furnishings
800137447,THOMAS KNEALE & CO LTD,TK127675,44,1.48,BEDS & SOFT FURNISHINGS,07/10/2019,,Fire Stations (South West),Furniture & Soft Furnishings
800137447,THOMAS KNEALE & CO LTD,TK127675,45,2.84,BEDS & SOFT FURNISHINGS,07/10/2019,,Fire Stations (South West),Furniture & Soft Furnishings
800137447,THOMAS KNEALE & CO LTD,TK127675,46,10.89,BEDS & SOFT FURNISHINGS,07/10/2019,,Fire Stations (South West),Furniture & Soft Furnishings
800137447,THOMAS KNEALE & CO LTD,TK127675,47,0.99,BEDS & SOFT FURNISHINGS,07/10/2019,,Fire Stations (South West),Furniture & Soft Furnishings
800137447,THOMAS KNEALE & CO LTD,TK127675,48,3.47,BEDS & SOFT FURNISHINGS,07/10/2019,,Fire Stations (South West),Furniture & Soft Furnishings
800137447,THOMAS KNEALE & CO LTD,TK127675,49,1.48,BEDS & SOFT FURNISHINGS,07/10/2019,,Fire Stations (South West),Furniture & Soft Furnishings
800137447,THOMAS KNEALE & CO LTD,TK127675,50,2.84,BEDS & SOFT FURNISHINGS,07/10/2019,,Fire Stations (South West),Furniture & Soft Furnishings
800137447,THOMAS KNEALE & CO LTD,TK127675,51,10.89,BEDS & SOFT FURNISHINGS,07/10/2019,,Fire Stations (South East),Furniture & Soft Furnishings
800137447,THOMAS KNEALE & CO LTD,TK127675,52,3.47,BEDS & SOFT FURNISHINGS,07/10/2019,,Fire Stations (South East),Furniture & Soft Furnishings
800137447,THOMAS KNEALE & CO LTD,TK127675,53,1.48,BEDS & SOFT FURNISHINGS,07/10/2019,,Fire Stations (South East),Furniture & Soft Furnishings
800137447,THOMAS KNEALE & CO LTD,TK127675,54,10.89,BEDS & SOFT FURNISHINGS,07/10/2019,,Fire Stations (South East),Furniture & Soft Furnishings
800137447,THOMAS KNEALE & CO LTD,TK127675,55,10.89,BEDS & SOFT FURNISHINGS,07/10/2019,,Fire Stations (North East),Furniture & Soft Furnishings
800137447,THOMAS KNEALE & CO LTD,TK127675,56,3.47,BEDS & SOFT FURNISHINGS,07/10/2019,,Fire Stations (North East),Furniture & Soft Furnishings
800137447,THOMAS KNEALE & CO LTD,TK127675,57,1.48,BEDS & SOFT FURNISHINGS,07/10/2019,,Fire Stations (North East),Furniture & Soft Furnishings
800137447,THOMAS KNEALE & CO LTD,TK127675,58,10.89,BEDS & SOFT FURNISHINGS,07/10/2019,,Fire Stations (North West),Furniture & Soft Furnishings
800137447,THOMAS KNEALE & CO LTD,TK127675,59,10.89,BEDS & SOFT FURNISHINGS,07/10/2019,,Fire Stations (North West),Furniture & Soft Furnishings
800137447,THOMAS KNEALE & CO LTD,TK127675,60,1.48,BEDS & SOFT FURNISHINGS,07/10/2019,,Fire Stations (North West),Furniture & Soft Furnishings
800137447,THOMAS KNEALE & CO LTD,TK127675,61,10.89,BEDS & SOFT FURNISHINGS,07/10/2019,,Fire Stations (North West),Furniture & Soft Furnishings
800137447,THOMAS KNEALE & CO LTD,TK127675,62,0.99,BEDS & SOFT FURNISHINGS,07/10/2019,,Fire Stations (North West),Furniture & Soft Furnishings
800137447,THOMAS KNEALE & CO LTD,TK127675,63,3.47,BEDS & SOFT FURNISHINGS,07/10/2019,,Fire Stations (North West),Furniture & Soft Furnishings
800137447,THOMAS KNEALE & CO LTD,TK127675,64,1.48,BEDS & SOFT FURNISHINGS,07/10/2019,,Fire Stations (North West),Furniture & Soft Furnishings
800137447,THOMAS KNEALE & CO LTD,TK127675,65,10.89,BEDS & SOFT FURNISHINGS,07/10/2019,,Fire Stations (North East),Furniture & Soft Furnishings
800137447,THOMAS KNEALE & CO LTD,TK127675,66,3.47,BEDS & SOFT FURNISHINGS,07/10/2019,,Fire Stations (North East),Furniture & Soft Furnishings
800137447,THOMAS KNEALE & CO LTD,TK127675,67,1.48,BEDS & SOFT FURNISHINGS,07/10/2019,,Fire Stations (North East),Furniture & Soft Furnishings
800137447,THOMAS KNEALE & CO LTD,TK127675,68,10.89,BEDS & SOFT FURNISHINGS,07/10/2019,,Fire Stations (South East),Furniture & Soft Furnishings
800137447,THOMAS KNEALE & CO LTD,TK127675,69,0.99,BEDS & SOFT FURNISHINGS,07/10/2019,,Fire Stations (South East),Furniture & Soft Furnishings
800137447,THOMAS KNEALE & CO LTD,TK127675,70,3.47,BEDS & SOFT FURNISHINGS,07/10/2019,,Fire Stations (South East),Furniture & Soft Furnishings
800137447,THOMAS KNEALE & CO LTD,TK127675,71,1.48,BEDS & SOFT FURNISHINGS,07/10/2019,,Fire Stations (South East),Furniture & Soft Furnishings
800137447,THOMAS KNEALE & CO LTD,TK127675,72,10.89,BEDS & SOFT FURNISHINGS,07/10/2019,,Fire Stations (North West),Furniture & Soft Furnishings
800137447,THOMAS KNEALE & CO LTD,TK127675,73,0.99,BEDS & SOFT FURNISHINGS,07/10/2019,,Fire Stations (North West),Furniture & Soft Furnishings
800137447,THOMAS KNEALE & CO LTD,TK127675,74,3.47,BEDS & SOFT FURNISHINGS,07/10/2019,,Fire Stations (North West),Furniture & Soft Furnishings
800137447,THOMAS KNEALE & CO LTD,TK127675,75,1.48,BEDS & SOFT FURNISHINGS,07/10/2019,,Fire Stations (North West),Furniture & Soft Furnishings
800137447,THOMAS KNEALE & CO LTD,TK127675,76,3.47,BEDS & SOFT FURNISHINGS,07/10/2019,,Fire Stations (North West),Furniture & Soft Furnishings
800137447,THOMAS KNEALE & CO LTD,TK127675,77,10.89,BEDS & SOFT FURNISHINGS,07/10/2019,,Fire Stations (North West),Furniture & Soft Furnishings
800137447,THOMAS KNEALE & CO LTD,TK127675,78,10.89,BEDS & SOFT FURNISHINGS,07/10/2019,,Fire Stations (South West),Furniture & Soft Furnishings
800137447,THOMAS KNEALE & CO LTD,TK127675,79,0.99,BEDS & SOFT FURNISHINGS,07/10/2019,,Fire Stations (South West),Furniture & Soft Furnishings
800137447,THOMAS KNEALE & CO LTD,TK127675,80,3.47,BEDS & SOFT FURNISHINGS,07/10/2019,,Fire Stations (South West),Furniture & Soft Furnishings
800137447,THOMAS KNEALE & CO LTD,TK127675,81,2.96,BEDS & SOFT FURNISHINGS,07/10/2019,,Fire Stations (South West),Furniture & Soft Furnishings
800137447,THOMAS KNEALE & CO LTD,TK127675,82,10.89,BEDS & SOFT FURNISHINGS,07/10/2019,,Fire Stations (North East),Furniture & Soft Furnishings
800137447,THOMAS KNEALE & CO LTD,TK127675,83,0.99,BEDS & SOFT FURNISHINGS,07/10/2019,,Fire Stations (North East),Furniture & Soft Furnishings
800137447,THOMAS KNEALE & CO LTD,TK127675,84,3.47,BEDS & SOFT FURNISHINGS,07/10/2019,,Fire Stations (South West),Furniture & Soft Furnishings
800137447,THOMAS KNEALE & CO LTD,TK127675,85,1.48,BEDS & SOFT FURNISHINGS,07/10/2019,,Fire Stations (South West),Furniture & Soft Furnishings
800137447,THOMAS KNEALE & CO LTD,TK127675,86,10.89,BEDS & SOFT FURNISHINGS,07/10/2019,,Fire Stations (South West),Furniture & Soft Furnishings
800137447,THOMAS KNEALE & CO LTD,TK127675,87,10.89,BEDS & SOFT FURNISHINGS,07/10/2019,,Fire Stations (South East),Furniture & Soft Furnishings
800137447,THOMAS KNEALE & CO LTD,TK127675,88,0.99,BEDS & SOFT FURNISHINGS,07/10/2019,,Fire Stations (South East),Furniture & Soft Furnishings
800137447,THOMAS KNEALE & CO LTD,TK127675,89,10.89,BEDS & SOFT FURNISHINGS,07/10/2019,,Fire Stations (South West),Furniture & Soft Furnishings
800137447,THOMAS KNEALE & CO LTD,TK127675,90,0.99,BEDS & SOFT FURNISHINGS,07/10/2019,,Fire Stations (North East),Furniture & Soft Furnishings
800137447,THOMAS KNEALE & CO LTD,TK127675,91,1.48,BEDS & SOFT FURNISHINGS,07/10/2019,,Fire Stations (North East),Furniture & Soft Furnishings
800137447,THOMAS KNEALE & CO LTD,TK127675,92,1.48,BEDS & SOFT FURNISHINGS,07/10/2019,,Fire Stations (North East),Furniture & Soft Furnishings
800137447,THOMAS KNEALE & CO LTD,TK127675,93,3.47,BEDS & SOFT FURNISHINGS,07/10/2019,,Fire Stations (South West),Furniture & Soft Furnishings
800137447,THOMAS KNEALE & CO LTD,TK127675,94,10.89,BEDS & SOFT FURNISHINGS,07/10/2019,,Fire Stations (North West),Furniture & Soft Furnishings
800137447,THOMAS KNEALE & CO LTD,TK127675,95,0.99,BEDS & SOFT FURNISHINGS,07/10/2019,,Fire Stations (North West),Furniture & Soft Furnishings
800137447,THOMAS KNEALE & CO LTD,TK127675,96,2.59,BEDS & SOFT FURNISHINGS,07/10/2019,,Fire Stations (North West),Furniture & Soft Furnishings
800137447,THOMAS KNEALE & CO LTD,TK127675,97,2.96,BEDS & SOFT FURNISHINGS,07/10/2019,,Fire Stations (North West),Furniture & Soft Furnishings
800137447,THOMAS KNEALE & CO LTD,TK127675,98,6.94,BEDS & SOFT FURNISHINGS,07/10/2019,,Fire Stations (North West),Furniture & Soft Furnishings
800137447,THOMAS KNEALE & CO LTD,TK127675,99,10.89,BEDS & SOFT FURNISHINGS,07/10/2019,,Fire Stations (North East),Furniture & Soft Furnishings
800137447,THOMAS KNEALE & CO LTD,TK127675,100,0.99,BEDS & SOFT FURNISHINGS,07/10/2019,,Fire Stations (North East),Furniture & Soft Furnishings
800137447,THOMAS KNEALE & CO LTD,TK127675,101,3.47,BEDS & SOFT FURNISHINGS,07/10/2019,,Fire Stations (North East),Furniture & Soft Furnishings
800137447,THOMAS KNEALE & CO LTD,TK127675,102,1.48,BEDS & SOFT FURNISHINGS,07/10/2019,,Fire Stations (North East),Furniture & Soft Furnishings
800137447,THOMAS KNEALE & CO LTD,TK127675,103,5.18,BEDS & SOFT FURNISHINGS,07/10/2019,,Fire Stations (North East),Furniture & Soft Furnishings
800137447,THOMAS KNEALE & CO LTD,TK127675,104,10.89,BEDS & SOFT FURNISHINGS,07/10/2019,,Fire Stations (South West),Furniture & Soft Furnishings
800137447,THOMAS KNEALE & CO LTD,TK127675,105,3.47,BEDS & SOFT FURNISHINGS,07/10/2019,,Fire Stations (South West),Furniture & Soft Furnishings
800137447,THOMAS KNEALE & CO LTD,TK127675,106,1.48,BEDS & SOFT FURNISHINGS,07/10/2019,,Fire Stations (South West),Furniture & Soft Furnishings
800137447,THOMAS KNEALE & CO LTD,TK127675,107,5.18,BEDS & SOFT FURNISHINGS,07/10/2019,,Fire Stations (South West),Furniture & Soft Furnishings
800137447,THOMAS KNEALE & CO LTD,TK127675,108,10.89,BEDS & SOFT FURNISHINGS,07/10/2019,,Fire Stations (North West),Furniture & Soft Furnishings
800137447,THOMAS KNEALE & CO LTD,TK127675,109,0.99,BEDS & SOFT FURNISHINGS,07/10/2019,,Fire Stations (North West),Furniture & Soft Furnishings
800137447,THOMAS KNEALE & CO LTD,TK127675,110,6.94,BEDS & SOFT FURNISHINGS,07/10/2019,,Fire Stations (North West),Furniture & Soft Furnishings
800137447,THOMAS KNEALE & CO LTD,TK127675,111,2.96,BEDS & SOFT FURNISHINGS,07/10/2019,,Fire Stations (North West),Furniture & Soft Furnishings
800137447,THOMAS KNEALE & CO LTD,TK127675,112,10.89,BEDS & SOFT FURNISHINGS,07/10/2019,,Fire Stations (North West),Furniture & Soft Furnishings
800137447,THOMAS KNEALE & CO LTD,TK127675,113,0.99,BEDS & SOFT FURNISHINGS,07/10/2019,,Fire Stations (North West),Furniture & Soft Furnishings
800137447,THOMAS KNEALE & CO LTD,TK127675,114,10.89,BEDS & SOFT FURNISHINGS,07/10/2019,,Fire Stations (North West),Furniture & Soft Furnishings
800137447,THOMAS KNEALE & CO LTD,TK127675,115,0.99,BEDS & SOFT FURNISHINGS,07/10/2019,,Fire Stations (North West),Furniture & Soft Furnishings
800137447,THOMAS KNEALE & CO LTD,TK127675,116,3.47,BEDS & SOFT FURNISHINGS,07/10/2019,,Fire Stations (North West),Furniture & Soft Furnishings
800137447,THOMAS KNEALE & CO LTD,TK127675,117,1.48,BEDS & SOFT FURNISHINGS,07/10/2019,,Fire Stations (North West),Furniture & Soft Furnishings
800137447,THOMAS KNEALE & CO LTD,TK127675,118,3.47,BEDS & SOFT FURNISHINGS,07/10/2019,,Fire Stations (North West),Furniture & Soft Furnishings
800137447,THOMAS KNEALE & CO LTD,TK127675,119,10.89,BEDS & SOFT FURNISHINGS,07/10/2019,,Fire Stations (South East),Furniture & Soft Furnishings
800137447,THOMAS KNEALE & CO LTD,TK127675,120,0.99,BEDS & SOFT FURNISHINGS,07/10/2019,,Fire Stations (South East),Furniture & Soft Furnishings
800137447,THOMAS KNEALE & CO LTD,TK127675,121,10.89,BEDS & SOFT FURNISHINGS,07/10/2019,,Fire Stations (North West),Furniture & Soft Furnishings
800137447,THOMAS KNEALE & CO LTD,TK127675,122,0.99,BEDS & SOFT FURNISHINGS,07/10/2019,,Fire Stations (North West),Furniture & Soft Furnishings
800137447,THOMAS KNEALE & CO LTD,TK127675,123,10.89,BEDS & SOFT FURNISHINGS,07/10/2019,,Fire Stations (South West),Furniture & Soft Furnishings
800137447,THOMAS KNEALE & CO LTD,TK127675,124,0.99,BEDS & SOFT FURNISHINGS,07/10/2019,,Fire Stations (South West),Furniture & Soft Furnishings
800137447,THOMAS KNEALE & CO LTD,TK127675,125,1.48,BEDS & SOFT FURNISHINGS,07/10/2019,,Fire Stations (South West),Furniture & Soft Furnishings
800137447,THOMAS KNEALE & CO LTD,TK127675,126,10.89,BEDS & SOFT FURNISHINGS,07/10/2019,,Fire Stations (North West),Furniture & Soft Furnishings
800137447,THOMAS KNEALE & CO LTD,TK127675,127,2.84,BEDS & SOFT FURNISHINGS,07/10/2019,,Fire Stations (South East),Furniture & Soft Furnishings
800137447,THOMAS KNEALE & CO LTD,TK127675,128,1.98,BEDS & SOFT FURNISHINGS,07/10/2019,,Fire Stations (North West),Furniture & Soft Furnishings
800137447,THOMAS KNEALE & CO LTD,TK127675,129,1.48,BEDS & SOFT FURNISHINGS,07/10/2019,,Fire Stations (North West),Furniture & Soft Furnishings
800137447,THOMAS KNEALE & CO LTD,TK127675,130,10.89,BEDS & SOFT FURNISHINGS,07/10/2019,,Fire Stations (South East),Furniture & Soft Furnishings
800137447,THOMAS KNEALE & CO LTD,TK127675,131,0.99,BEDS & SOFT FURNISHINGS,07/10/2019,,Fire Stations (South East),Furniture & Soft Furnishings
800137447,THOMAS KNEALE & CO LTD,TK127675,132,3.47,BEDS & SOFT FURNISHINGS,07/10/2019,,Fire Stations (South East),Furniture & Soft Furnishings
800137447,THOMAS KNEALE & CO LTD,TK127675,133,1.48,BEDS & SOFT FURNISHINGS,07/10/2019,,Fire Stations (South East),Furniture & Soft Furnishings
800137447,THOMAS KNEALE & CO LTD,TK127675,134,10.89,BEDS & SOFT FURNISHINGS,07/10/2019,,Fire Stations (North East),Furniture & Soft Furnishings
800137447,THOMAS KNEALE & CO LTD,TK127675,135,3.47,BEDS & SOFT FURNISHINGS,07/10/2019,,Fire Stations (North East),Furniture & Soft Furnishings
902989,APPLUS LLT,19064,1,"5,112.00",GENERAL,09/10/2019,"5,112.00",Technical and Service Support,Consultancy
142843,THOMPSONS SOLICITORS,LPI/10214,1,410,DOCTORS/MEDICAL FEES,09/10/2019,410,Compensation Budgets,Human Resources
071019V,MORRISEY ELECTRICAL & BUILDING,1000283,1,"7,851.45",DEVELOPMENT  EXPENSES-CONTRACT,10/10/2019,"7,851.45",Technical and Service Support,"Works - Construction, R&M"
800137959,COMPASS GROUP LTD,1004099223-26,1,306.9,REFRESHMENTS,10/10/2019,306.9,Finance Services,Catering
800137926,COMPASS GROUP LTD,1004099223-27,1,445.5,REFRESHMENTS,10/10/2019,445.5,Community Safety,Catering
800137965,COMPASS GROUP LTD,1004099223-38,1,"2,200.00",REFRESHMENTS,10/10/2019,"2,200.00",Communications,Catering
800137973,COMPASS GROUP LTD,1004099223-48,1,693,REFRESHMENTS,10/10/2019,693,Central Fire Safety,Catering
800137915,KIER BUILDING SERV ENGINEERS,10189397,1,7,REACTIVE MEP,10/10/2019,"37,677.38",Technical and Service Support,Works - Construction
800137915,KIER BUILDING SERV ENGINEERS,10189397,2,322.38,REACTIVE MEP,10/10/2019,,Technical and Service Support,Works - Construction
800137915,KIER BUILDING SERV ENGINEERS,10189397,3,53.73,REACTIVE MEP,10/10/2019,,Technical and Service Support,Works - Construction
800137915,KIER BUILDING SERV ENGINEERS,10189397,4,45,REACTIVE MEP,10/10/2019,,Technical and Service Support,Works - Construction
800137915,KIER BUILDING SERV ENGINEERS,10189397,5,304.47,REACTIVE MEP,10/10/2019,,Technical and Service Support,Works - Construction
800137915,KIER BUILDING SERV ENGINEERS,10189397,6,439.07,REACTIVE MEP,10/10/2019,,Technical and Service Support,Works - Construction
800137915,KIER BUILDING SERV ENGINEERS,10189397,7,34.92,REACTIVE MEP,10/10/2019,,Technical and Service Support,Works - Construction
800137915,KIER BUILDING SERV ENGINEERS,10189397,8,98.51,REACTIVE MEP,10/10/2019,,Technical and Service Support,Works - Construction
800137915,KIER BUILDING SERV ENGINEERS,10189397,9,45,REACTIVE MEP,10/10/2019,,Technical and Service Support,Works - Construction
800137915,KIER BUILDING SERV ENGINEERS,10189397,10,35.82,REACTIVE MEP,10/10/2019,,Technical and Service Support,Works - Construction
800137915,KIER BUILDING SERV ENGINEERS,10189397,11,70,REACTIVE MEP,10/10/2019,,Technical and Service Support,Works - Construction
800137915,KIER BUILDING SERV ENGINEERS,10189397,12,99,REACTIVE MEP,10/10/2019,,Technical and Service Support,Works - Construction
800137915,KIER BUILDING SERV ENGINEERS,10189397,13,45,REACTIVE MEP,10/10/2019,,Technical and Service Support,Works - Construction
800137915,KIER BUILDING SERV ENGINEERS,10189397,14,26.87,REACTIVE MEP,10/10/2019,,Technical and Service Support,Works - Construction
800137915,KIER BUILDING SERV ENGINEERS,10189397,15,427,REACTIVE MEP,10/10/2019,,Technical and Service Support,Works - Construction
800137915,KIER BUILDING SERV ENGINEERS,10189397,16,652,REACTIVE MEP,10/10/2019,,Technical and Service Support,Works - Construction
800137915,KIER BUILDING SERV ENGINEERS,10189397,17,94.86,REACTIVE MEP,10/10/2019,,Technical and Service Support,Works - Construction
800137915,KIER BUILDING SERV ENGINEERS,10189397,18,427,REACTIVE MEP,10/10/2019,,Technical and Service Support,Works - Construction
800137915,KIER BUILDING SERV ENGINEERS,10189397,19,59.02,REACTIVE MEP,10/10/2019,,Technical and Service Support,Works - Construction
800137915,KIER BUILDING SERV ENGINEERS,10189397,20,250.74,REACTIVE MEP,10/10/2019,,Technical and Service Support,Works - Construction
800137915,KIER BUILDING SERV ENGINEERS,10189397,21,47,REACTIVE MEP,10/10/2019,,Technical and Service Support,Works - Construction
800137915,KIER BUILDING SERV ENGINEERS,10189397,22,247,REACTIVE MEP,10/10/2019,,Technical and Service Support,Works - Construction
800137915,KIER BUILDING SERV ENGINEERS,10189397,23,22,REACTIVE MEP,10/10/2019,,Technical and Service Support,Works - Construction
800137915,KIER BUILDING SERV ENGINEERS,10189397,24,26.87,REACTIVE MEP,10/10/2019,,Technical and Service Support,Works - Construction
800137915,KIER BUILDING SERV ENGINEERS,10189397,25,266,REACTIVE MEP,10/10/2019,,Technical and Service Support,Works - Construction
800137915,KIER BUILDING SERV ENGINEERS,10189397,26,59,REACTIVE MEP,10/10/2019,,Technical and Service Support,Works - Construction
800137915,KIER BUILDING SERV ENGINEERS,10189397,27,19,REACTIVE MEP,10/10/2019,,Technical and Service Support,Works - Construction
800137915,KIER BUILDING SERV ENGINEERS,10189397,28,97,REACTIVE MEP,10/10/2019,,Technical and Service Support,Works - Construction
800137915,KIER BUILDING SERV ENGINEERS,10189397,29,107,REACTIVE MEP,10/10/2019,,Technical and Service Support,Works - Construction
800137915,KIER BUILDING SERV ENGINEERS,10189397,30,73,REACTIVE MEP,10/10/2019,,Technical and Service Support,Works - Construction
800137915,KIER BUILDING SERV ENGINEERS,10189397,31,52,REACTIVE MEP,10/10/2019,,Technical and Service Support,Works - Construction
800137915,KIER BUILDING SERV ENGINEERS,10189397,32,243,REACTIVE MEP,10/10/2019,,Technical and Service Support,Works - Construction
800137915,KIER BUILDING SERV ENGINEERS,10189397,33,137,REACTIVE MEP,10/10/2019,,Technical and Service Support,Works - Construction
800137915,KIER BUILDING SERV ENGINEERS,10189397,34,79,REACTIVE MEP,10/10/2019,,Technical and Service Support,Works - Construction
800137915,KIER BUILDING SERV ENGINEERS,10189397,35,337.33,REACTIVE MEP,10/10/2019,,Technical and Service Support,Works - Construction
800137915,KIER BUILDING SERV ENGINEERS,10189397,36,68,REACTIVE MEP,10/10/2019,,Technical and Service Support,Works - Construction
800137915,KIER BUILDING SERV ENGINEERS,10189397,37,17.91,REACTIVE MEP,10/10/2019,,Technical and Service Support,Works - Construction
800137915,KIER BUILDING SERV ENGINEERS,10189397,38,27.32,REACTIVE MEP,10/10/2019,,Technical and Service Support,Works - Construction
800137915,KIER BUILDING SERV ENGINEERS,10189397,39,72.47,REACTIVE MEP,10/10/2019,,Technical and Service Support,Works - Construction
800137915,KIER BUILDING SERV ENGINEERS,10189397,40,44.78,REACTIVE MEP,10/10/2019,,Technical and Service Support,Works - Construction
800137915,KIER BUILDING SERV ENGINEERS,10189397,41,84.32,REACTIVE MEP,10/10/2019,,Technical and Service Support,Works - Construction
800137915,KIER BUILDING SERV ENGINEERS,10189397,42,8.95,REACTIVE MEP,10/10/2019,,Technical and Service Support,Works - Construction
800137915,KIER BUILDING SERV ENGINEERS,10189397,43,"3,924.00",REACTIVE MEP,10/10/2019,,Technical and Service Support,Works - Construction
800137915,KIER BUILDING SERV ENGINEERS,10189397,44,"2,532.89",REACTIVE MEP,10/10/2019,,Technical and Service Support,Works - Construction
800137915,KIER BUILDING SERV ENGINEERS,10189397,45,24,REACTIVE MEP,10/10/2019,,Technical and Service Support,Works - Construction
800137915,KIER BUILDING SERV ENGINEERS,10189397,46,47,REACTIVE MEP,10/10/2019,,Technical and Service Support,Works - Construction
800137915,KIER BUILDING SERV ENGINEERS,10189397,47,62.67,REACTIVE MEP,10/10/2019,,Technical and Service Support,Works - Construction
800137915,KIER BUILDING SERV ENGINEERS,10189397,48,143.28,REACTIVE MEP,10/10/2019,,Technical and Service Support,Works - Construction
800137915,KIER BUILDING SERV ENGINEERS,10189397,49,14,REACTIVE MEP,10/10/2019,,Technical and Service Support,Works - Construction
800137915,KIER BUILDING SERV ENGINEERS,10189397,50,17.91,REACTIVE MEP,10/10/2019,,Technical and Service Support,Works - Construction
800137915,KIER BUILDING SERV ENGINEERS,10189397,51,107.46,REACTIVE MEP,10/10/2019,,Technical and Service Support,Works - Construction
800137915,KIER BUILDING SERV ENGINEERS,10189397,52,"4,671.74",REACTIVE MEP,10/10/2019,,Technical and Service Support,Works - Construction
800137915,KIER BUILDING SERV ENGINEERS,10189397,53,288.21,REACTIVE MEP,10/10/2019,,Technical and Service Support,Works - Construction
800137915,KIER BUILDING SERV ENGINEERS,10189397,54,"1,074.00",REACTIVE MEP,10/10/2019,,Technical and Service Support,Works - Construction
800137915,KIER BUILDING SERV ENGINEERS,10189397,55,71.64,REACTIVE MEP,10/10/2019,,Technical and Service Support,Works - Construction
800137915,KIER BUILDING SERV ENGINEERS,10189397,56,275,REACTIVE MEP,10/10/2019,,Technical and Service Support,Works - Construction
800137915,KIER BUILDING SERV ENGINEERS,10189397,57,457.16,REACTIVE MEP,10/10/2019,,Technical and Service Support,Works - Construction
800137915,KIER BUILDING SERV ENGINEERS,10189397,58,512.07,REACTIVE MEP,10/10/2019,,Technical and Service Support,Works - Construction
800137915,KIER BUILDING SERV ENGINEERS,10189397,59,292.92,REACTIVE MEP,10/10/2019,,Technical and Service Support,Works - Construction
800137915,KIER BUILDING SERV ENGINEERS,10189397,60,266.19,REACTIVE MEP,10/10/2019,,Technical and Service Support,Works - Construction
800137915,KIER BUILDING SERV ENGINEERS,10189397,61,501,REACTIVE MEP,10/10/2019,,Technical and Service Support,Works - Construction
800137915,KIER BUILDING SERV ENGINEERS,10189397,62,343,REACTIVE MEP,10/10/2019,,Technical and Service Support,Works - Construction
800137915,KIER BUILDING SERV ENGINEERS,10189397,63,89.55,REACTIVE MEP,10/10/2019,,Technical and Service Support,Works - Construction
800137915,KIER BUILDING SERV ENGINEERS,10189397,64,60,REACTIVE MEP,10/10/2019,,Technical and Service Support,Works - Construction
800137915,KIER BUILDING SERV ENGINEERS,10189397,65,219.72,REACTIVE MEP,10/10/2019,,Technical and Service Support,Works - Construction
800137915,KIER BUILDING SERV ENGINEERS,10189397,66,"2,427.36",REACTIVE MEP,10/10/2019,,Technical and Service Support,Works - Construction
800137915,KIER BUILDING SERV ENGINEERS,10189397,67,51,REACTIVE MEP,10/10/2019,,Technical and Service Support,Works - Construction
800137915,KIER BUILDING SERV ENGINEERS,10189397,68,45,REACTIVE MEP,10/10/2019,,Technical and Service Support,Works - Construction
800137915,KIER BUILDING SERV ENGINEERS,10189397,69,136,REACTIVE MEP,10/10/2019,,Technical and Service Support,Works - Construction
800137915,KIER BUILDING SERV ENGINEERS,10189397,70,24,REACTIVE MEP,10/10/2019,,Technical and Service Support,Works - Construction
800137915,KIER BUILDING SERV ENGINEERS,10189397,71,149,REACTIVE MEP,10/10/2019,,Technical and Service Support,Works - Construction
800137915,KIER BUILDING SERV ENGINEERS,10189397,72,55,REACTIVE MEP,10/10/2019,,Technical and Service Support,Works - Construction
800137915,KIER BUILDING SERV ENGINEERS,10189397,73,205.97,REACTIVE MEP,10/10/2019,,Technical and Service Support,Works - Construction
800137915,KIER BUILDING SERV ENGINEERS,10189397,74,19,REACTIVE MEP,10/10/2019,,Technical and Service Support,Works - Construction
800137915,KIER BUILDING SERV ENGINEERS,10189397,75,116,REACTIVE MEP,10/10/2019,,Technical and Service Support,Works - Construction
800137915,KIER BUILDING SERV ENGINEERS,10189397,76,17.91,REACTIVE MEP,10/10/2019,,Technical and Service Support,Works - Construction
800137915,KIER BUILDING SERV ENGINEERS,10189397,77,102,REACTIVE MEP,10/10/2019,,Technical and Service Support,Works - Construction
800137915,KIER BUILDING SERV ENGINEERS,10189397,78,97,REACTIVE MEP,10/10/2019,,Technical and Service Support,Works - Construction
800137915,KIER BUILDING SERV ENGINEERS,10189397,79,14,REACTIVE MEP,10/10/2019,,Technical and Service Support,Works - Construction
800137915,KIER BUILDING SERV ENGINEERS,10189397,80,165,REACTIVE MEP,10/10/2019,,Technical and Service Support,Works - Construction
800137915,KIER BUILDING SERV ENGINEERS,10189397,81,198,REACTIVE MEP,10/10/2019,,Technical and Service Support,Works - Construction
800137915,KIER BUILDING SERV ENGINEERS,10189397,82,80.6,REACTIVE MEP,10/10/2019,,Technical and Service Support,Works - Construction
800137915,KIER BUILDING SERV ENGINEERS,10189397,83,232,REACTIVE MEP,10/10/2019,,Technical and Service Support,Works - Construction
800137915,KIER BUILDING SERV ENGINEERS,10189397,84,99.02,REACTIVE MEP,10/10/2019,,Technical and Service Support,Works - Construction
800137915,KIER BUILDING SERV ENGINEERS,10189397,85,134,REACTIVE MEP,10/10/2019,,Technical and Service Support,Works - Construction
800137915,KIER BUILDING SERV ENGINEERS,10189397,86,73,REACTIVE MEP,10/10/2019,,Technical and Service Support,Works - Construction
800137915,KIER BUILDING SERV ENGINEERS,10189397,87,32,REACTIVE MEP,10/10/2019,,Technical and Service Support,Works - Construction
800137915,KIER BUILDING SERV ENGINEERS,10189397,88,35.82,REACTIVE MEP,10/10/2019,,Technical and Service Support,Works - Construction
800137915,KIER BUILDING SERV ENGINEERS,10189397,89,179.1,REACTIVE MEP,10/10/2019,,Technical and Service Support,Works - Construction
800137915,KIER BUILDING SERV ENGINEERS,10189397,90,53.73,REACTIVE MEP,10/10/2019,,Technical and Service Support,Works - Construction
800137915,KIER BUILDING SERV ENGINEERS,10189397,91,71.64,REACTIVE MEP,10/10/2019,,Technical and Service Support,Works - Construction
800137915,KIER BUILDING SERV ENGINEERS,10189397,92,198.91,REACTIVE MEP,10/10/2019,,Technical and Service Support,Works - Construction
800137915,KIER BUILDING SERV ENGINEERS,10189397,93,8.95,REACTIVE MEP,10/10/2019,,Technical and Service Support,Works - Construction
800137915,KIER BUILDING SERV ENGINEERS,10189397,94,"1,171.74",REACTIVE MEP,10/10/2019,,Technical and Service Support,Works - Construction
800137915,KIER BUILDING SERV ENGINEERS,10189397,95,970,REACTIVE MEP,10/10/2019,,Technical and Service Support,Works - Construction
800137915,KIER BUILDING SERV ENGINEERS,10189397,96,99,REACTIVE MEP,10/10/2019,,Technical and Service Support,Works - Construction
800137915,KIER BUILDING SERV ENGINEERS,10189397,97,"1,992.79",REACTIVE MEP,10/10/2019,,Technical and Service Support,Works - Construction
800137915,KIER BUILDING SERV ENGINEERS,10189397,98,35.82,REACTIVE MEP,10/10/2019,,Technical and Service Support,Works - Construction
800137915,KIER BUILDING SERV ENGINEERS,10189397,99,98,REACTIVE MEP,10/10/2019,,Technical and Service Support,Works - Construction
800137915,KIER BUILDING SERV ENGINEERS,10189397,100,15,REACTIVE MEP,10/10/2019,,Technical and Service Support,Works - Construction
800137915,KIER BUILDING SERV ENGINEERS,10189397,101,120,REACTIVE MEP,10/10/2019,,Technical and Service Support,Works - Construction
800137915,KIER BUILDING SERV ENGINEERS,10189397,102,26.87,REACTIVE MEP,10/10/2019,,Technical and Service Support,Works - Construction
800137915,KIER BUILDING SERV ENGINEERS,10189397,103,97,REACTIVE MEP,10/10/2019,,Technical and Service Support,Works - Construction
800137915,KIER BUILDING SERV ENGINEERS,10189397,104,180,REACTIVE MEP,10/10/2019,,Technical and Service Support,Works - Construction
800137915,KIER BUILDING SERV ENGINEERS,10189397,105,398.5,REACTIVE MEP,10/10/2019,,Technical and Service Support,Works - Construction
800137915,KIER BUILDING SERV ENGINEERS,10189397,106,26.87,REACTIVE MEP,10/10/2019,,Technical and Service Support,Works - Construction
800137915,KIER BUILDING SERV ENGINEERS,10189397,107,143.28,REACTIVE MEP,10/10/2019,,Technical and Service Support,Works - Construction
800137915,KIER BUILDING SERV ENGINEERS,10189397,108,75,REACTIVE MEP,10/10/2019,,Technical and Service Support,Works - Construction
800137915,KIER BUILDING SERV ENGINEERS,10189397,109,58,REACTIVE MEP,10/10/2019,,Technical and Service Support,Works - Construction
800137915,KIER BUILDING SERV ENGINEERS,10189397,110,35.82,REACTIVE MEP,10/10/2019,,Technical and Service Support,Works - Construction
800137915,KIER BUILDING SERV ENGINEERS,10189397,111,35.82,REACTIVE MEP,10/10/2019,,Technical and Service Support,Works - Construction
800137915,KIER BUILDING SERV ENGINEERS,10189397,112,19,REACTIVE MEP,10/10/2019,,Technical and Service Support,Works - Construction
800137915,KIER BUILDING SERV ENGINEERS,10189397,113,15,REACTIVE MEP,10/10/2019,,Technical and Service Support,Works - Construction
800137915,KIER BUILDING SERV ENGINEERS,10189397,114,"1,956.64",REACTIVE MEP,10/10/2019,,Technical and Service Support,Works - Construction
800137915,KIER BUILDING SERV ENGINEERS,10189397,115,150,REACTIVE MEP,10/10/2019,,Technical and Service Support,Works - Construction
800137915,KIER BUILDING SERV ENGINEERS,10189397,116,35.82,REACTIVE MEP,10/10/2019,,Technical and Service Support,Works - Construction
800137915,KIER BUILDING SERV ENGINEERS,10189397,117,617.82,REACTIVE MEP,10/10/2019,,Technical and Service Support,Works - Construction
800137915,KIER BUILDING SERV ENGINEERS,10189397,118,775,REACTIVE MEP,10/10/2019,,Technical and Service Support,Works - Construction
800137915,KIER BUILDING SERV ENGINEERS,10189397,119,162.96,REACTIVE MEP,10/10/2019,,Technical and Service Support,Works - Construction
800137915,KIER BUILDING SERV ENGINEERS,10189397,120,175.17,REACTIVE MEP,10/10/2019,,Technical and Service Support,Works - Construction
800137915,KIER BUILDING SERV ENGINEERS,10189397,121,35.82,REACTIVE MEP,10/10/2019,,Technical and Service Support,Works - Construction
800137915,KIER BUILDING SERV ENGINEERS,10189397,122,44.78,REACTIVE MEP,10/10/2019,,Technical and Service Support,Works - Construction
800137915,KIER BUILDING SERV ENGINEERS,10189397,123,471,REACTIVE MEP,10/10/2019,,Technical and Service Support,Works - Construction
800137915,KIER BUILDING SERV ENGINEERS,10189397,124,53.73,REACTIVE MEP,10/10/2019,,Technical and Service Support,Works - Construction
800137915,KIER BUILDING SERV ENGINEERS,10189397,125,30,REACTIVE MEP,10/10/2019,,Technical and Service Support,Works - Construction
800137915,KIER BUILDING SERV ENGINEERS,10189397,126,45.82,REACTIVE MEP,10/10/2019,,Technical and Service Support,Works - Construction
800137915,KIER BUILDING SERV ENGINEERS,10189397,127,107.42,REACTIVE MEP,10/10/2019,,Technical and Service Support,Works - Construction
800137915,KIER BUILDING SERV ENGINEERS,10189397,128,195,REACTIVE MEP,10/10/2019,,Technical and Service Support,Works - Construction
800137915,KIER BUILDING SERV ENGINEERS,10189397,129,35.82,REACTIVE MEP,10/10/2019,,Technical and Service Support,Works - Construction
800137915,KIER BUILDING SERV ENGINEERS,10189397,130,35.82,REACTIVE MEP,10/10/2019,,Technical and Service Support,Works - Construction
800137915,KIER BUILDING SERV ENGINEERS,10189397,131,35.82,REACTIVE MEP,10/10/2019,,Technical and Service Support,Works - Construction
800137915,KIER BUILDING SERV ENGINEERS,10189397,132,8.99,REACTIVE MEP,10/10/2019,,Technical and Service Support,Works - Construction
800137915,KIER BUILDING SERV ENGINEERS,10189397,133,35.82,REACTIVE MEP,10/10/2019,,Technical and Service Support,Works - Construction
800137915,KIER BUILDING SERV ENGINEERS,10189397,134,17.91,REACTIVE MEP,10/10/2019,,Technical and Service Support,Works - Construction
800137915,KIER BUILDING SERV ENGINEERS,10189397,135,44.78,REACTIVE MEP,10/10/2019,,Technical and Service Support,Works - Construction
800137915,KIER BUILDING SERV ENGINEERS,10189397,136,35.82,REACTIVE MEP,10/10/2019,,Technical and Service Support,Works - Construction
800137915,KIER BUILDING SERV ENGINEERS,10189397,137,266.35,REACTIVE MEP,10/10/2019,,Technical and Service Support,Works - Construction
142840,BRITISH GAS BUSINESS,102702724,1,825.25,ELECTRICITY,10/10/2019,"14,312.89",Technical and Service Support,Utilities
142840,BRITISH GAS BUSINESS,102702724,2,134.79,ELECTRICITY,10/10/2019,,Technical and Service Support,Utilities
142840,BRITISH GAS BUSINESS,102702724,3,344.59,ELECTRICITY,10/10/2019,,Technical and Service Support,Utilities
142840,BRITISH GAS BUSINESS,102702724,4,407.79,ELECTRICITY,10/10/2019,,Technical and Service Support,Utilities
142840,BRITISH GAS BUSINESS,102702724,5,476.64,ELECTRICITY,10/10/2019,,Technical and Service Support,Utilities
142840,BRITISH GAS BUSINESS,102702724,6,125.92,ELECTRICITY,10/10/2019,,Technical and Service Support,Utilities
142840,BRITISH GAS BUSINESS,102702724,7,432.83,ELECTRICITY,10/10/2019,,Technical and Service Support,Utilities
142840,BRITISH GAS BUSINESS,102702724,8,403.93,ELECTRICITY,10/10/2019,,Technical and Service Support,Utilities
142840,BRITISH GAS BUSINESS,102702724,9,475.8,ELECTRICITY,10/10/2019,,Technical and Service Support,Utilities
142840,BRITISH GAS BUSINESS,102702724,10,477.77,ELECTRICITY,10/10/2019,,Technical and Service Support,Utilities
142840,BRITISH GAS BUSINESS,102702724,11,401.37,ELECTRICITY,10/10/2019,,Technical and Service Support,Utilities
142840,BRITISH GAS BUSINESS,102702724,12,334.1,ELECTRICITY,10/10/2019,,Technical and Service Support,Utilities
142840,BRITISH GAS BUSINESS,102702724,13,455,ELECTRICITY,10/10/2019,,Technical and Service Support,Utilities
142840,BRITISH GAS BUSINESS,102702724,14,260.99,ELECTRICITY,10/10/2019,,Technical and Service Support,Utilities
142840,BRITISH GAS BUSINESS,102702724,15,328.36,ELECTRICITY,10/10/2019,,Technical and Service Support,Utilities
142840,BRITISH GAS BUSINESS,102702724,16,423.88,ELECTRICITY,10/10/2019,,Technical and Service Support,Utilities
142840,BRITISH GAS BUSINESS,102702724,17,480.18,ELECTRICITY,10/10/2019,,Technical and Service Support,Utilities
142840,BRITISH GAS BUSINESS,102702724,18,390.72,ELECTRICITY,10/10/2019,,Technical and Service Support,Utilities
142840,BRITISH GAS BUSINESS,102702724,19,413.67,ELECTRICITY,10/10/2019,,Technical and Service Support,Utilities
142840,BRITISH GAS BUSINESS,102702724,20,484.85,ELECTRICITY,10/10/2019,,Technical and Service Support,Utilities
142840,BRITISH GAS BUSINESS,102702724,21,973.32,GAS,10/10/2019,,Technical and Service Support,Utilities
142840,BRITISH GAS BUSINESS,102702724,22,770.93,ELECTRICITY,10/10/2019,,Technical and Service Support,Utilities
142840,BRITISH GAS BUSINESS,102702724,23,886.26,ELECTRICITY,10/10/2019,,Technical and Service Support,Utilities
142840,BRITISH GAS BUSINESS,102702724,24,974.42,ELECTRICITY,10/10/2019,,Technical and Service Support,Utilities
142840,BRITISH GAS BUSINESS,102702724,25,944.56,ELECTRICITY,10/10/2019,,Technical and Service Support,Utilities
142840,BRITISH GAS BUSINESS,102702724,26,436.74,ELECTRICITY,10/10/2019,,Technical and Service Support,Utilities
142840,BRITISH GAS BUSINESS,102702724,27,429.72,ELECTRICITY,10/10/2019,,Technical and Service Support,Utilities
142840,BRITISH GAS BUSINESS,102702724,28,412.23,ELECTRICITY,10/10/2019,,Technical and Service Support,Utilities
142840,BRITISH GAS BUSINESS,102702724,29,406.28,GAS,10/10/2019,,Technical and Service Support,Utilities
800137902,AZTEC COMPUTING LTD,10674,1,"2,400.00",SOFTWARE BESPOKE,10/10/2019,"2,400.00",Watch Structure Review,ICT
800137903,AZTEC COMPUTING LTD,10675,1,"5,120.00",SOFTWARE BESPOKE,10/10/2019,"5,120.00",Enterprise Application Group (ICT),ICT
800137904,AZTEC COMPUTING LTD,10676,1,"2,560.00",SOFTWARE BESPOKE,10/10/2019,"2,560.00",Watch Structure Review,ICT
800137905,AZTEC COMPUTING LTD,10677,1,800,SOFTWARE BESPOKE,10/10/2019,800,People Services,ICT
800137906,AZTEC COMPUTING LTD,10678,1,"2,000.00",SOFTWARE BESPOKE,10/10/2019,"2,000.00",People Services,ICT
800137907,AZTEC COMPUTING LTD,10679,1,"13,000.00",SOFTWARE COTS,10/10/2019,"13,000.00",Enterprise Application Group (ICT),ICT
041019K,FIREANGEL SAFETY TECHNOLOGY LD,1135307,1,"1,050.00",FIRE DETECTORS,10/10/2019,"1,050.00",Fire Stations (North East),Health and Safety
041019K,FIREANGEL SAFETY TECHNOLOGY LD,1135328,1,525,FIRE DETECTORS,10/10/2019,525,Fire Stations (North East),Health and Safety
041019K,FIREANGEL SAFETY TECHNOLOGY LD,1135596,1,300,FIRE DETECTORS,10/10/2019,300,Fire Stations (South East),Health and Safety
041019K,FIREANGEL SAFETY TECHNOLOGY LD,1135610,1,300,FIRE DETECTORS,10/10/2019,300,Fire Stations (South East),Health and Safety
800137600,HAYS SPECIALIST RECRUITMENT,1155052,1,905.1,FRS STAFF AGENCY,10/10/2019,905.1,People Services,Human Resources
800137532,HAYS SPECIALIST RECRUITMENT,1155053,1,618.1,FRS STAFF AGENCY,10/10/2019,618.1,People Services,Human Resources
800137601,HAYS SPECIALIST RECRUITMENT,1155054,1,684.81,FRS STAFF AGENCY,10/10/2019,684.81,London Resilience Group,Human Resources
800137587,HAYS SPECIALIST RECRUITMENT,1155055,1,"1,461.25",FRS STAFF AGENCY,10/10/2019,"1,461.25",Operational Policy,Human Resources
800137585,HAYS SPECIALIST RECRUITMENT,1155056,1,973.83,FRS STAFF AGENCY,10/10/2019,973.83,Change to LFC Governance,Human Resources
800137570,HAYS SPECIALIST RECRUITMENT,1155057,1,"2,112.60",FRS STAFF AGENCY,10/10/2019,"2,112.60",Enterprise Application Group (ICT),Human Resources
800137571,HAYS SPECIALIST RECRUITMENT,1155058,1,757.75,FRS STAFF AGENCY,10/10/2019,757.75,Technical and Service Support,Human Resources
800137519,HAYS SPECIALIST RECRUITMENT,1155059,1,636.29,FRS STAFF AGENCY,10/10/2019,636.29,Community Safety,Human Resources
800137526,HAYS SPECIALIST RECRUITMENT,1155060,1,"1,184.75",FRS STAFF AGENCY,10/10/2019,"1,184.75",CPO People Programme,Human Resources
800137581,HAYS SPECIALIST RECRUITMENT,1155061,1,757.75,FRS STAFF AGENCY,10/10/2019,757.75,Building Support Programme,Human Resources
800137522,HAYS SPECIALIST RECRUITMENT,1155062,1,"1,045.84",FRS STAFF AGENCY,10/10/2019,"1,045.84",Operational Resilience,Human Resources
800137574,HAYS SPECIALIST RECRUITMENT,1155063,1,"1,546.20",FRS STAFF AGENCY,10/10/2019,"1,546.20",Technical and Service Support,Human Resources
